Publisher Label,Publisher URI,Body Name,Service Area Categorisation,Service Division Categorisation,Expenses Type,Date,Transaction Number,Amount,Capital or Revenue,Supplier Name,Merchant Category
Peterborough,http://opendatacommunities.org/id/unitary-authority/peterborough,Peterborough City Council,Highways and Transport Services,Street Lighting,Supplies and Services,01/11/2013 00:00,575751,1375.2,REVENUE,UK Power Networks (operations) Ltd,
Peterborough,http://opendatacommunities.org/id/unitary-authority/peterborough,Peterborough City Council,Children's & Education Services - Children's Social Care,Other Children's & Families Services,Supplies and Services - Transfer Payments,01/11/2013 00:00,585715,2184,REVENUE,P'boro Serviced Accommodation,
Peterborough,http://opendatacommunities.org/id/unitary-authority/peterborough,Peterborough City Council,Children's & Education Services - Children's Social Care,Children Looked After,Supplies and Services - Transfer Payments,01/11/2013 00:00,589055,3652.78,REVENUE,PC Homes,
Peterborough,http://opendatacommunities.org/id/unitary-authority/peterborough,Peterborough City Council,Adult Social Care,Older People,Supplies and Services,01/11/2013 00:00,589885,-3764.93,REVENUE,Redacted Personal Data,
Peterborough,http://opendatacommunities.org/id/unitary-authority/peterborough,Peterborough City Council,Adult Social Care,Older People,Supplies and Services,01/11/2013 00:00,589886,-1630.31,REVENUE,Redacted Personal Data,
Peterborough,http://opendatacommunities.org/id/unitary-authority/peterborough,Peterborough City Council,Adult Social Care,Adult Learning Disabilities,Supplies and Services,01/11/2013 00:00,589888,3764.93,REVENUE,Redacted Personal Data,
Peterborough,http://opendatacommunities.org/id/unitary-authority/peterborough,Peterborough City Council,Adult Social Care,Adult Learning Disabilities,Supplies and Services,01/11/2013 00:00,589889,1630.31,REVENUE,Redacted Personal Data,
Peterborough,http://opendatacommunities.org/id/unitary-authority/peterborough,Peterborough City Council,Children's & Education Services - Children's Social Care,Children Looked After,Employees,01/11/2013 00:00,590996,1980,REVENUE,Textbook Teachers,
Peterborough,http://opendatacommunities.org/id/unitary-authority/peterborough,Peterborough City Council,Children's & Education Services - Children's Social Care,Children Looked After,Employees,01/11/2013 00:00,590998,1894.8,REVENUE,Textbook Teachers,
Peterborough,http://opendatacommunities.org/id/unitary-authority/peterborough,Peterborough City Council,Children's & Education Services - Children's Social Care,Children Looked After,Employees,01/11/2013 00:00,591015,2233.2,REVENUE,Textbook Teachers,
Peterborough,http://opendatacommunities.org/id/unitary-authority/peterborough,Peterborough City Council,Children's & Education Services - Children's Social Care,Children Looked After,Employees,01/11/2013 00:00,591879,542.29,REVENUE,Randstad Care Ltd,
Peterborough,http://opendatacommunities.org/id/unitary-authority/peterborough,Peterborough City Council,More than one Service Area Category,More than one Service Division,Third Party Payments,01/11/2013 00:00,592740,612.5,REVENUE,BOOTS MIDNIGHT PHARMACY,
Peterborough,http://opendatacommunities.org/id/unitary-authority/peterborough,Peterborough City Council,Children's & Education Services - Children's Social Care,Children Looked After,Employees,01/11/2013 00:00,593056,737.1,REVENUE,Randstad Care Ltd,
Peterborough,http://opendatacommunities.org/id/unitary-authority/peterborough,Peterborough City Council,Adult Social Care,Adult Learning Disabilities,Supplies and Services,01/11/2013 00:00,593384,167614.57,REVENUE,Turning Point Services Ltd,
Peterborough,http://opendatacommunities.org/id/unitary-authority/peterborough,Peterborough City Council,Children's & Education Services - Children's Social Care,Children Looked After,Employees,01/11/2013 00:00,593417,1695,REVENUE,Redacted Personal Data,
Peterborough,http://opendatacommunities.org/id/unitary-authority/peterborough,Peterborough City Council,Highways and Transport Services,Parking Services,Supplies and Services,01/11/2013 00:00,593451,1008,REVENUE,British Parking Association,
Peterborough,http://opendatacommunities.org/id/unitary-authority/peterborough,Peterborough City Council,Children's & Education Services - Education,Other School -related Education Functions,Supplies and Services,01/11/2013 00:00,593537,18386.01,REVENUE,Sir Harry Smith Community College,
Peterborough,http://opendatacommunities.org/id/unitary-authority/peterborough,Peterborough City Council,Children's & Education Services - Education,Early Years,Supplies and Services,01/11/2013 00:00,593578,1129.36,REVENUE,Orton Longueville Playgroup,
Peterborough,http://opendatacommunities.org/id/unitary-authority/peterborough,Peterborough City Council,Housing Services,Private Sector Housing Renewal,Supplies and Services,01/11/2013 00:00,593676,10505.76,REVENUE,Northgate Information Solutions,
Peterborough,http://opendatacommunities.org/id/unitary-authority/peterborough,Peterborough City Council,Housing Services,Private Sector Housing Renewal,Supplies and Services,01/11/2013 00:00,593758,1200,REVENUE,"Snelling, Mr Charles",
Peterborough,http://opendatacommunities.org/id/unitary-authority/peterborough,Peterborough City Council,More than one Service Area Category,More than one Service Division,Balance Sheet,01/11/2013 00:00,593762,785.19,Balance Sheet,Rossendales C B Ltd,
Peterborough,http://opendatacommunities.org/id/unitary-authority/peterborough,Peterborough City Council,Support Services,Support Services,Premises,01/11/2013 00:00,593767,1349.38,REVENUE,Zurich Insurance Company,
Peterborough,http://opendatacommunities.org/id/unitary-authority/peterborough,Peterborough City Council,More than one Service Area Category,More than one Service Division,Premises,01/11/2013 00:00,593808,1326.9,REVENUE,Corona Energy Retail 4 Limited,
Peterborough,http://opendatacommunities.org/id/unitary-authority/peterborough,Peterborough City Council,More than one Service Area Category,More than one Service Division,Premises,01/11/2013 00:00,593809,1725.55,REVENUE,Corona Energy Retail 4 Limited,
Peterborough,http://opendatacommunities.org/id/unitary-authority/peterborough,Peterborough City Council,Children's & Education Services - Children's Social Care,Children Looked After,Supplies and Services - Transfer Payments,01/11/2013 00:00,593933,1490.58,REVENUE,Fostering Solutions,
Peterborough,http://opendatacommunities.org/id/unitary-authority/peterborough,Peterborough City Council,Adult Social Care,Support Services & Management Costs,Transport,01/11/2013 00:00,593956,1789.78,REVENUE,Allstar Business Solutions Ltd,
Peterborough,http://opendatacommunities.org/id/unitary-authority/peterborough,Peterborough City Council,Children's & Education Services - Children's Social Care,Children Looked After,Employees,01/11/2013 00:00,593986,610.74,REVENUE,Randstad Care Ltd,
Peterborough,http://opendatacommunities.org/id/unitary-authority/peterborough,Peterborough City Council,Adult Social Care,Adult Learning Disabilities,Supplies and Services,01/11/2013 00:00,594005,13972,REVENUE,Next Steps Community Care Ltd,
Peterborough,http://opendatacommunities.org/id/unitary-authority/peterborough,Peterborough City Council,Adult Social Care,Adult Learning Disabilities,Employees,01/11/2013 00:00,594207,622.66,REVENUE,Jark Healthcare,
Peterborough,http://opendatacommunities.org/id/unitary-authority/peterborough,Peterborough City Council,Adult Social Care,Adult Learning Disabilities,Supplies and Services,01/11/2013 00:00,594214,1020.96,REVENUE,Redacted Personal Data,
Peterborough,http://opendatacommunities.org/id/unitary-authority/peterborough,Peterborough City Council,Adult Social Care,Adult Learning Disabilities,Supplies and Services,01/11/2013 00:00,594215,1020.96,REVENUE,Redacted Personal Data,
Peterborough,http://opendatacommunities.org/id/unitary-authority/peterborough,Peterborough City Council,Adult Social Care,Adult Learning Disabilities,Supplies and Services,01/11/2013 00:00,594216,1020.96,REVENUE,Redacted Personal Data,
Peterborough,http://opendatacommunities.org/id/unitary-authority/peterborough,Peterborough City Council,Adult Social Care,Adult Learning Disabilities,Supplies and Services,01/11/2013 00:00,594217,1020.96,REVENUE,Redacted Personal Data,
Peterborough,http://opendatacommunities.org/id/unitary-authority/peterborough,Peterborough City Council,Adult Social Care,Adult Learning Disabilities,Supplies and Services,01/11/2013 00:00,594218,1020.96,REVENUE,Redacted Personal Data,
Peterborough,http://opendatacommunities.org/id/unitary-authority/peterborough,Peterborough City Council,Adult Social Care,Adult Learning Disabilities,Supplies and Services,01/11/2013 00:00,594219,778.2,REVENUE,Redacted Personal Data,
Peterborough,http://opendatacommunities.org/id/unitary-authority/peterborough,Peterborough City Council,Adult Social Care,Adult Learning Disabilities,Supplies and Services,01/11/2013 00:00,594220,60548.12,REVENUE,HEREWARD CARE SERVICES LIMITED,
Peterborough,http://opendatacommunities.org/id/unitary-authority/peterborough,Peterborough City Council,Adult Social Care,Adult Learning Disabilities,Supplies and Services,01/11/2013 00:00,594221,1247.28,REVENUE,Redacted Personal Data,
Peterborough,http://opendatacommunities.org/id/unitary-authority/peterborough,Peterborough City Council,Adult Social Care,Adult Learning Disabilities,Supplies and Services,01/11/2013 00:00,594222,1247.28,REVENUE,Redacted Personal Data,
Peterborough,http://opendatacommunities.org/id/unitary-authority/peterborough,Peterborough City Council,Adult Social Care,Older People,Supplies and Services,01/11/2013 00:00,594223,2843.24,REVENUE,Redacted Personal Data,
Peterborough,http://opendatacommunities.org/id/unitary-authority/peterborough,Peterborough City Council,Adult Social Care,Adult Learning Disabilities,More than one Expenses Type,01/11/2013 00:00,594226,6460.44,REVENUE,Redacted Personal Data,
Peterborough,http://opendatacommunities.org/id/unitary-authority/peterborough,Peterborough City Council,Adult Social Care,Older People,Supplies and Services,01/11/2013 00:00,594227,719.88,REVENUE,Redacted Personal Data,
Peterborough,http://opendatacommunities.org/id/unitary-authority/peterborough,Peterborough City Council,Adult Social Care,Older People,Supplies and Services,01/11/2013 00:00,594228,1142.56,REVENUE,Redacted Personal Data,
Peterborough,http://opendatacommunities.org/id/unitary-authority/peterborough,Peterborough City Council,Adult Social Care,Adult Learning Disabilities,More than one Expenses Type,01/11/2013 00:00,594229,1429.68,REVENUE,Redacted Personal Data,
Peterborough,http://opendatacommunities.org/id/unitary-authority/peterborough,Peterborough City Council,Adult Social Care,Adult Learning Disabilities,Supplies and Services,01/11/2013 00:00,594233,3315.52,REVENUE,Redacted Personal Data,
Peterborough,http://opendatacommunities.org/id/unitary-authority/peterborough,Peterborough City Council,Adult Social Care,Adult Learning Disabilities,More than one Expenses Type,01/11/2013 00:00,594234,4705.8,REVENUE,Redacted Personal Data,
Peterborough,http://opendatacommunities.org/id/unitary-authority/peterborough,Peterborough City Council,Adult Social Care,Adult Physical Disability & Sensory Impairment,More than one Expenses Type,01/11/2013 00:00,594235,1420.12,REVENUE,Redacted Personal Data,
Peterborough,http://opendatacommunities.org/id/unitary-authority/peterborough,Peterborough City Council,Adult Social Care,Adult Learning Disabilities,Supplies and Services,01/11/2013 00:00,594236,1416.28,REVENUE,Redacted Personal Data,
Peterborough,http://opendatacommunities.org/id/unitary-authority/peterborough,Peterborough City Council,Adult Social Care,Adult Physical Disability & Sensory Impairment,More than one Expenses Type,01/11/2013 00:00,594237,606.24,REVENUE,Redacted Personal Data,
Peterborough,http://opendatacommunities.org/id/unitary-authority/peterborough,Peterborough City Council,Adult Social Care,Adult Physical Disability & Sensory Impairment,Supplies and Services,01/11/2013 00:00,594240,1159.2,REVENUE,Redacted Personal Data,
Peterborough,http://opendatacommunities.org/id/unitary-authority/peterborough,Peterborough City Council,Adult Social Care,Older People,More than one Expenses Type,01/11/2013 00:00,594241,1028.6,REVENUE,Redacted Personal Data,
Peterborough,http://opendatacommunities.org/id/unitary-authority/peterborough,Peterborough City Council,Adult Social Care,Older People,Supplies and Services,01/11/2013 00:00,594243,1413.12,REVENUE,Redacted Personal Data,
Peterborough,http://opendatacommunities.org/id/unitary-authority/peterborough,Peterborough City Council,Adult Social Care,Adult Learning Disabilities,Supplies and Services,01/11/2013 00:00,594244,804.24,REVENUE,Redacted Personal Data,
Peterborough,http://opendatacommunities.org/id/unitary-authority/peterborough,Peterborough City Council,Adult Social Care,Adult Learning Disabilities,More than one Expenses Type,01/11/2013 00:00,594246,911.08,REVENUE,Redacted Personal Data,
Peterborough,http://opendatacommunities.org/id/unitary-authority/peterborough,Peterborough City Council,Adult Social Care,Adult Learning Disabilities,More than one Expenses Type,01/11/2013 00:00,594247,1360.08,REVENUE,Redacted Personal Data,
Peterborough,http://opendatacommunities.org/id/unitary-authority/peterborough,Peterborough City Council,Adult Social Care,Adult Learning Disabilities,More than one Expenses Type,01/11/2013 00:00,594248,8327.32,REVENUE,Redacted Personal Data,
Peterborough,http://opendatacommunities.org/id/unitary-authority/peterborough,Peterborough City Council,Adult Social Care,Adult Learning Disabilities,More than one Expenses Type,01/11/2013 00:00,594249,6999.08,REVENUE,Redacted Personal Data,
Peterborough,http://opendatacommunities.org/id/unitary-authority/peterborough,Peterborough City Council,Adult Social Care,Adult Learning Disabilities,More than one Expenses Type,01/11/2013 00:00,594250,5968.12,REVENUE,Redacted Personal Data,
Peterborough,http://opendatacommunities.org/id/unitary-authority/peterborough,Peterborough City Council,Adult Social Care,Adult Learning Disabilities,Supplies and Services,01/11/2013 00:00,594251,712.76,REVENUE,Redacted Personal Data,
Peterborough,http://opendatacommunities.org/id/unitary-authority/peterborough,Peterborough City Council,Adult Social Care,Older People,More than one Expenses Type,01/11/2013 00:00,594252,5800.8,REVENUE,Redacted Personal Data,
Peterborough,http://opendatacommunities.org/id/unitary-authority/peterborough,Peterborough City Council,Adult Social Care,Adult Physical Disability & Sensory Impairment,More than one Expenses Type,01/11/2013 00:00,594255,5897,REVENUE,Redacted Personal Data,
Peterborough,http://opendatacommunities.org/id/unitary-authority/peterborough,Peterborough City Council,Adult Social Care,Adult Learning Disabilities,More than one Expenses Type,01/11/2013 00:00,594256,1287.4,REVENUE,Redacted Personal Data,
Peterborough,http://opendatacommunities.org/id/unitary-authority/peterborough,Peterborough City Council,Adult Social Care,Older People,Supplies and Services,01/11/2013 00:00,594257,2411.04,REVENUE,Redacted Personal Data,
Peterborough,http://opendatacommunities.org/id/unitary-authority/peterborough,Peterborough City Council,Adult Social Care,Adult Learning Disabilities,More than one Expenses Type,01/11/2013 00:00,594259,1418.04,REVENUE,Redacted Personal Data,
Peterborough,http://opendatacommunities.org/id/unitary-authority/peterborough,Peterborough City Council,Adult Social Care,Adult Learning Disabilities,Supplies and Services,01/11/2013 00:00,594261,580.84,REVENUE,Redacted Personal Data,
Peterborough,http://opendatacommunities.org/id/unitary-authority/peterborough,Peterborough City Council,Adult Social Care,Older People,Supplies and Services,01/11/2013 00:00,594262,606.16,REVENUE,Redacted Personal Data,
Peterborough,http://opendatacommunities.org/id/unitary-authority/peterborough,Peterborough City Council,Adult Social Care,Adult Learning Disabilities,More than one Expenses Type,01/11/2013 00:00,594263,1538.48,REVENUE,Redacted Personal Data,
Peterborough,http://opendatacommunities.org/id/unitary-authority/peterborough,Peterborough City Council,Adult Social Care,Older People,More than one Expenses Type,01/11/2013 00:00,594265,834.8,REVENUE,Redacted Personal Data,
Peterborough,http://opendatacommunities.org/id/unitary-authority/peterborough,Peterborough City Council,Adult Social Care,Adult Learning Disabilities,More than one Expenses Type,01/11/2013 00:00,594266,1943.12,REVENUE,Redacted Personal Data,
Peterborough,http://opendatacommunities.org/id/unitary-authority/peterborough,Peterborough City Council,Adult Social Care,Adult Learning Disabilities,Supplies and Services,01/11/2013 00:00,594267,4000,REVENUE,Redacted Personal Data,
Peterborough,http://opendatacommunities.org/id/unitary-authority/peterborough,Peterborough City Council,Adult Social Care,Adult Learning Disabilities,More than one Expenses Type,01/11/2013 00:00,594268,2622.48,REVENUE,Redacted Personal Data,
Peterborough,http://opendatacommunities.org/id/unitary-authority/peterborough,Peterborough City Council,Adult Social Care,Adult Physical Disability & Sensory Impairment,Supplies and Services,01/11/2013 00:00,594269,1397.52,REVENUE,Redacted Personal Data,
Peterborough,http://opendatacommunities.org/id/unitary-authority/peterborough,Peterborough City Council,Adult Social Care,Older People,Supplies and Services,01/11/2013 00:00,594273,1563.8,REVENUE,Redacted Personal Data,
Peterborough,http://opendatacommunities.org/id/unitary-authority/peterborough,Peterborough City Council,Adult Social Care,Adult Learning Disabilities,Supplies and Services,01/11/2013 00:00,594275,2339.56,REVENUE,Redacted Personal Data,
Peterborough,http://opendatacommunities.org/id/unitary-authority/peterborough,Peterborough City Council,Adult Social Care,Older People,Supplies and Services,01/11/2013 00:00,594276,897.2,REVENUE,Redacted Personal Data,
Peterborough,http://opendatacommunities.org/id/unitary-authority/peterborough,Peterborough City Council,Adult Social Care,Older People,More than one Expenses Type,01/11/2013 00:00,594278,1755.44,REVENUE,Redacted Personal Data,
Peterborough,http://opendatacommunities.org/id/unitary-authority/peterborough,Peterborough City Council,Adult Social Care,Adult Learning Disabilities,More than one Expenses Type,01/11/2013 00:00,594279,1300.76,REVENUE,Redacted Personal Data,
Peterborough,http://opendatacommunities.org/id/unitary-authority/peterborough,Peterborough City Council,Adult Social Care,Older People,More than one Expenses Type,01/11/2013 00:00,594280,1019.8,REVENUE,Redacted Personal Data,
Peterborough,http://opendatacommunities.org/id/unitary-authority/peterborough,Peterborough City Council,Adult Social Care,Adult Learning Disabilities,More than one Expenses Type,01/11/2013 00:00,594281,2681.4,REVENUE,Redacted Personal Data,
Peterborough,http://opendatacommunities.org/id/unitary-authority/peterborough,Peterborough City Council,Adult Social Care,Adult Learning Disabilities,Supplies and Services,01/11/2013 00:00,594282,576.56,REVENUE,Redacted Personal Data,
Peterborough,http://opendatacommunities.org/id/unitary-authority/peterborough,Peterborough City Council,Adult Social Care,Adult Learning Disabilities,More than one Expenses Type,01/11/2013 00:00,594284,1681.48,REVENUE,Redacted Personal Data,
Peterborough,http://opendatacommunities.org/id/unitary-authority/peterborough,Peterborough City Council,Adult Social Care,Older People,More than one Expenses Type,01/11/2013 00:00,594285,1249.84,REVENUE,Redacted Personal Data,
Peterborough,http://opendatacommunities.org/id/unitary-authority/peterborough,Peterborough City Council,Adult Social Care,Adult Learning Disabilities,Supplies and Services,01/11/2013 00:00,594287,1339.16,REVENUE,Redacted Personal Data,
Peterborough,http://opendatacommunities.org/id/unitary-authority/peterborough,Peterborough City Council,Adult Social Care,Adult Learning Disabilities,More than one Expenses Type,01/11/2013 00:00,594288,5825.32,REVENUE,Redacted Personal Data,
Peterborough,http://opendatacommunities.org/id/unitary-authority/peterborough,Peterborough City Council,Adult Social Care,Adult Learning Disabilities,Supplies and Services,01/11/2013 00:00,594290,1139.4,REVENUE,Redacted Personal Data,
Peterborough,http://opendatacommunities.org/id/unitary-authority/peterborough,Peterborough City Council,Adult Social Care,Adult Learning Disabilities,Supplies and Services,01/11/2013 00:00,594291,1400,REVENUE,Redacted Personal Data,
Peterborough,http://opendatacommunities.org/id/unitary-authority/peterborough,Peterborough City Council,Adult Social Care,Adult Learning Disabilities,More than one Expenses Type,01/11/2013 00:00,594292,529.8,REVENUE,Redacted Personal Data,
Peterborough,http://opendatacommunities.org/id/unitary-authority/peterborough,Peterborough City Council,Adult Social Care,Adult Learning Disabilities,More than one Expenses Type,01/11/2013 00:00,594293,2418.12,REVENUE,Redacted Personal Data,
Peterborough,http://opendatacommunities.org/id/unitary-authority/peterborough,Peterborough City Council,Adult Social Care,Adult Learning Disabilities,Supplies and Services,01/11/2013 00:00,594296,1991.4,REVENUE,Redacted Personal Data,
Peterborough,http://opendatacommunities.org/id/unitary-authority/peterborough,Peterborough City Council,Adult Social Care,Older People,Supplies and Services,01/11/2013 00:00,594297,1556.96,REVENUE,Redacted Personal Data,
Peterborough,http://opendatacommunities.org/id/unitary-authority/peterborough,Peterborough City Council,Adult Social Care,Adult Learning Disabilities,More than one Expenses Type,01/11/2013 00:00,594300,2843.96,REVENUE,Redacted Personal Data,
Peterborough,http://opendatacommunities.org/id/unitary-authority/peterborough,Peterborough City Council,Adult Social Care,Adult Learning Disabilities,More than one Expenses Type,01/11/2013 00:00,594301,779.12,REVENUE,Redacted Personal Data,
Peterborough,http://opendatacommunities.org/id/unitary-authority/peterborough,Peterborough City Council,Adult Social Care,Older People,More than one Expenses Type,01/11/2013 00:00,594302,535.72,REVENUE,Redacted Personal Data,
Peterborough,http://opendatacommunities.org/id/unitary-authority/peterborough,Peterborough City Council,Adult Social Care,Adult Learning Disabilities,Supplies and Services,01/11/2013 00:00,594303,1340.4,REVENUE,Redacted Personal Data,
Peterborough,http://opendatacommunities.org/id/unitary-authority/peterborough,Peterborough City Council,Adult Social Care,Adult Learning Disabilities,More than one Expenses Type,01/11/2013 00:00,594304,1351.92,REVENUE,Redacted Personal Data,
Peterborough,http://opendatacommunities.org/id/unitary-authority/peterborough,Peterborough City Council,Adult Social Care,Adult Learning Disabilities,More than one Expenses Type,01/11/2013 00:00,594305,1351.92,REVENUE,Redacted Personal Data,
Peterborough,http://opendatacommunities.org/id/unitary-authority/peterborough,Peterborough City Council,Adult Social Care,Adult Learning Disabilities,More than one Expenses Type,01/11/2013 00:00,594306,2033.52,REVENUE,Redacted Personal Data,
Peterborough,http://opendatacommunities.org/id/unitary-authority/peterborough,Peterborough City Council,Adult Social Care,Adult Learning Disabilities,More than one Expenses Type,01/11/2013 00:00,594311,2074.56,REVENUE,Redacted Personal Data,
Peterborough,http://opendatacommunities.org/id/unitary-authority/peterborough,Peterborough City Council,Adult Social Care,Older People,More than one Expenses Type,01/11/2013 00:00,594314,616.04,REVENUE,Redacted Personal Data,
Peterborough,http://opendatacommunities.org/id/unitary-authority/peterborough,Peterborough City Council,Adult Social Care,Adult Learning Disabilities,Fees and Charges,01/11/2013 00:00,594315,3414.4,REVENUE,Redacted Personal Data,
Peterborough,http://opendatacommunities.org/id/unitary-authority/peterborough,Peterborough City Council,Adult Social Care,Older People,Supplies and Services,01/11/2013 00:00,594316,1838.68,REVENUE,Redacted Personal Data,
Peterborough,http://opendatacommunities.org/id/unitary-authority/peterborough,Peterborough City Council,Adult Social Care,Adult Learning Disabilities,More than one Expenses Type,01/11/2013 00:00,594318,1342.08,REVENUE,Redacted Personal Data,
Peterborough,http://opendatacommunities.org/id/unitary-authority/peterborough,Peterborough City Council,Adult Social Care,Older People,Supplies and Services,01/11/2013 00:00,594319,1670.2,REVENUE,Redacted Personal Data,
Peterborough,http://opendatacommunities.org/id/unitary-authority/peterborough,Peterborough City Council,Adult Social Care,Older People,More than one Expenses Type,01/11/2013 00:00,594320,2389.48,REVENUE,Redacted Personal Data,
Peterborough,http://opendatacommunities.org/id/unitary-authority/peterborough,Peterborough City Council,Adult Social Care,Older People,Supplies and Services,01/11/2013 00:00,594322,1066,REVENUE,Redacted Personal Data,
Peterborough,http://opendatacommunities.org/id/unitary-authority/peterborough,Peterborough City Council,Adult Social Care,Adult Learning Disabilities,Supplies and Services,01/11/2013 00:00,594328,705.36,REVENUE,Redacted Personal Data,
Peterborough,http://opendatacommunities.org/id/unitary-authority/peterborough,Peterborough City Council,Adult Social Care,Adult Learning Disabilities,More than one Expenses Type,01/11/2013 00:00,594329,2594.08,REVENUE,Redacted Personal Data,
Peterborough,http://opendatacommunities.org/id/unitary-authority/peterborough,Peterborough City Council,Adult Social Care,Older People,Supplies and Services,01/11/2013 00:00,594330,1037.84,REVENUE,Redacted Personal Data,
Peterborough,http://opendatacommunities.org/id/unitary-authority/peterborough,Peterborough City Council,Adult Social Care,Adult Learning Disabilities,Supplies and Services,01/11/2013 00:00,594331,2537.36,REVENUE,Redacted Personal Data,
Peterborough,http://opendatacommunities.org/id/unitary-authority/peterborough,Peterborough City Council,Adult Social Care,Older People,More than one Expenses Type,01/11/2013 00:00,594332,672.2,REVENUE,Redacted Personal Data,
Peterborough,http://opendatacommunities.org/id/unitary-authority/peterborough,Peterborough City Council,Adult Social Care,Older People,More than one Expenses Type,01/11/2013 00:00,594336,567.56,REVENUE,Redacted Personal Data,
Peterborough,http://opendatacommunities.org/id/unitary-authority/peterborough,Peterborough City Council,Adult Social Care,Older People,Supplies and Services,01/11/2013 00:00,594337,722.04,REVENUE,Redacted Personal Data,
Peterborough,http://opendatacommunities.org/id/unitary-authority/peterborough,Peterborough City Council,Adult Social Care,Adult Physical Disability & Sensory Impairment,Supplies and Services,01/11/2013 00:00,594338,2176,REVENUE,Redacted Personal Data,
Peterborough,http://opendatacommunities.org/id/unitary-authority/peterborough,Peterborough City Council,Adult Social Care,Older People,Supplies and Services,01/11/2013 00:00,594339,852.32,REVENUE,Redacted Personal Data,
Peterborough,http://opendatacommunities.org/id/unitary-authority/peterborough,Peterborough City Council,Adult Social Care,Adult Learning Disabilities,Supplies and Services,01/11/2013 00:00,594340,846.6,REVENUE,Redacted Personal Data,
Peterborough,http://opendatacommunities.org/id/unitary-authority/peterborough,Peterborough City Council,Adult Social Care,Adult Physical Disability & Sensory Impairment,Supplies and Services,01/11/2013 00:00,594341,1697.84,REVENUE,Redacted Personal Data,
Peterborough,http://opendatacommunities.org/id/unitary-authority/peterborough,Peterborough City Council,Adult Social Care,Older People,Supplies and Services,01/11/2013 00:00,594343,625.52,REVENUE,Redacted Personal Data,
Peterborough,http://opendatacommunities.org/id/unitary-authority/peterborough,Peterborough City Council,Adult Social Care,Older People,Supplies and Services,01/11/2013 00:00,594346,655.2,REVENUE,Redacted Personal Data,
Peterborough,http://opendatacommunities.org/id/unitary-authority/peterborough,Peterborough City Council,Adult Social Care,Older People,Supplies and Services,01/11/2013 00:00,594348,619.52,REVENUE,Redacted Personal Data,
Peterborough,http://opendatacommunities.org/id/unitary-authority/peterborough,Peterborough City Council,Adult Social Care,Adult Physical Disability & Sensory Impairment,Supplies and Services,01/11/2013 00:00,594353,527.44,REVENUE,Redacted Personal Data,
Peterborough,http://opendatacommunities.org/id/unitary-authority/peterborough,Peterborough City Council,Adult Social Care,Older People,More than one Expenses Type,01/11/2013 00:00,594355,648.36,REVENUE,Redacted Personal Data,
Peterborough,http://opendatacommunities.org/id/unitary-authority/peterborough,Peterborough City Council,Adult Social Care,Adult Learning Disabilities,Supplies and Services,01/11/2013 00:00,594357,1273.88,REVENUE,Redacted Personal Data,
Peterborough,http://opendatacommunities.org/id/unitary-authority/peterborough,Peterborough City Council,Adult Social Care,Older People,Supplies and Services,01/11/2013 00:00,594359,781.92,REVENUE,Redacted Personal Data,
Peterborough,http://opendatacommunities.org/id/unitary-authority/peterborough,Peterborough City Council,Adult Social Care,Older People,Supplies and Services,01/11/2013 00:00,594360,773.28,REVENUE,Redacted Personal Data,
Peterborough,http://opendatacommunities.org/id/unitary-authority/peterborough,Peterborough City Council,Adult Social Care,Older People,More than one Expenses Type,01/11/2013 00:00,594362,772.12,REVENUE,Redacted Personal Data,
Peterborough,http://opendatacommunities.org/id/unitary-authority/peterborough,Peterborough City Council,Adult Social Care,Older People,Supplies and Services,01/11/2013 00:00,594363,3540,REVENUE,Redacted Personal Data,
Peterborough,http://opendatacommunities.org/id/unitary-authority/peterborough,Peterborough City Council,Adult Social Care,Older People,Supplies and Services,01/11/2013 00:00,594364,762.96,REVENUE,Redacted Personal Data,
Peterborough,http://opendatacommunities.org/id/unitary-authority/peterborough,Peterborough City Council,Adult Social Care,Older People,Supplies and Services,01/11/2013 00:00,594365,703.72,REVENUE,Redacted Personal Data,
Peterborough,http://opendatacommunities.org/id/unitary-authority/peterborough,Peterborough City Council,Adult Social Care,Older People,Supplies and Services,01/11/2013 00:00,594366,625.52,REVENUE,Redacted Personal Data,
Peterborough,http://opendatacommunities.org/id/unitary-authority/peterborough,Peterborough City Council,Adult Social Care,Older People,Supplies and Services,01/11/2013 00:00,594368,658.52,REVENUE,Redacted Personal Data,
Peterborough,http://opendatacommunities.org/id/unitary-authority/peterborough,Peterborough City Council,Adult Social Care,Older People,Supplies and Services,01/11/2013 00:00,594371,1005.32,REVENUE,Redacted Personal Data,
Peterborough,http://opendatacommunities.org/id/unitary-authority/peterborough,Peterborough City Council,Adult Social Care,Older People,Supplies and Services,01/11/2013 00:00,594372,760.88,REVENUE,Redacted Personal Data,
Peterborough,http://opendatacommunities.org/id/unitary-authority/peterborough,Peterborough City Council,Adult Social Care,Older People,More than one Expenses Type,01/11/2013 00:00,594373,1201.24,REVENUE,Redacted Personal Data,
Peterborough,http://opendatacommunities.org/id/unitary-authority/peterborough,Peterborough City Council,Adult Social Care,Older People,Supplies and Services,01/11/2013 00:00,594374,725.08,REVENUE,Redacted Personal Data,
Peterborough,http://opendatacommunities.org/id/unitary-authority/peterborough,Peterborough City Council,Adult Social Care,Older People,Supplies and Services,01/11/2013 00:00,594378,894.64,REVENUE,Redacted Personal Data,
Peterborough,http://opendatacommunities.org/id/unitary-authority/peterborough,Peterborough City Council,Adult Social Care,Older People,More than one Expenses Type,01/11/2013 00:00,594387,1461.32,REVENUE,Redacted Personal Data,
Peterborough,http://opendatacommunities.org/id/unitary-authority/peterborough,Peterborough City Council,Adult Social Care,Older People,Supplies and Services,01/11/2013 00:00,594391,603.2,REVENUE,Redacted Personal Data,
Peterborough,http://opendatacommunities.org/id/unitary-authority/peterborough,Peterborough City Council,Adult Social Care,Older People,Supplies and Services,01/11/2013 00:00,594398,2467.8,REVENUE,Redacted Personal Data,
Peterborough,http://opendatacommunities.org/id/unitary-authority/peterborough,Peterborough City Council,Adult Social Care,Older People,Supplies and Services,01/11/2013 00:00,594399,1016.16,REVENUE,Redacted Personal Data,
Peterborough,http://opendatacommunities.org/id/unitary-authority/peterborough,Peterborough City Council,Adult Social Care,Older People,Supplies and Services,01/11/2013 00:00,594400,1376.32,REVENUE,Redacted Personal Data,
Peterborough,http://opendatacommunities.org/id/unitary-authority/peterborough,Peterborough City Council,Adult Social Care,Older People,More than one Expenses Type,01/11/2013 00:00,594401,745,REVENUE,Redacted Personal Data,
Peterborough,http://opendatacommunities.org/id/unitary-authority/peterborough,Peterborough City Council,Adult Social Care,Older People,Supplies and Services,01/11/2013 00:00,594404,962.08,REVENUE,Redacted Personal Data,
Peterborough,http://opendatacommunities.org/id/unitary-authority/peterborough,Peterborough City Council,Adult Social Care,Older People,Supplies and Services,01/11/2013 00:00,594405,2720,REVENUE,Redacted Personal Data,
Peterborough,http://opendatacommunities.org/id/unitary-authority/peterborough,Peterborough City Council,Adult Social Care,Older People,Supplies and Services,01/11/2013 00:00,594406,-3242.58,REVENUE,Redacted Personal Data,
Peterborough,http://opendatacommunities.org/id/unitary-authority/peterborough,Peterborough City Council,Adult Social Care,Older People,Supplies and Services,01/11/2013 00:00,594408,1340.4,REVENUE,Redacted Personal Data,
Peterborough,http://opendatacommunities.org/id/unitary-authority/peterborough,Peterborough City Council,Adult Social Care,Older People,Supplies and Services,01/11/2013 00:00,594409,1884.88,REVENUE,Redacted Personal Data,
Peterborough,http://opendatacommunities.org/id/unitary-authority/peterborough,Peterborough City Council,Adult Social Care,Adult Learning Disabilities,Supplies and Services,01/11/2013 00:00,594412,876.92,REVENUE,Redacted Personal Data,
Peterborough,http://opendatacommunities.org/id/unitary-authority/peterborough,Peterborough City Council,Adult Social Care,Older People,Supplies and Services,01/11/2013 00:00,594413,670.2,REVENUE,Redacted Personal Data,
Peterborough,http://opendatacommunities.org/id/unitary-authority/peterborough,Peterborough City Council,Adult Social Care,Older People,Supplies and Services,01/11/2013 00:00,594417,520,REVENUE,Redacted Personal Data,
Peterborough,http://opendatacommunities.org/id/unitary-authority/peterborough,Peterborough City Council,Adult Social Care,Older People,More than one Expenses Type,01/11/2013 00:00,594419,1868.12,REVENUE,Redacted Personal Data,
Peterborough,http://opendatacommunities.org/id/unitary-authority/peterborough,Peterborough City Council,Adult Social Care,Older People,More than one Expenses Type,01/11/2013 00:00,594424,1838.4,REVENUE,Redacted Personal Data,
Peterborough,http://opendatacommunities.org/id/unitary-authority/peterborough,Peterborough City Council,Adult Social Care,Older People,More than one Expenses Type,01/11/2013 00:00,594426,779.56,REVENUE,Redacted Personal Data,
Peterborough,http://opendatacommunities.org/id/unitary-authority/peterborough,Peterborough City Council,Adult Social Care,Older People,Supplies and Services,01/11/2013 00:00,594427,1180.36,REVENUE,Redacted Personal Data,
Peterborough,http://opendatacommunities.org/id/unitary-authority/peterborough,Peterborough City Council,Adult Social Care,Older People,More than one Expenses Type,01/11/2013 00:00,594428,998,REVENUE,Redacted Personal Data,
Peterborough,http://opendatacommunities.org/id/unitary-authority/peterborough,Peterborough City Council,Adult Social Care,Adult Learning Disabilities,More than one Expenses Type,01/11/2013 00:00,594435,2823.24,REVENUE,Redacted Personal Data,
Peterborough,http://opendatacommunities.org/id/unitary-authority/peterborough,Peterborough City Council,Adult Social Care,Older People,More than one Expenses Type,01/11/2013 00:00,594436,1754.4,REVENUE,Redacted Personal Data,
Peterborough,http://opendatacommunities.org/id/unitary-authority/peterborough,Peterborough City Council,Adult Social Care,Adult Physical Disability & Sensory Impairment,Supplies and Services,01/11/2013 00:00,594439,619.4,REVENUE,Redacted Personal Data,
Peterborough,http://opendatacommunities.org/id/unitary-authority/peterborough,Peterborough City Council,Adult Social Care,Older People,Supplies and Services,01/11/2013 00:00,594441,1037.84,REVENUE,Redacted Personal Data,
Peterborough,http://opendatacommunities.org/id/unitary-authority/peterborough,Peterborough City Council,Adult Social Care,Older People,Supplies and Services,01/11/2013 00:00,594443,980,REVENUE,Redacted Personal Data,
Peterborough,http://opendatacommunities.org/id/unitary-authority/peterborough,Peterborough City Council,Adult Social Care,Older People,Supplies and Services,01/11/2013 00:00,594445,580.84,REVENUE,Redacted Personal Data,
Peterborough,http://opendatacommunities.org/id/unitary-authority/peterborough,Peterborough City Council,Adult Social Care,Older People,More than one Expenses Type,01/11/2013 00:00,594446,953.36,REVENUE,Redacted Personal Data,
Peterborough,http://opendatacommunities.org/id/unitary-authority/peterborough,Peterborough City Council,Adult Social Care,Adult Learning Disabilities,More than one Expenses Type,01/11/2013 00:00,594447,3784.76,REVENUE,Redacted Personal Data,
Peterborough,http://opendatacommunities.org/id/unitary-authority/peterborough,Peterborough City Council,Adult Social Care,Older People,Supplies and Services,01/11/2013 00:00,594448,606.6,REVENUE,Redacted Personal Data,
Peterborough,http://opendatacommunities.org/id/unitary-authority/peterborough,Peterborough City Council,Adult Social Care,Older People,Supplies and Services,01/11/2013 00:00,594451,1425.72,REVENUE,Redacted Personal Data,
Peterborough,http://opendatacommunities.org/id/unitary-authority/peterborough,Peterborough City Council,Adult Social Care,Older People,More than one Expenses Type,01/11/2013 00:00,594452,1422.04,REVENUE,Redacted Personal Data,
Peterborough,http://opendatacommunities.org/id/unitary-authority/peterborough,Peterborough City Council,Adult Social Care,Older People,More than one Expenses Type,01/11/2013 00:00,594454,564.92,REVENUE,Redacted Personal Data,
Peterborough,http://opendatacommunities.org/id/unitary-authority/peterborough,Peterborough City Council,Adult Social Care,Older People,Supplies and Services,01/11/2013 00:00,594457,526.32,REVENUE,Redacted Personal Data,
Peterborough,http://opendatacommunities.org/id/unitary-authority/peterborough,Peterborough City Council,Adult Social Care,Older People,More than one Expenses Type,01/11/2013 00:00,594459,783.12,REVENUE,Redacted Personal Data,
Peterborough,http://opendatacommunities.org/id/unitary-authority/peterborough,Peterborough City Council,Adult Social Care,Older People,Supplies and Services,01/11/2013 00:00,594460,775.68,REVENUE,Redacted Personal Data,
Peterborough,http://opendatacommunities.org/id/unitary-authority/peterborough,Peterborough City Council,Adult Social Care,Adult Mental Health,Supplies and Services,01/11/2013 00:00,594462,1249.92,REVENUE,Redacted Personal Data,
Peterborough,http://opendatacommunities.org/id/unitary-authority/peterborough,Peterborough City Council,Adult Social Care,Older People,More than one Expenses Type,01/11/2013 00:00,594464,926.88,REVENUE,Redacted Personal Data,
Peterborough,http://opendatacommunities.org/id/unitary-authority/peterborough,Peterborough City Council,Adult Social Care,Older People,Supplies and Services,01/11/2013 00:00,594465,641.42,REVENUE,Redacted Personal Data,
Peterborough,http://opendatacommunities.org/id/unitary-authority/peterborough,Peterborough City Council,Adult Social Care,Older People,More than one Expenses Type,01/11/2013 00:00,594470,2973.96,REVENUE,Redacted Personal Data,
Peterborough,http://opendatacommunities.org/id/unitary-authority/peterborough,Peterborough City Council,Adult Social Care,Older People,Supplies and Services,01/11/2013 00:00,594473,552.72,REVENUE,Redacted Personal Data,
Peterborough,http://opendatacommunities.org/id/unitary-authority/peterborough,Peterborough City Council,Adult Social Care,Older People,Supplies and Services,01/11/2013 00:00,594474,1407.56,REVENUE,Redacted Personal Data,
Peterborough,http://opendatacommunities.org/id/unitary-authority/peterborough,Peterborough City Council,Adult Social Care,Adult Mental Health,Supplies and Services,01/11/2013 00:00,594475,1503.56,REVENUE,Redacted Personal Data,
Peterborough,http://opendatacommunities.org/id/unitary-authority/peterborough,Peterborough City Council,Adult Social Care,Adult Learning Disabilities,More than one Expenses Type,01/11/2013 00:00,594482,1972.2,REVENUE,Redacted Personal Data,
Peterborough,http://opendatacommunities.org/id/unitary-authority/peterborough,Peterborough City Council,Adult Social Care,Older People,Supplies and Services,01/11/2013 00:00,594483,782.04,REVENUE,Redacted Personal Data,
Peterborough,http://opendatacommunities.org/id/unitary-authority/peterborough,Peterborough City Council,Adult Social Care,Older People,Supplies and Services,01/11/2013 00:00,594484,938.28,REVENUE,Redacted Personal Data,
Peterborough,http://opendatacommunities.org/id/unitary-authority/peterborough,Peterborough City Council,Adult Social Care,Older People,Supplies and Services,01/11/2013 00:00,594485,1608.48,REVENUE,Redacted Personal Data,
Peterborough,http://opendatacommunities.org/id/unitary-authority/peterborough,Peterborough City Council,Adult Social Care,Adult Physical Disability & Sensory Impairment,Supplies and Services,01/11/2013 00:00,594487,1380,REVENUE,Redacted Personal Data,
Peterborough,http://opendatacommunities.org/id/unitary-authority/peterborough,Peterborough City Council,Adult Social Care,Adult Learning Disabilities,Supplies and Services,01/11/2013 00:00,594488,4387.92,REVENUE,Redacted Personal Data,
Peterborough,http://opendatacommunities.org/id/unitary-authority/peterborough,Peterborough City Council,Adult Social Care,Adult Learning Disabilities,More than one Expenses Type,01/11/2013 00:00,594489,8028.52,REVENUE,Redacted Personal Data,
Peterborough,http://opendatacommunities.org/id/unitary-authority/peterborough,Peterborough City Council,Adult Social Care,Older People,Supplies and Services,01/11/2013 00:00,594490,1429.76,REVENUE,Redacted Personal Data,
Peterborough,http://opendatacommunities.org/id/unitary-authority/peterborough,Peterborough City Council,Adult Social Care,Adult Learning Disabilities,More than one Expenses Type,01/11/2013 00:00,594491,918.28,REVENUE,Redacted Personal Data,
Peterborough,http://opendatacommunities.org/id/unitary-authority/peterborough,Peterborough City Council,Adult Social Care,Adult Learning Disabilities,Supplies and Services,01/11/2013 00:00,594492,3252.92,REVENUE,Redacted Personal Data,
Peterborough,http://opendatacommunities.org/id/unitary-authority/peterborough,Peterborough City Council,Adult Social Care,Adult Mental Health,Supplies and Services,01/11/2013 00:00,594494,1546.4,REVENUE,Redacted Personal Data,
Peterborough,http://opendatacommunities.org/id/unitary-authority/peterborough,Peterborough City Council,Adult Social Care,Adult Learning Disabilities,More than one Expenses Type,01/11/2013 00:00,594495,3631.52,REVENUE,Redacted Personal Data,
Peterborough,http://opendatacommunities.org/id/unitary-authority/peterborough,Peterborough City Council,Adult Social Care,Adult Learning Disabilities,Supplies and Services,01/11/2013 00:00,594496,2189.32,REVENUE,Redacted Personal Data,
Peterborough,http://opendatacommunities.org/id/unitary-authority/peterborough,Peterborough City Council,Adult Social Care,Adult Learning Disabilities,More than one Expenses Type,01/11/2013 00:00,594498,1246.4,REVENUE,Redacted Personal Data,
Peterborough,http://opendatacommunities.org/id/unitary-authority/peterborough,Peterborough City Council,Adult Social Care,Adult Learning Disabilities,More than one Expenses Type,01/11/2013 00:00,594503,3766.8,REVENUE,Redacted Personal Data,
Peterborough,http://opendatacommunities.org/id/unitary-authority/peterborough,Peterborough City Council,Adult Social Care,Adult Learning Disabilities,Supplies and Services,01/11/2013 00:00,594505,1284.64,REVENUE,Redacted Personal Data,
Peterborough,http://opendatacommunities.org/id/unitary-authority/peterborough,Peterborough City Council,Adult Social Care,Adult Physical Disability & Sensory Impairment,More than one Expenses Type,01/11/2013 00:00,594506,749.08,REVENUE,Redacted Personal Data,
Peterborough,http://opendatacommunities.org/id/unitary-authority/peterborough,Peterborough City Council,Adult Social Care,Adult Mental Health,More than one Expenses Type,01/11/2013 00:00,594507,741.2,REVENUE,Redacted Personal Data,
Peterborough,http://opendatacommunities.org/id/unitary-authority/peterborough,Peterborough City Council,Adult Social Care,Older People,More than one Expenses Type,01/11/2013 00:00,594509,571.92,REVENUE,Redacted Personal Data,
Peterborough,http://opendatacommunities.org/id/unitary-authority/peterborough,Peterborough City Council,Adult Social Care,Adult Learning Disabilities,More than one Expenses Type,01/11/2013 00:00,594510,6211,REVENUE,Redacted Personal Data,
Peterborough,http://opendatacommunities.org/id/unitary-authority/peterborough,Peterborough City Council,Adult Social Care,Older People,Supplies and Services,01/11/2013 00:00,594511,1161.72,REVENUE,Redacted Personal Data,
Peterborough,http://opendatacommunities.org/id/unitary-authority/peterborough,Peterborough City Council,Adult Social Care,Adult Learning Disabilities,Supplies and Services,01/11/2013 00:00,594512,913.84,REVENUE,Redacted Personal Data,
Peterborough,http://opendatacommunities.org/id/unitary-authority/peterborough,Peterborough City Council,Adult Social Care,Adult Physical Disability & Sensory Impairment,Supplies and Services,01/11/2013 00:00,594515,915.92,REVENUE,Redacted Personal Data,
Peterborough,http://opendatacommunities.org/id/unitary-authority/peterborough,Peterborough City Council,Adult Social Care,Older People,More than one Expenses Type,01/11/2013 00:00,594516,634.76,REVENUE,Redacted Personal Data,
Peterborough,http://opendatacommunities.org/id/unitary-authority/peterborough,Peterborough City Council,Adult Social Care,Adult Learning Disabilities,More than one Expenses Type,01/11/2013 00:00,594518,5051.88,REVENUE,Redacted Personal Data,
Peterborough,http://opendatacommunities.org/id/unitary-authority/peterborough,Peterborough City Council,Adult Social Care,Older People,Supplies and Services,01/11/2013 00:00,594519,840,REVENUE,Redacted Personal Data,
Peterborough,http://opendatacommunities.org/id/unitary-authority/peterborough,Peterborough City Council,Adult Social Care,Older People,More than one Expenses Type,01/11/2013 00:00,594521,12787.08,REVENUE,Redacted Personal Data,
Peterborough,http://opendatacommunities.org/id/unitary-authority/peterborough,Peterborough City Council,Adult Social Care,Adult Learning Disabilities,More than one Expenses Type,01/11/2013 00:00,594522,5195.42,REVENUE,Redacted Personal Data,
Peterborough,http://opendatacommunities.org/id/unitary-authority/peterborough,Peterborough City Council,Adult Social Care,Older People,More than one Expenses Type,01/11/2013 00:00,594523,954.86,REVENUE,Redacted Personal Data,
Peterborough,http://opendatacommunities.org/id/unitary-authority/peterborough,Peterborough City Council,Adult Social Care,Adult Learning Disabilities,Supplies and Services,01/11/2013 00:00,594524,2810.88,REVENUE,Redacted Personal Data,
Peterborough,http://opendatacommunities.org/id/unitary-authority/peterborough,Peterborough City Council,Adult Social Care,Older People,More than one Expenses Type,01/11/2013 00:00,594525,2630.8,REVENUE,Redacted Personal Data,
Peterborough,http://opendatacommunities.org/id/unitary-authority/peterborough,Peterborough City Council,Adult Social Care,Older People,More than one Expenses Type,01/11/2013 00:00,594526,609.28,REVENUE,Redacted Personal Data,
Peterborough,http://opendatacommunities.org/id/unitary-authority/peterborough,Peterborough City Council,Adult Social Care,Adult Learning Disabilities,Supplies and Services,01/11/2013 00:00,594528,769.04,REVENUE,Redacted Personal Data,
Peterborough,http://opendatacommunities.org/id/unitary-authority/peterborough,Peterborough City Council,Adult Social Care,Older People,Supplies and Services,01/11/2013 00:00,594529,1258.28,REVENUE,Redacted Personal Data,
Peterborough,http://opendatacommunities.org/id/unitary-authority/peterborough,Peterborough City Council,Adult Social Care,Adult Learning Disabilities,More than one Expenses Type,01/11/2013 00:00,594530,3052.28,REVENUE,Redacted Personal Data,
Peterborough,http://opendatacommunities.org/id/unitary-authority/peterborough,Peterborough City Council,Adult Social Care,Older People,Supplies and Services,01/11/2013 00:00,594531,625.52,REVENUE,Redacted Personal Data,
Peterborough,http://opendatacommunities.org/id/unitary-authority/peterborough,Peterborough City Council,Adult Social Care,Adult Learning Disabilities,More than one Expenses Type,01/11/2013 00:00,594532,5608.52,REVENUE,Redacted Personal Data,
Peterborough,http://opendatacommunities.org/id/unitary-authority/peterborough,Peterborough City Council,Adult Social Care,Adult Learning Disabilities,Supplies and Services,01/11/2013 00:00,594533,1124,REVENUE,Redacted Personal Data,
Peterborough,http://opendatacommunities.org/id/unitary-authority/peterborough,Peterborough City Council,Adult Social Care,Adult Learning Disabilities,More than one Expenses Type,01/11/2013 00:00,594536,1660.8,REVENUE,Redacted Personal Data,
Peterborough,http://opendatacommunities.org/id/unitary-authority/peterborough,Peterborough City Council,Adult Social Care,Adult Mental Health,Supplies and Services,01/11/2013 00:00,594538,1088,REVENUE,Redacted Personal Data,
Peterborough,http://opendatacommunities.org/id/unitary-authority/peterborough,Peterborough City Council,Adult Social Care,Older People,Supplies and Services,01/11/2013 00:00,594540,618.84,REVENUE,Redacted Personal Data,
Peterborough,http://opendatacommunities.org/id/unitary-authority/peterborough,Peterborough City Council,Adult Social Care,Adult Learning Disabilities,Supplies and Services,01/11/2013 00:00,594541,3505.12,REVENUE,Redacted Personal Data,
Peterborough,http://opendatacommunities.org/id/unitary-authority/peterborough,Peterborough City Council,Adult Social Care,Older People,Supplies and Services,01/11/2013 00:00,594542,588,REVENUE,Redacted Personal Data,
Peterborough,http://opendatacommunities.org/id/unitary-authority/peterborough,Peterborough City Council,Adult Social Care,Adult Learning Disabilities,More than one Expenses Type,01/11/2013 00:00,594544,2975.56,REVENUE,Redacted Personal Data,
Peterborough,http://opendatacommunities.org/id/unitary-authority/peterborough,Peterborough City Council,Adult Social Care,Older People,More than one Expenses Type,01/11/2013 00:00,594546,865.4,REVENUE,Redacted Personal Data,
Peterborough,http://opendatacommunities.org/id/unitary-authority/peterborough,Peterborough City Council,Adult Social Care,Adult Learning Disabilities,Supplies and Services,01/11/2013 00:00,594547,580.84,REVENUE,Redacted Personal Data,
Peterborough,http://opendatacommunities.org/id/unitary-authority/peterborough,Peterborough City Council,Adult Social Care,Older People,More than one Expenses Type,01/11/2013 00:00,594548,4975.96,REVENUE,Redacted Personal Data,
Peterborough,http://opendatacommunities.org/id/unitary-authority/peterborough,Peterborough City Council,Adult Social Care,Adult Learning Disabilities,More than one Expenses Type,01/11/2013 00:00,594549,1904.12,REVENUE,Redacted Personal Data,
Peterborough,http://opendatacommunities.org/id/unitary-authority/peterborough,Peterborough City Council,Adult Social Care,Older People,Fees and Charges,01/11/2013 00:00,594550,3753.12,REVENUE,Redacted Personal Data,
Peterborough,http://opendatacommunities.org/id/unitary-authority/peterborough,Peterborough City Council,Adult Social Care,Adult Learning Disabilities,Supplies and Services,01/11/2013 00:00,594551,1158.44,REVENUE,Redacted Personal Data,
Peterborough,http://opendatacommunities.org/id/unitary-authority/peterborough,Peterborough City Council,Adult Social Care,Adult Learning Disabilities,More than one Expenses Type,01/11/2013 00:00,594552,3190.04,REVENUE,Redacted Personal Data,
Peterborough,http://opendatacommunities.org/id/unitary-authority/peterborough,Peterborough City Council,Adult Social Care,Adult Learning Disabilities,Supplies and Services,01/11/2013 00:00,594553,592.84,REVENUE,Redacted Personal Data,
Peterborough,http://opendatacommunities.org/id/unitary-authority/peterborough,Peterborough City Council,Adult Social Care,Older People,Supplies and Services,01/11/2013 00:00,594554,2136.56,REVENUE,Redacted Personal Data,
Peterborough,http://opendatacommunities.org/id/unitary-authority/peterborough,Peterborough City Council,Adult Social Care,Older People,More than one Expenses Type,01/11/2013 00:00,594557,548.51,REVENUE,Redacted Personal Data,
Peterborough,http://opendatacommunities.org/id/unitary-authority/peterborough,Peterborough City Council,Children's & Education Services - Education,Other School -related Education Functions,Transport,01/11/2013 00:00,594562,866.4,REVENUE,Goldstar Cabs Ltd,
Peterborough,http://opendatacommunities.org/id/unitary-authority/peterborough,Peterborough City Council,Children's & Education Services - Education,Other School -related Education Functions,Transport,01/11/2013 00:00,594563,1417.2,REVENUE,Goldstar Cabs Ltd,
Peterborough,http://opendatacommunities.org/id/unitary-authority/peterborough,Peterborough City Council,Children's & Education Services - Education,Other School -related Education Functions,Transport,01/11/2013 00:00,594564,874.8,REVENUE,Goldstar Cabs Ltd,
Peterborough,http://opendatacommunities.org/id/unitary-authority/peterborough,Peterborough City Council,Children's & Education Services - Education,Other School -related Education Functions,Transport,01/11/2013 00:00,594565,698.16,REVENUE,Goldstar Cabs Ltd,
Peterborough,http://opendatacommunities.org/id/unitary-authority/peterborough,Peterborough City Council,Children's & Education Services - Education,Other School -related Education Functions,Transport,01/11/2013 00:00,594566,1550.4,REVENUE,Goldstar Cabs Ltd,
Peterborough,http://opendatacommunities.org/id/unitary-authority/peterborough,Peterborough City Council,Children's & Education Services - Education,Other School -related Education Functions,Transport,01/11/2013 00:00,594567,1279.9,REVENUE,Goldstar Cabs Ltd,
Peterborough,http://opendatacommunities.org/id/unitary-authority/peterborough,Peterborough City Council,Children's & Education Services - Education,Other School -related Education Functions,Transport,01/11/2013 00:00,594568,974.16,REVENUE,Goldstar Cabs Ltd,
Peterborough,http://opendatacommunities.org/id/unitary-authority/peterborough,Peterborough City Council,Children's & Education Services - Education,Other School -related Education Functions,Transport,01/11/2013 00:00,594569,1185.6,REVENUE,Goldstar Cabs Ltd,
Peterborough,http://opendatacommunities.org/id/unitary-authority/peterborough,Peterborough City Council,Children's & Education Services - Education,Other School -related Education Functions,Transport,01/11/2013 00:00,594570,1916.4,REVENUE,Goldstar Cabs Ltd,
Peterborough,http://opendatacommunities.org/id/unitary-authority/peterborough,Peterborough City Council,Children's & Education Services - Education,Other School -related Education Functions,Transport,01/11/2013 00:00,594571,1801.2,REVENUE,Goldstar Cabs Ltd,
Peterborough,http://opendatacommunities.org/id/unitary-authority/peterborough,Peterborough City Council,Children's & Education Services - Education,Other School -related Education Functions,Transport,01/11/2013 00:00,594572,1149.12,REVENUE,Goldstar Cabs Ltd,
Peterborough,http://opendatacommunities.org/id/unitary-authority/peterborough,Peterborough City Council,Children's & Education Services - Education,Other School -related Education Functions,Transport,01/11/2013 00:00,594573,1933.9,REVENUE,Goldstar Cabs Ltd,
Peterborough,http://opendatacommunities.org/id/unitary-authority/peterborough,Peterborough City Council,Children's & Education Services - Education,Other School -related Education Functions,Transport,01/11/2013 00:00,594574,1345.2,REVENUE,Goldstar Cabs Ltd,
Peterborough,http://opendatacommunities.org/id/unitary-authority/peterborough,Peterborough City Council,Children's & Education Services - Education,Other School -related Education Functions,Transport,01/11/2013 00:00,594575,1026,REVENUE,Goldstar Cabs Ltd,
Peterborough,http://opendatacommunities.org/id/unitary-authority/peterborough,Peterborough City Council,Children's & Education Services - Education,Other School -related Education Functions,Transport,01/11/2013 00:00,594576,2622,REVENUE,Goldstar Cabs Ltd,
Peterborough,http://opendatacommunities.org/id/unitary-authority/peterborough,Peterborough City Council,Children's & Education Services - Education,Other School -related Education Functions,Transport,01/11/2013 00:00,594577,2166,REVENUE,Goldstar Cabs Ltd,
Peterborough,http://opendatacommunities.org/id/unitary-authority/peterborough,Peterborough City Council,Children's & Education Services - Education,Other School -related Education Functions,Transport,01/11/2013 00:00,594578,2484,REVENUE,Goldstar Cabs Ltd,
Peterborough,http://opendatacommunities.org/id/unitary-authority/peterborough,Peterborough City Council,Children's & Education Services - Education,Other School -related Education Functions,Transport,01/11/2013 00:00,594579,1274.4,REVENUE,Goldstar Cabs Ltd,
Peterborough,http://opendatacommunities.org/id/unitary-authority/peterborough,Peterborough City Council,Children's & Education Services - Education,Other School -related Education Functions,Transport,01/11/2013 00:00,594580,1425.6,REVENUE,Goldstar Cabs Ltd,
Peterborough,http://opendatacommunities.org/id/unitary-authority/peterborough,Peterborough City Council,Children's & Education Services - Education,Other School -related Education Functions,Transport,01/11/2013 00:00,594581,1573.2,REVENUE,Goldstar Cabs Ltd,
Peterborough,http://opendatacommunities.org/id/unitary-authority/peterborough,Peterborough City Council,Children's & Education Services - Education,Other School -related Education Functions,Transport,01/11/2013 00:00,594582,1596,REVENUE,Goldstar Cabs Ltd,
Peterborough,http://opendatacommunities.org/id/unitary-authority/peterborough,Peterborough City Council,Children's & Education Services - Education,Other School -related Education Functions,Transport,01/11/2013 00:00,594583,2249.22,REVENUE,Goldstar Cabs Ltd,
Peterborough,http://opendatacommunities.org/id/unitary-authority/peterborough,Peterborough City Council,Children's & Education Services - Education,Other School -related Education Functions,Transport,01/11/2013 00:00,594584,1402.2,REVENUE,Goldstar Cabs Ltd,
Peterborough,http://opendatacommunities.org/id/unitary-authority/peterborough,Peterborough City Council,More than one Service Area Category,More than one Service Division,Transport,01/11/2013 00:00,594585,1356.6,REVENUE,Goldstar Cabs Ltd,
Peterborough,http://opendatacommunities.org/id/unitary-authority/peterborough,Peterborough City Council,Children's & Education Services - Education,Other School -related Education Functions,Employees,01/11/2013 00:00,594598,25289.9,REVENUE,Teachers Pensions,
Peterborough,http://opendatacommunities.org/id/unitary-authority/peterborough,Peterborough City Council,Deficit/(Surplus) on Trading Undertakings,Trading Account Surpluses & Deficits,Supplies and Services,01/11/2013 00:00,594631,1208.76,REVENUE,Barron Clark Castings Ltd,
Peterborough,http://opendatacommunities.org/id/unitary-authority/peterborough,Peterborough City Council,Support Services,Support Services,Supplies and Services,01/11/2013 00:00,594659,1120,REVENUE,P McCourt Services Limited,
Peterborough,http://opendatacommunities.org/id/unitary-authority/peterborough,Peterborough City Council,More than one Service Area Category,More than one Service Division,Balance Sheet,01/11/2013 00:00,594689,2555,Balance Sheet,Learning Disability & Autism Team (IMPREST),
Peterborough,http://opendatacommunities.org/id/unitary-authority/peterborough,Peterborough City Council,Adult Social Care,Older People,More than one Expenses Type,01/11/2013 00:00,594694,2763.25,REVENUE,Fieldwork Admin Team (IMPREST),
Peterborough,http://opendatacommunities.org/id/unitary-authority/peterborough,Peterborough City Council,Children's & Education Services - Children's Social Care,Children Looked After,More than one Expenses Type,01/11/2013 00:00,594724,1556.2,REVENUE,Redacted Personal Data,
Peterborough,http://opendatacommunities.org/id/unitary-authority/peterborough,Peterborough City Council,Children's & Education Services - Education,Primary,Supplies and Services,04/11/2013 00:00,564943,560,REVENUE,Norfolk County Council,
Peterborough,http://opendatacommunities.org/id/unitary-authority/peterborough,Peterborough City Council,Highways and Transport Services,Structural Maintenance,Transport,04/11/2013 00:00,575616,10503.53,REVENUE,Atkins Limited,
Peterborough,http://opendatacommunities.org/id/unitary-authority/peterborough,Peterborough City Council,Support Services,Support Services,Premises,04/11/2013 00:00,575726,834.64,REVENUE,Capita Symonds Ltd,
Peterborough,http://opendatacommunities.org/id/unitary-authority/peterborough,Peterborough City Council,Support Services,Support Services,Premises,04/11/2013 00:00,575740,514.81,REVENUE,Capita Symonds Ltd,
Peterborough,http://opendatacommunities.org/id/unitary-authority/peterborough,Peterborough City Council,Corporate & Democratic Core,Democratic Representation & Managemetn,Supplies and Services,04/11/2013 00:00,580836,505.78,REVENUE,Serco Ltd,
Peterborough,http://opendatacommunities.org/id/unitary-authority/peterborough,Peterborough City Council,Highways and Transport Services,"Transport planning, policy and strategy",Transport,04/11/2013 00:00,581441,1242,REVENUE,Atkins Limited,
Peterborough,http://opendatacommunities.org/id/unitary-authority/peterborough,Peterborough City Council,Children's & Education Services - Children's Social Care,Children's Services - Commissioning and Social Work,Supplies and Services,04/11/2013 00:00,582295,650.54,REVENUE,Serco Ltd,
Peterborough,http://opendatacommunities.org/id/unitary-authority/peterborough,Peterborough City Council,Support Services,Support Services,Premises,04/11/2013 00:00,583001,34572.9,REVENUE,Capita Symonds Ltd,
Peterborough,http://opendatacommunities.org/id/unitary-authority/peterborough,Peterborough City Council,Children's & Education Services - Children's Social Care,Children Looked After,Premises,04/11/2013 00:00,583823,2000,REVENUE,Redacted Personal Data,
Peterborough,http://opendatacommunities.org/id/unitary-authority/peterborough,Peterborough City Council,Children's & Education Services - Education,Other Children's & Families Services,Supplies and Services,04/11/2013 00:00,584004,8073.6,REVENUE,Serco Ltd,
Peterborough,http://opendatacommunities.org/id/unitary-authority/peterborough,Peterborough City Council,Adult Social Care,Adult Learning Disabilities,Supplies and Services,04/11/2013 00:00,585973,783.6,REVENUE,Thera East Anglia,
Peterborough,http://opendatacommunities.org/id/unitary-authority/peterborough,Peterborough City Council,Adult Social Care,Adult Learning Disabilities,Supplies and Services,04/11/2013 00:00,586348,1968,REVENUE,Thera East Anglia,
Peterborough,http://opendatacommunities.org/id/unitary-authority/peterborough,Peterborough City Council,Capital,Capital,Capital Pending Update to BS,04/11/2013 00:00,586593,4933.3,CAPITAL,Atkins Limited,
Peterborough,http://opendatacommunities.org/id/unitary-authority/peterborough,Peterborough City Council,Children's & Education Services - Children's Social Care,Children Looked After,Employees,04/11/2013 00:00,587183,694.98,REVENUE,Randstad Care Ltd,
Peterborough,http://opendatacommunities.org/id/unitary-authority/peterborough,Peterborough City Council,Support Services,Support Services,Premises,04/11/2013 00:00,587667,1110.64,REVENUE,Sodexo Ltd,
Peterborough,http://opendatacommunities.org/id/unitary-authority/peterborough,Peterborough City Council,Support Services,Support Services,Supplies and Services,04/11/2013 00:00,587695,539.46,REVENUE,Ken Girvan Printers Ltd,
Peterborough,http://opendatacommunities.org/id/unitary-authority/peterborough,Peterborough City Council,More than one Service Area Category,More than one Service Division,Employees,04/11/2013 00:00,588507,2700,REVENUE,Woodrow Mercer Associates Ltd,
Peterborough,http://opendatacommunities.org/id/unitary-authority/peterborough,Peterborough City Council,Capital,Capital,Capital Pending Update to BS,04/11/2013 00:00,588517,15000,CAPITAL,Arthur Mellows Village College,
Peterborough,http://opendatacommunities.org/id/unitary-authority/peterborough,Peterborough City Council,Children's & Education Services - Children's Social Care,Children Looked After,Supplies and Services - Transfer Payments,04/11/2013 00:00,589048,1914.27,REVENUE,PC Homes,
Peterborough,http://opendatacommunities.org/id/unitary-authority/peterborough,Peterborough City Council,Children's & Education Services - Children's Social Care,Children Looked After,Supplies and Services,04/11/2013 00:00,589247,536.69,REVENUE,Walter Clarke EFG,
Peterborough,http://opendatacommunities.org/id/unitary-authority/peterborough,Peterborough City Council,Children's & Education Services - Children's Social Care,More than one Service Division,Supplies and Services - Transfer Payments,04/11/2013 00:00,589619,13333.72,REVENUE,Windows for Children,
Peterborough,http://opendatacommunities.org/id/unitary-authority/peterborough,Peterborough City Council,Support Services,Support Services,Premises,04/11/2013 00:00,589683,1837.18,REVENUE,Beebys Ltd,
Peterborough,http://opendatacommunities.org/id/unitary-authority/peterborough,Peterborough City Council,Children's & Education Services - Children's Social Care,Other Children's & Families Services,Employees,04/11/2013 00:00,589694,1684.08,REVENUE,Randstad Care Ltd,
Peterborough,http://opendatacommunities.org/id/unitary-authority/peterborough,Peterborough City Council,Adult Social Care,Older People,Supplies and Services,04/11/2013 00:00,589822,3600,REVENUE,LESTER HALL APARTMENTS LTD,
Peterborough,http://opendatacommunities.org/id/unitary-authority/peterborough,Peterborough City Council,Children's & Education Services - Children's Social Care,Other Children's & Families Services,Employees,04/11/2013 00:00,589844,960,REVENUE,In-Trac Training & Consultancy Services,
Peterborough,http://opendatacommunities.org/id/unitary-authority/peterborough,Peterborough City Council,Children's & Education Services - Children's Social Care,Other Children's & Families Services,Employees,04/11/2013 00:00,589847,1920,REVENUE,In-Trac Training & Consultancy Services,
Peterborough,http://opendatacommunities.org/id/unitary-authority/peterborough,Peterborough City Council,More than one Service Area Category,More than one Service Division,Supplies and Services,04/11/2013 00:00,590012,598.28,REVENUE,Vodafone Ltd,
Peterborough,http://opendatacommunities.org/id/unitary-authority/peterborough,Peterborough City Council,Adult Social Care,Adult Mental Health,Third Party Payments,04/11/2013 00:00,590093,2228.5,REVENUE,VoiceAbility,
Peterborough,http://opendatacommunities.org/id/unitary-authority/peterborough,Peterborough City Council,Environmental and Regulatory Services,Regulatory services,Supplies and Services,04/11/2013 00:00,590578,8340,REVENUE,RH Environmental Ltd,
Peterborough,http://opendatacommunities.org/id/unitary-authority/peterborough,Peterborough City Council,Capital,Capital,Capital Pending Update to BS,04/11/2013 00:00,590588,5850,CAPITAL,Watson and Cox (Construction) Ltd,
Peterborough,http://opendatacommunities.org/id/unitary-authority/peterborough,Peterborough City Council,Capital,Capital,Capital Pending Update to BS,04/11/2013 00:00,590654,34058.33,CAPITAL,Ringway Infrastructure Services,
Peterborough,http://opendatacommunities.org/id/unitary-authority/peterborough,Peterborough City Council,Children's & Education Services - Children's Social Care,Children's Services - Commissioning and Social Work,Supplies and Services,04/11/2013 00:00,590840,1260,REVENUE,P'boro Serviced Accommodation,
Peterborough,http://opendatacommunities.org/id/unitary-authority/peterborough,Peterborough City Council,Adult Social Care,Older People,Supplies and Services,04/11/2013 00:00,590987,2090.64,REVENUE,Peterborough Home Care (CAREWATCH)  (F.P.S.),
Peterborough,http://opendatacommunities.org/id/unitary-authority/peterborough,Peterborough City Council,Adult Social Care,Older People,Supplies and Services,04/11/2013 00:00,590999,603.61,REVENUE,Peterborough Home Care (CAREWATCH)  (F.P.S.),
Peterborough,http://opendatacommunities.org/id/unitary-authority/peterborough,Peterborough City Council,Adult Social Care,Older People,Supplies and Services,04/11/2013 00:00,591004,980.85,REVENUE,Peterborough Home Care (CAREWATCH)  (F.P.S.),
Peterborough,http://opendatacommunities.org/id/unitary-authority/peterborough,Peterborough City Council,Adult Social Care,Older People,Supplies and Services,04/11/2013 00:00,591009,649.43,REVENUE,Peterborough Home Care (CAREWATCH)  (F.P.S.),
Peterborough,http://opendatacommunities.org/id/unitary-authority/peterborough,Peterborough City Council,Adult Social Care,Older People,Supplies and Services,04/11/2013 00:00,591010,624.1,REVENUE,Peterborough Home Care (CAREWATCH)  (F.P.S.),
Peterborough,http://opendatacommunities.org/id/unitary-authority/peterborough,Peterborough City Council,Adult Social Care,Older People,Supplies and Services,04/11/2013 00:00,591011,2237.48,REVENUE,Peterborough Home Care (CAREWATCH)  (F.P.S.),
Peterborough,http://opendatacommunities.org/id/unitary-authority/peterborough,Peterborough City Council,Adult Social Care,Older People,Supplies and Services,04/11/2013 00:00,591012,2107.95,REVENUE,Peterborough Home Care (CAREWATCH)  (F.P.S.),
Peterborough,http://opendatacommunities.org/id/unitary-authority/peterborough,Peterborough City Council,Adult Social Care,Older People,Supplies and Services,04/11/2013 00:00,591014,1920.4,REVENUE,Peterborough Home Care (CAREWATCH)  (F.P.S.),
Peterborough,http://opendatacommunities.org/id/unitary-authority/peterborough,Peterborough City Council,Adult Social Care,Older People,Supplies and Services,04/11/2013 00:00,591017,1539.63,REVENUE,Peterborough Home Care (CAREWATCH)  (F.P.S.),
Peterborough,http://opendatacommunities.org/id/unitary-authority/peterborough,Peterborough City Council,Adult Social Care,Older People,Supplies and Services,04/11/2013 00:00,591019,2604.01,REVENUE,Peterborough Home Care (CAREWATCH)  (F.P.S.),
Peterborough,http://opendatacommunities.org/id/unitary-authority/peterborough,Peterborough City Council,Adult Social Care,Older People,Supplies and Services,04/11/2013 00:00,591024,709.62,REVENUE,Peterborough Home Care (CAREWATCH)  (F.P.S.),
Peterborough,http://opendatacommunities.org/id/unitary-authority/peterborough,Peterborough City Council,Adult Social Care,Older People,Supplies and Services,04/11/2013 00:00,591025,2546.14,REVENUE,Peterborough Home Care (CAREWATCH)  (F.P.S.),
Peterborough,http://opendatacommunities.org/id/unitary-authority/peterborough,Peterborough City Council,Adult Social Care,Older People,Supplies and Services,04/11/2013 00:00,591091,1437.54,REVENUE,BUPA Care  Homes,
Peterborough,http://opendatacommunities.org/id/unitary-authority/peterborough,Peterborough City Council,Support Services,Support Services,Supplies and Services,04/11/2013 00:00,591178,787.44,REVENUE,Speed,
Peterborough,http://opendatacommunities.org/id/unitary-authority/peterborough,Peterborough City Council,Adult Social Care,Adult Learning Disabilities,Supplies and Services,04/11/2013 00:00,591215,13338.52,REVENUE,Mencap,
Peterborough,http://opendatacommunities.org/id/unitary-authority/peterborough,Peterborough City Council,Adult Social Care,Adult Learning Disabilities,Supplies and Services,04/11/2013 00:00,591338,815.4,REVENUE,Voyage,
Peterborough,http://opendatacommunities.org/id/unitary-authority/peterborough,Peterborough City Council,Adult Social Care,Adult Learning Disabilities,Supplies and Services,04/11/2013 00:00,591662,1838.48,REVENUE,The Huntercombe Group,
Peterborough,http://opendatacommunities.org/id/unitary-authority/peterborough,Peterborough City Council,Adult Social Care,Adult Learning Disabilities,Supplies and Services,04/11/2013 00:00,591664,6385.2,REVENUE,NORTH EAST AUTISM SOCIETY,
Peterborough,http://opendatacommunities.org/id/unitary-authority/peterborough,Peterborough City Council,Deficit/(Surplus) on Trading Undertakings,Trading Account Surpluses & Deficits,Supplies and Services,04/11/2013 00:00,591708,3202.02,REVENUE,Godric Engineering Ltd,
Peterborough,http://opendatacommunities.org/id/unitary-authority/peterborough,Peterborough City Council,Housing Services,Private Sector Housing Renewal,Supplies and Services,04/11/2013 00:00,591734,1433.1,REVENUE,Rawheat Heating & Plumbing Eng.,
Peterborough,http://opendatacommunities.org/id/unitary-authority/peterborough,Peterborough City Council,Capital,Capital,Capital Pending Update to BS,04/11/2013 00:00,591823,17668.8,CAPITAL,Pinsent Masons,
Peterborough,http://opendatacommunities.org/id/unitary-authority/peterborough,Peterborough City Council,Capital,Capital,Capital Pending Update to BS,04/11/2013 00:00,591875,23261.14,CAPITAL,R F Blount,
Peterborough,http://opendatacommunities.org/id/unitary-authority/peterborough,Peterborough City Council,Capital,Capital,Capital Pending Update to BS,04/11/2013 00:00,591878,18444.02,CAPITAL,R F Blount,
Peterborough,http://opendatacommunities.org/id/unitary-authority/peterborough,Peterborough City Council,Adult Social Care,Older People,Supplies and Services,04/11/2013 00:00,592440,2400.65,REVENUE,Peterborough Home Care (CAREWATCH)  (F.P.S.),
Peterborough,http://opendatacommunities.org/id/unitary-authority/peterborough,Peterborough City Council,Adult Social Care,Older People,Supplies and Services,04/11/2013 00:00,592442,3388.85,REVENUE,Peterborough Home Care (CAREWATCH)  (F.P.S.),
Peterborough,http://opendatacommunities.org/id/unitary-authority/peterborough,Peterborough City Council,Adult Social Care,Older People,Supplies and Services,04/11/2013 00:00,592486,1345.11,REVENUE,Peterborough Home Care (CAREWATCH)  (F.P.S.),
Peterborough,http://opendatacommunities.org/id/unitary-authority/peterborough,Peterborough City Council,Adult Social Care,Older People,Supplies and Services,04/11/2013 00:00,592488,574.81,REVENUE,Peterborough Home Care (CAREWATCH)  (F.P.S.),
Peterborough,http://opendatacommunities.org/id/unitary-authority/peterborough,Peterborough City Council,Adult Social Care,Older People,Supplies and Services,04/11/2013 00:00,592492,2115.52,REVENUE,Peterborough Home Care (CAREWATCH)  (F.P.S.),
Peterborough,http://opendatacommunities.org/id/unitary-authority/peterborough,Peterborough City Council,Children's & Education Services - Children's Social Care,Children Looked After,Premises,04/11/2013 00:00,592906,643.5,REVENUE,The K A Wing Group Ltd,
Peterborough,http://opendatacommunities.org/id/unitary-authority/peterborough,Peterborough City Council,Drainage and Flood Levies,Precepts & Levies,Premises,04/11/2013 00:00,592983,137722,REVENUE,North Level Dist.  Int. Drainage Board,
Peterborough,http://opendatacommunities.org/id/unitary-authority/peterborough,Peterborough City Council,Adult Social Care,Older People,Supplies and Services,04/11/2013 00:00,593084,743.32,REVENUE,Peterborough Home Care (CAREWATCH)  (F.P.S.),
Peterborough,http://opendatacommunities.org/id/unitary-authority/peterborough,Peterborough City Council,Adult Social Care,Adult Learning Disabilities,Supplies and Services,04/11/2013 00:00,593329,2204.8,REVENUE,Thera East Anglia,
Peterborough,http://opendatacommunities.org/id/unitary-authority/peterborough,Peterborough City Council,Support Services,Support Services,Supplies and Services,04/11/2013 00:00,593771,20869.14,REVENUE,Edenred,
Peterborough,http://opendatacommunities.org/id/unitary-authority/peterborough,Peterborough City Council,More than one Service Area Category,More than one Service Division,Premises,04/11/2013 00:00,593810,5182.14,REVENUE,Corona Energy Retail 4 Limited,
Peterborough,http://opendatacommunities.org/id/unitary-authority/peterborough,Peterborough City Council,Adult Social Care,Adult Mental Health,Supplies and Services,04/11/2013 00:00,593825,777.83,REVENUE,Friendly Faces,
Peterborough,http://opendatacommunities.org/id/unitary-authority/peterborough,Peterborough City Council,Adult Social Care,Older People,Supplies and Services,04/11/2013 00:00,593828,1120,REVENUE,Custom Care,
Peterborough,http://opendatacommunities.org/id/unitary-authority/peterborough,Peterborough City Council,Adult Social Care,Older People,Supplies and Services,04/11/2013 00:00,593834,1904.19,REVENUE,TOTAL HOME CARE SOLUTIONS,
Peterborough,http://opendatacommunities.org/id/unitary-authority/peterborough,Peterborough City Council,Adult Social Care,Older People,Supplies and Services,04/11/2013 00:00,593836,631.38,REVENUE,TOTAL HOME CARE SOLUTIONS,
Peterborough,http://opendatacommunities.org/id/unitary-authority/peterborough,Peterborough City Council,Adult Social Care,Older People,Supplies and Services,04/11/2013 00:00,593841,734.36,REVENUE,TOTAL HOME CARE SOLUTIONS,
Peterborough,http://opendatacommunities.org/id/unitary-authority/peterborough,Peterborough City Council,Adult Social Care,Older People,Supplies and Services,04/11/2013 00:00,593859,1982.4,REVENUE,TOTAL HOME CARE SOLUTIONS,
Peterborough,http://opendatacommunities.org/id/unitary-authority/peterborough,Peterborough City Council,Adult Social Care,Older People,Supplies and Services,04/11/2013 00:00,593861,710.32,REVENUE,TOTAL HOME CARE SOLUTIONS,
Peterborough,http://opendatacommunities.org/id/unitary-authority/peterborough,Peterborough City Council,Adult Social Care,Older People,Supplies and Services,04/11/2013 00:00,593862,595.71,REVENUE,TOTAL HOME CARE SOLUTIONS,
Peterborough,http://opendatacommunities.org/id/unitary-authority/peterborough,Peterborough City Council,Adult Social Care,Older People,Supplies and Services,04/11/2013 00:00,593863,2812.02,REVENUE,TOTAL HOME CARE SOLUTIONS,
Peterborough,http://opendatacommunities.org/id/unitary-authority/peterborough,Peterborough City Council,Adult Social Care,Older People,Supplies and Services,04/11/2013 00:00,593866,684.31,REVENUE,TOTAL HOME CARE SOLUTIONS,
Peterborough,http://opendatacommunities.org/id/unitary-authority/peterborough,Peterborough City Council,Adult Social Care,Older People,Supplies and Services,04/11/2013 00:00,593867,772,REVENUE,TOTAL HOME CARE SOLUTIONS,
Peterborough,http://opendatacommunities.org/id/unitary-authority/peterborough,Peterborough City Council,Adult Social Care,Adult Mental Health,Supplies and Services,04/11/2013 00:00,593868,550.54,REVENUE,Friendly Faces,
Peterborough,http://opendatacommunities.org/id/unitary-authority/peterborough,Peterborough City Council,Adult Social Care,Older People,Supplies and Services,04/11/2013 00:00,593874,1584.13,REVENUE,TOTAL HOME CARE SOLUTIONS,
Peterborough,http://opendatacommunities.org/id/unitary-authority/peterborough,Peterborough City Council,Adult Social Care,Older People,Supplies and Services,04/11/2013 00:00,593880,681.3,REVENUE,K2 CARE LTD,
Peterborough,http://opendatacommunities.org/id/unitary-authority/peterborough,Peterborough City Council,Adult Social Care,Adult Learning Disabilities,Supplies and Services,04/11/2013 00:00,593887,837.88,REVENUE,TOTAL HOME CARE SOLUTIONS,
Peterborough,http://opendatacommunities.org/id/unitary-authority/peterborough,Peterborough City Council,Adult Social Care,Older People,Supplies and Services,04/11/2013 00:00,593889,1820.86,REVENUE,K2 CARE LTD,
Peterborough,http://opendatacommunities.org/id/unitary-authority/peterborough,Peterborough City Council,Adult Social Care,Older People,Supplies and Services,04/11/2013 00:00,593892,1611.26,REVENUE,K2 CARE LTD,
Peterborough,http://opendatacommunities.org/id/unitary-authority/peterborough,Peterborough City Council,Adult Social Care,Older People,Supplies and Services,04/11/2013 00:00,593894,746.25,REVENUE,K2 CARE LTD,
Peterborough,http://opendatacommunities.org/id/unitary-authority/peterborough,Peterborough City Council,Adult Social Care,Adult Learning Disabilities,Supplies and Services,04/11/2013 00:00,593896,1836.6,REVENUE,TOTAL HOME CARE SOLUTIONS,
Peterborough,http://opendatacommunities.org/id/unitary-authority/peterborough,Peterborough City Council,Adult Social Care,Older People,Supplies and Services,04/11/2013 00:00,593900,808.44,REVENUE,K2 CARE LTD,
Peterborough,http://opendatacommunities.org/id/unitary-authority/peterborough,Peterborough City Council,Adult Social Care,Older People,Supplies and Services,04/11/2013 00:00,593909,2379.19,REVENUE,K2 CARE LTD,
Peterborough,http://opendatacommunities.org/id/unitary-authority/peterborough,Peterborough City Council,Adult Social Care,Older People,Supplies and Services,04/11/2013 00:00,593913,793.96,REVENUE,K2 CARE LTD,
Peterborough,http://opendatacommunities.org/id/unitary-authority/peterborough,Peterborough City Council,Adult Social Care,Older People,Supplies and Services,04/11/2013 00:00,593917,723.77,REVENUE,K2 CARE LTD,
Peterborough,http://opendatacommunities.org/id/unitary-authority/peterborough,Peterborough City Council,Adult Social Care,Older People,Supplies and Services,04/11/2013 00:00,593918,1062.81,REVENUE,TOTAL HOME CARE SOLUTIONS,
Peterborough,http://opendatacommunities.org/id/unitary-authority/peterborough,Peterborough City Council,Adult Social Care,Older People,Supplies and Services,04/11/2013 00:00,593921,1201.83,REVENUE,K2 CARE LTD,
Peterborough,http://opendatacommunities.org/id/unitary-authority/peterborough,Peterborough City Council,Adult Social Care,Older People,Supplies and Services,04/11/2013 00:00,593927,842.76,REVENUE,K2 CARE LTD,
Peterborough,http://opendatacommunities.org/id/unitary-authority/peterborough,Peterborough City Council,Adult Social Care,Older People,Supplies and Services,04/11/2013 00:00,593931,613.09,REVENUE,TOTAL HOME CARE SOLUTIONS,
Peterborough,http://opendatacommunities.org/id/unitary-authority/peterborough,Peterborough City Council,Adult Social Care,Older People,Supplies and Services,04/11/2013 00:00,593932,679.16,REVENUE,K2 CARE LTD,
Peterborough,http://opendatacommunities.org/id/unitary-authority/peterborough,Peterborough City Council,Adult Social Care,Adult Learning Disabilities,Supplies and Services,04/11/2013 00:00,593936,840,REVENUE,Peterborough Cars,
Peterborough,http://opendatacommunities.org/id/unitary-authority/peterborough,Peterborough City Council,Adult Social Care,Older People,Supplies and Services,04/11/2013 00:00,593938,1088.8,REVENUE,K2 CARE LTD,
Peterborough,http://opendatacommunities.org/id/unitary-authority/peterborough,Peterborough City Council,Adult Social Care,Adult Learning Disabilities,Supplies and Services,04/11/2013 00:00,593939,840,REVENUE,Peterborough Cars,
Peterborough,http://opendatacommunities.org/id/unitary-authority/peterborough,Peterborough City Council,Adult Social Care,Older People,Supplies and Services,04/11/2013 00:00,593941,750.58,REVENUE,K2 CARE LTD,
Peterborough,http://opendatacommunities.org/id/unitary-authority/peterborough,Peterborough City Council,Adult Social Care,Adult Learning Disabilities,Supplies and Services,04/11/2013 00:00,593945,840,REVENUE,Peterborough Cars,
Peterborough,http://opendatacommunities.org/id/unitary-authority/peterborough,Peterborough City Council,Adult Social Care,Adult Learning Disabilities,Supplies and Services,04/11/2013 00:00,593954,4802.24,REVENUE,K2 CARE LTD,
Peterborough,http://opendatacommunities.org/id/unitary-authority/peterborough,Peterborough City Council,Adult Social Care,Older People,Supplies and Services,04/11/2013 00:00,593957,2214.11,REVENUE,K2 CARE LTD,
Peterborough,http://opendatacommunities.org/id/unitary-authority/peterborough,Peterborough City Council,Adult Social Care,Older People,Supplies and Services,04/11/2013 00:00,593960,722.71,REVENUE,K2 CARE LTD,
Peterborough,http://opendatacommunities.org/id/unitary-authority/peterborough,Peterborough City Council,Adult Social Care,Older People,Supplies and Services,04/11/2013 00:00,593963,1707.7,REVENUE,K2 CARE LTD,
Peterborough,http://opendatacommunities.org/id/unitary-authority/peterborough,Peterborough City Council,Adult Social Care,Older People,Supplies and Services,04/11/2013 00:00,593971,2666.24,REVENUE,K2 CARE LTD,
Peterborough,http://opendatacommunities.org/id/unitary-authority/peterborough,Peterborough City Council,Adult Social Care,Older People,Supplies and Services,04/11/2013 00:00,593974,1878.48,REVENUE,K2 CARE LTD,
Peterborough,http://opendatacommunities.org/id/unitary-authority/peterborough,Peterborough City Council,Adult Social Care,Older People,Supplies and Services,04/11/2013 00:00,593978,722.24,REVENUE,K2 CARE LTD,
Peterborough,http://opendatacommunities.org/id/unitary-authority/peterborough,Peterborough City Council,Adult Social Care,Older People,Supplies and Services,04/11/2013 00:00,593988,4802.24,REVENUE,K2 CARE LTD,
Peterborough,http://opendatacommunities.org/id/unitary-authority/peterborough,Peterborough City Council,Adult Social Care,Older People,Supplies and Services,04/11/2013 00:00,593990,844.22,REVENUE,K2 CARE LTD,
Peterborough,http://opendatacommunities.org/id/unitary-authority/peterborough,Peterborough City Council,Adult Social Care,Adult Learning Disabilities,Supplies and Services,04/11/2013 00:00,593993,7600,REVENUE,Next Steps Community Care Ltd,
Peterborough,http://opendatacommunities.org/id/unitary-authority/peterborough,Peterborough City Council,Adult Social Care,Older People,Supplies and Services,04/11/2013 00:00,593994,1967.87,REVENUE,K2 CARE LTD,
Peterborough,http://opendatacommunities.org/id/unitary-authority/peterborough,Peterborough City Council,Adult Social Care,Adult Learning Disabilities,Supplies and Services,04/11/2013 00:00,593995,6036,REVENUE,Next Steps Community Care Ltd,
Peterborough,http://opendatacommunities.org/id/unitary-authority/peterborough,Peterborough City Council,Adult Social Care,Older People,Supplies and Services,04/11/2013 00:00,593998,2474.53,REVENUE,K2 CARE LTD,
Peterborough,http://opendatacommunities.org/id/unitary-authority/peterborough,Peterborough City Council,Adult Social Care,Adult Learning Disabilities,Supplies and Services,04/11/2013 00:00,593999,9576,REVENUE,Next Steps Community Care Ltd,
Peterborough,http://opendatacommunities.org/id/unitary-authority/peterborough,Peterborough City Council,Adult Social Care,Adult Learning Disabilities,Supplies and Services,04/11/2013 00:00,594001,7140,REVENUE,Next Steps Community Care Ltd,
Peterborough,http://opendatacommunities.org/id/unitary-authority/peterborough,Peterborough City Council,Adult Social Care,Older People,Supplies and Services,04/11/2013 00:00,594002,2152.84,REVENUE,K2 CARE LTD,
Peterborough,http://opendatacommunities.org/id/unitary-authority/peterborough,Peterborough City Council,Adult Social Care,Older People,Supplies and Services,04/11/2013 00:00,594007,1933.19,REVENUE,K2 CARE LTD,
Peterborough,http://opendatacommunities.org/id/unitary-authority/peterborough,Peterborough City Council,Adult Social Care,Adult Learning Disabilities,Supplies and Services,04/11/2013 00:00,594041,1974,REVENUE,Next Steps Community Care Ltd,
Peterborough,http://opendatacommunities.org/id/unitary-authority/peterborough,Peterborough City Council,Adult Social Care,Adult Learning Disabilities,Supplies and Services,04/11/2013 00:00,594044,2604,REVENUE,Next Steps Community Care Ltd,
Peterborough,http://opendatacommunities.org/id/unitary-authority/peterborough,Peterborough City Council,Adult Social Care,Adult Learning Disabilities,Supplies and Services,04/11/2013 00:00,594050,6076,REVENUE,Next Steps Community Care Ltd,
Peterborough,http://opendatacommunities.org/id/unitary-authority/peterborough,Peterborough City Council,Adult Social Care,Adult Learning Disabilities,Supplies and Services,04/11/2013 00:00,594052,5075,REVENUE,Next Steps Community Care Ltd,
Peterborough,http://opendatacommunities.org/id/unitary-authority/peterborough,Peterborough City Council,Adult Social Care,Adult Learning Disabilities,Supplies and Services,04/11/2013 00:00,594175,798,REVENUE,Peterborough Cars,
Peterborough,http://opendatacommunities.org/id/unitary-authority/peterborough,Peterborough City Council,Adult Social Care,Adult Learning Disabilities,Supplies and Services,04/11/2013 00:00,594176,840,REVENUE,Peterborough Cars,
Peterborough,http://opendatacommunities.org/id/unitary-authority/peterborough,Peterborough City Council,Adult Social Care,Adult Learning Disabilities,Supplies and Services,04/11/2013 00:00,594177,840,REVENUE,Peterborough Cars,
Peterborough,http://opendatacommunities.org/id/unitary-authority/peterborough,Peterborough City Council,Adult Social Care,Adult Learning Disabilities,Supplies and Services,04/11/2013 00:00,594178,840,REVENUE,Peterborough Cars,
Peterborough,http://opendatacommunities.org/id/unitary-authority/peterborough,Peterborough City Council,Adult Social Care,Older People,Supplies and Services,04/11/2013 00:00,594560,651.42,REVENUE,Hales Group Ltd,
Peterborough,http://opendatacommunities.org/id/unitary-authority/peterborough,Peterborough City Council,Adult Social Care,Older People,Supplies and Services,04/11/2013 00:00,594561,781.31,REVENUE,Hales Group Ltd,
Peterborough,http://opendatacommunities.org/id/unitary-authority/peterborough,Peterborough City Council,Adult Social Care,Older People,Supplies and Services,04/11/2013 00:00,594592,2642.87,REVENUE,Hales Group Ltd,
Peterborough,http://opendatacommunities.org/id/unitary-authority/peterborough,Peterborough City Council,Adult Social Care,Older People,Supplies and Services,04/11/2013 00:00,594595,700.89,REVENUE,Hales Group Ltd,
Peterborough,http://opendatacommunities.org/id/unitary-authority/peterborough,Peterborough City Council,Adult Social Care,Older People,Supplies and Services,04/11/2013 00:00,594596,625.04,REVENUE,Hales Group Ltd,
Peterborough,http://opendatacommunities.org/id/unitary-authority/peterborough,Peterborough City Council,Adult Social Care,Adult Learning Disabilities,Supplies and Services,04/11/2013 00:00,594601,7773.1,REVENUE,Hales Group Ltd,
Peterborough,http://opendatacommunities.org/id/unitary-authority/peterborough,Peterborough City Council,Adult Social Care,Older People,Supplies and Services,04/11/2013 00:00,594602,510.75,REVENUE,Hales Group Ltd,
Peterborough,http://opendatacommunities.org/id/unitary-authority/peterborough,Peterborough City Council,Support Services,Support Services,Third Party Payments,04/11/2013 00:00,594640,987123.05,REVENUE,Serco Ltd,
Peterborough,http://opendatacommunities.org/id/unitary-authority/peterborough,Peterborough City Council,Adult Social Care,Adult Learning Disabilities,Supplies and Services,04/11/2013 00:00,594742,5759.88,REVENUE,Positive Steps (Care Services) Ltd,
Peterborough,http://opendatacommunities.org/id/unitary-authority/peterborough,Peterborough City Council,Adult Social Care,Older People,Supplies and Services,04/11/2013 00:00,594745,7600,REVENUE,Next Steps Community Care Ltd,
Peterborough,http://opendatacommunities.org/id/unitary-authority/peterborough,Peterborough City Council,Adult Social Care,Adult Learning Disabilities,Supplies and Services,04/11/2013 00:00,594747,1958,REVENUE,Next Steps Community Care Ltd,
Peterborough,http://opendatacommunities.org/id/unitary-authority/peterborough,Peterborough City Council,Adult Social Care,Adult Learning Disabilities,Supplies and Services,04/11/2013 00:00,594750,2930,REVENUE,Next Steps Community Care Ltd,
Peterborough,http://opendatacommunities.org/id/unitary-authority/peterborough,Peterborough City Council,Adult Social Care,Adult Learning Disabilities,Supplies and Services,04/11/2013 00:00,594752,8988,REVENUE,Next Steps Community Care Ltd,
Peterborough,http://opendatacommunities.org/id/unitary-authority/peterborough,Peterborough City Council,Adult Social Care,Older People,Supplies and Services,04/11/2013 00:00,594798,1293.96,REVENUE,Park Vista Care Home,
Peterborough,http://opendatacommunities.org/id/unitary-authority/peterborough,Peterborough City Council,Planning Services,Economic Development,Employees,04/11/2013 00:00,594814,1536,REVENUE,The Synergy Group,
Peterborough,http://opendatacommunities.org/id/unitary-authority/peterborough,Peterborough City Council,Environmental and Regulatory Services,Community Safety (CCTV),Employees,04/11/2013 00:00,594817,720,REVENUE,The Synergy Group,
Peterborough,http://opendatacommunities.org/id/unitary-authority/peterborough,Peterborough City Council,Environmental and Regulatory Services,Community Safety (CCTV),Employees,04/11/2013 00:00,594818,720,REVENUE,The Synergy Group,
Peterborough,http://opendatacommunities.org/id/unitary-authority/peterborough,Peterborough City Council,Highways and Transport Services,"Transport planning, policy and strategy",Supplies and Services,04/11/2013 00:00,594821,7734,REVENUE,Electric Pedals,
Peterborough,http://opendatacommunities.org/id/unitary-authority/peterborough,Peterborough City Council,Highways and Transport Services,"Transport planning, policy and strategy",Supplies and Services,04/11/2013 00:00,594823,3703.5,REVENUE,Electric Pedals,
Peterborough,http://opendatacommunities.org/id/unitary-authority/peterborough,Peterborough City Council,Adult Social Care,Adult Learning Disabilities,Supplies and Services,04/11/2013 00:00,594834,6944,REVENUE,Next Steps Community Care Ltd,
Peterborough,http://opendatacommunities.org/id/unitary-authority/peterborough,Peterborough City Council,Adult Social Care,Adult Learning Disabilities,Supplies and Services,04/11/2013 00:00,594835,1736,REVENUE,Next Steps Community Care Ltd,
Peterborough,http://opendatacommunities.org/id/unitary-authority/peterborough,Peterborough City Council,Children's & Education Services - Children's Social Care,Children Looked After,Employees,04/11/2013 00:00,594854,792,REVENUE,Engage Education,
Peterborough,http://opendatacommunities.org/id/unitary-authority/peterborough,Peterborough City Council,Children's & Education Services - Children's Social Care,Children Looked After,Employees,04/11/2013 00:00,594877,2376,REVENUE,Engage Education,
Peterborough,http://opendatacommunities.org/id/unitary-authority/peterborough,Peterborough City Council,Children's & Education Services - Children's Social Care,Children Looked After,Supplies and Services - Transfer Payments,04/11/2013 00:00,594968,3214.28,REVENUE,Sixteen Plus Limited,
Peterborough,http://opendatacommunities.org/id/unitary-authority/peterborough,Peterborough City Council,Cultural and Related Services,Culture & Heritage,Supplies and Services,04/11/2013 00:00,595030,9780,REVENUE,GSL Dardan Ltd,
Peterborough,http://opendatacommunities.org/id/unitary-authority/peterborough,Peterborough City Council,Children's & Education Services - Children's Social Care,Children's Services - Commissioning and Social Work,Premises,04/11/2013 00:00,595033,664.9,REVENUE,Corona Energy Retail 4 Limited,
Peterborough,http://opendatacommunities.org/id/unitary-authority/peterborough,Peterborough City Council,More than one Service Area Category,More than one Service Division,Premises,04/11/2013 00:00,595037,1228.95,REVENUE,Corona Energy Retail 4 Limited,
Peterborough,http://opendatacommunities.org/id/unitary-authority/peterborough,Peterborough City Council,More than one Service Area Category,More than one Service Division,Premises,04/11/2013 00:00,595039,800.23,REVENUE,Corona Energy Retail 4 Limited,
Peterborough,http://opendatacommunities.org/id/unitary-authority/peterborough,Peterborough City Council,More than one Service Area Category,More than one Service Division,Balance Sheet,04/11/2013 00:00,595050,812696.95,Balance Sheet,Teachers Pensions,
Peterborough,http://opendatacommunities.org/id/unitary-authority/peterborough,Peterborough City Council,Capital,Capital,Capital Pending Update to BS,04/11/2013 00:00,595063,1560,CAPITAL,E.ON Energy,
Peterborough,http://opendatacommunities.org/id/unitary-authority/peterborough,Peterborough City Council,Children's & Education Services - Children's Social Care,Other Children's & Families Services,Supplies and Services,05/11/2013 00:00,480173,-1440,REVENUE,"Jerman, Mr Anthony",
Peterborough,http://opendatacommunities.org/id/unitary-authority/peterborough,Peterborough City Council,Children's & Education Services - Children's Social Care,Other Children's & Families Services,Supplies and Services,05/11/2013 00:00,520596,-4260,REVENUE,"Bennett, Mr Jonathan",
Peterborough,http://opendatacommunities.org/id/unitary-authority/peterborough,Peterborough City Council,Adult Social Care,Support Services & Management Costs,Supplies and Services,05/11/2013 00:00,578996,-2500,REVENUE,Islington Council,
Peterborough,http://opendatacommunities.org/id/unitary-authority/peterborough,Peterborough City Council,Environmental and Regulatory Services,Community Safety (CCTV),Supplies and Services,06/11/2013 00:00,552625,552,REVENUE,Quadrant Security Group Ltd,
Peterborough,http://opendatacommunities.org/id/unitary-authority/peterborough,Peterborough City Council,Environmental and Regulatory Services,Community Safety (CCTV),Supplies and Services,06/11/2013 00:00,554942,1186.8,REVENUE,Quadrant Security Group Ltd,
Peterborough,http://opendatacommunities.org/id/unitary-authority/peterborough,Peterborough City Council,Adult Social Care,Older People,Supplies and Services,06/11/2013 00:00,558050,625.95,REVENUE,Laybrook,
Peterborough,http://opendatacommunities.org/id/unitary-authority/peterborough,Peterborough City Council,Children's & Education Services - Children's Social Care,Other Children's & Families Services,Employees,06/11/2013 00:00,576256,1627.44,REVENUE,Sanctuary Personnel Ltd,
Peterborough,http://opendatacommunities.org/id/unitary-authority/peterborough,Peterborough City Council,Children's & Education Services - Children's Social Care,Children's Services - Commissioning and Social Work,Employees,06/11/2013 00:00,578872,1354.37,REVENUE,Pulse,
Peterborough,http://opendatacommunities.org/id/unitary-authority/peterborough,Peterborough City Council,Children's & Education Services - Children's Social Care,Other Children's & Families Services,Supplies and Services,06/11/2013 00:00,579158,9452.4,REVENUE,The Big Word Interpreting Services Ltd,
Peterborough,http://opendatacommunities.org/id/unitary-authority/peterborough,Peterborough City Council,Children's & Education Services - Children's Social Care,Other Children's & Families Services,Employees,06/11/2013 00:00,579799,1396.94,REVENUE,Sanctuary Personnel Ltd,
Peterborough,http://opendatacommunities.org/id/unitary-authority/peterborough,Peterborough City Council,Children's & Education Services - Children's Social Care,Other Children's & Families Services,Employees,06/11/2013 00:00,579830,1508.88,REVENUE,Sanctuary Personnel Ltd,
Peterborough,http://opendatacommunities.org/id/unitary-authority/peterborough,Peterborough City Council,Children's & Education Services - Children's Social Care,Children Looked After,Supplies and Services - Transfer Payments,06/11/2013 00:00,580018,12000,REVENUE,Advanced Childcare,
Peterborough,http://opendatacommunities.org/id/unitary-authority/peterborough,Peterborough City Council,Children's & Education Services - Children's Social Care,Children Looked After,Supplies and Services - Transfer Payments,06/11/2013 00:00,580020,12400,REVENUE,Advanced Childcare,
Peterborough,http://opendatacommunities.org/id/unitary-authority/peterborough,Peterborough City Council,Children's & Education Services - Children's Social Care,Children Looked After,Supplies and Services - Transfer Payments,06/11/2013 00:00,580022,12400,REVENUE,Advanced Childcare,
Peterborough,http://opendatacommunities.org/id/unitary-authority/peterborough,Peterborough City Council,Children's & Education Services - Children's Social Care,Children Looked After,Supplies and Services - Transfer Payments,06/11/2013 00:00,580023,12000,REVENUE,Advanced Childcare,
Peterborough,http://opendatacommunities.org/id/unitary-authority/peterborough,Peterborough City Council,Children's & Education Services - Children's Social Care,Children Looked After,Supplies and Services - Transfer Payments,06/11/2013 00:00,580025,14614.33,REVENUE,Advanced Childcare,
Peterborough,http://opendatacommunities.org/id/unitary-authority/peterborough,Peterborough City Council,Children's & Education Services - Children's Social Care,Children Looked After,Supplies and Services - Transfer Payments,06/11/2013 00:00,580026,14614.33,REVENUE,Advanced Childcare,
Peterborough,http://opendatacommunities.org/id/unitary-authority/peterborough,Peterborough City Council,Children's & Education Services - Children's Social Care,Children's Services - Commissioning and Social Work,Employees,06/11/2013 00:00,581339,1692.96,REVENUE,Pulse,
Peterborough,http://opendatacommunities.org/id/unitary-authority/peterborough,Peterborough City Council,Children's & Education Services - Children's Social Care,Other Children's & Families Services,Employees,06/11/2013 00:00,581730,1886.1,REVENUE,Sanctuary Personnel Ltd,
Peterborough,http://opendatacommunities.org/id/unitary-authority/peterborough,Peterborough City Council,Children's & Education Services - Children's Social Care,Children's Services - Commissioning and Social Work,Supplies and Services,06/11/2013 00:00,581810,307140.6,REVENUE,Barnardo Services Limited,
Peterborough,http://opendatacommunities.org/id/unitary-authority/peterborough,Peterborough City Council,Children's & Education Services - Children's Social Care,Children's Services - Commissioning and Social Work,Employees,06/11/2013 00:00,582709,1692.96,REVENUE,Pulse,
Peterborough,http://opendatacommunities.org/id/unitary-authority/peterborough,Peterborough City Council,Children's & Education Services - Children's Social Care,Other Children's & Families Services,Supplies and Services,06/11/2013 00:00,583615,-6505.2,REVENUE,The Big Word Interpreting Services Ltd,
Peterborough,http://opendatacommunities.org/id/unitary-authority/peterborough,Peterborough City Council,Children's & Education Services - Children's Social Care,Other Children's & Families Services,Supplies and Services,06/11/2013 00:00,583635,-3053.7,REVENUE,The Big Word Interpreting Services Ltd,
Peterborough,http://opendatacommunities.org/id/unitary-authority/peterborough,Peterborough City Council,Housing Services,Private Sector Housing Renewal,Supplies and Services,06/11/2013 00:00,584247,1291.2,REVENUE,Rawheat Heating & Plumbing Eng.,
Peterborough,http://opendatacommunities.org/id/unitary-authority/peterborough,Peterborough City Council,Children's & Education Services - Children's Social Care,Children's Services - Commissioning and Social Work,Employees,06/11/2013 00:00,585001,1692.96,REVENUE,Pulse,
Peterborough,http://opendatacommunities.org/id/unitary-authority/peterborough,Peterborough City Council,Adult Social Care,Adult Learning Disabilities,Employees,06/11/2013 00:00,585396,576.29,REVENUE,Jark Healthcare,
Peterborough,http://opendatacommunities.org/id/unitary-authority/peterborough,Peterborough City Council,Children's & Education Services - Children's Social Care,Children's Services - Commissioning and Social Work,Employees,06/11/2013 00:00,585816,1872,REVENUE,Pulse,
Peterborough,http://opendatacommunities.org/id/unitary-authority/peterborough,Peterborough City Council,Children's & Education Services - Children's Social Care,Other Children's & Families Services,Employees,06/11/2013 00:00,585920,1131.66,REVENUE,Sanctuary Personnel Ltd,
Peterborough,http://opendatacommunities.org/id/unitary-authority/peterborough,Peterborough City Council,Children's & Education Services - Children's Social Care,Other Children's & Families Services,Employees,06/11/2013 00:00,585922,1508.88,REVENUE,Sanctuary Personnel Ltd,
Peterborough,http://opendatacommunities.org/id/unitary-authority/peterborough,Peterborough City Council,Adult Social Care,Adult Learning Disabilities,Supplies and Services,06/11/2013 00:00,586420,585.58,REVENUE,Thera East Anglia,
Peterborough,http://opendatacommunities.org/id/unitary-authority/peterborough,Peterborough City Council,Children's & Education Services - Children's Social Care,Children's Services - Commissioning and Social Work,Employees,06/11/2013 00:00,586423,1692.96,REVENUE,Pulse,
Peterborough,http://opendatacommunities.org/id/unitary-authority/peterborough,Peterborough City Council,Children's & Education Services - Education,Secondary,Premises,06/11/2013 00:00,586610,3336,REVENUE,Rider Levett Bucknall UK Ltd,
Peterborough,http://opendatacommunities.org/id/unitary-authority/peterborough,Peterborough City Council,Children's & Education Services - Education,Secondary,Premises,06/11/2013 00:00,586612,1440,REVENUE,Rider Levett Bucknall UK Ltd,
Peterborough,http://opendatacommunities.org/id/unitary-authority/peterborough,Peterborough City Council,Children's & Education Services - Children's Social Care,Children's Services - Commissioning and Social Work,Employees,06/11/2013 00:00,587088,1872,REVENUE,Pulse,
Peterborough,http://opendatacommunities.org/id/unitary-authority/peterborough,Peterborough City Council,Children's & Education Services - Children's Social Care,Children's Services - Commissioning and Social Work,Supplies and Services,06/11/2013 00:00,587117,6803.75,REVENUE,Womens Aid,
Peterborough,http://opendatacommunities.org/id/unitary-authority/peterborough,Peterborough City Council,Children's & Education Services - Children's Social Care,Other Children's & Families Services,Employees,06/11/2013 00:00,587246,1547.77,REVENUE,Sanctuary Personnel Ltd,
Peterborough,http://opendatacommunities.org/id/unitary-authority/peterborough,Peterborough City Council,Children's & Education Services - Children's Social Care,Children's Services - Commissioning and Social Work,Supplies and Services,06/11/2013 00:00,587583,150000,REVENUE,Spurgeons,
Peterborough,http://opendatacommunities.org/id/unitary-authority/peterborough,Peterborough City Council,Children's & Education Services - Children's Social Care,Children's Services - Commissioning and Social Work,Supplies and Services,06/11/2013 00:00,587585,168433.75,REVENUE,Spurgeons,
Peterborough,http://opendatacommunities.org/id/unitary-authority/peterborough,Peterborough City Council,Children's & Education Services - Education,Secondary,Supplies and Services,06/11/2013 00:00,587590,3228,REVENUE,IIC by Education (P'boro) Ltd,
Peterborough,http://opendatacommunities.org/id/unitary-authority/peterborough,Peterborough City Council,Adult Social Care,Adult Learning Disabilities,Employees,06/11/2013 00:00,588741,556.42,REVENUE,Jark Healthcare,
Peterborough,http://opendatacommunities.org/id/unitary-authority/peterborough,Peterborough City Council,Adult Social Care,Adult Learning Disabilities,Employees,06/11/2013 00:00,588746,635.9,REVENUE,Jark Healthcare,
Peterborough,http://opendatacommunities.org/id/unitary-authority/peterborough,Peterborough City Council,Support Services,Support Services,Employees,06/11/2013 00:00,589040,1326,REVENUE,Venn Group Ltd,
Peterborough,http://opendatacommunities.org/id/unitary-authority/peterborough,Peterborough City Council,Support Services,Support Services,Employees,06/11/2013 00:00,589042,1377,REVENUE,Venn Group Ltd,
Peterborough,http://opendatacommunities.org/id/unitary-authority/peterborough,Peterborough City Council,Children's & Education Services - Children's Social Care,Family Support Services,Supplies and Services,06/11/2013 00:00,589232,640.47,REVENUE,Sahara Community Care Services,
Peterborough,http://opendatacommunities.org/id/unitary-authority/peterborough,Peterborough City Council,Highways and Transport Services,"Transport planning, policy and strategy",Transport,06/11/2013 00:00,589450,4906.02,REVENUE,Atkins Limited,
Peterborough,http://opendatacommunities.org/id/unitary-authority/peterborough,Peterborough City Council,Capital,Capital,Capital Pending Update to BS,06/11/2013 00:00,589451,7888.22,CAPITAL,Atkins Limited,
Peterborough,http://opendatacommunities.org/id/unitary-authority/peterborough,Peterborough City Council,Capital,Capital,Capital Pending Update to BS,06/11/2013 00:00,589454,8397.66,CAPITAL,Atkins Limited,
Peterborough,http://opendatacommunities.org/id/unitary-authority/peterborough,Peterborough City Council,Highways and Transport Services,"Transport planning, policy and strategy",Transport,06/11/2013 00:00,589456,1330.7,REVENUE,Atkins Limited,
Peterborough,http://opendatacommunities.org/id/unitary-authority/peterborough,Peterborough City Council,Highways and Transport Services,"Environmental, Safety & Routine Maintenance",Transport,06/11/2013 00:00,589457,21536.88,REVENUE,Atkins Limited,
Peterborough,http://opendatacommunities.org/id/unitary-authority/peterborough,Peterborough City Council,Capital,Capital,Capital Pending Update to BS,06/11/2013 00:00,589460,15694.79,CAPITAL,Atkins Limited,
Peterborough,http://opendatacommunities.org/id/unitary-authority/peterborough,Peterborough City Council,Highways and Transport Services,Support Services,Supplies and Services,06/11/2013 00:00,589500,7696.8,REVENUE,Pinnacle Response Ltd,
Peterborough,http://opendatacommunities.org/id/unitary-authority/peterborough,Peterborough City Council,Children's & Education Services - Children's Social Care,Children's Services - Commissioning and Social Work,Supplies and Services,06/11/2013 00:00,589575,32397.8,REVENUE,DRINKSENSE,
Peterborough,http://opendatacommunities.org/id/unitary-authority/peterborough,Peterborough City Council,Children's & Education Services - Children's Social Care,Children Looked After,Supplies and Services,06/11/2013 00:00,589578,6800.75,REVENUE,DRINKSENSE,
Peterborough,http://opendatacommunities.org/id/unitary-authority/peterborough,Peterborough City Council,Children's & Education Services - Children's Social Care,Children's Services - Commissioning and Social Work,Supplies and Services,06/11/2013 00:00,589604,10000,REVENUE,DRINKSENSE,
Peterborough,http://opendatacommunities.org/id/unitary-authority/peterborough,Peterborough City Council,Support Services,Support Services,Supplies and Services,06/11/2013 00:00,589612,777.16,REVENUE,Thomson Reuters UK Limited,
Peterborough,http://opendatacommunities.org/id/unitary-authority/peterborough,Peterborough City Council,Adult Social Care,Support Services & Management Costs,Supplies and Services,06/11/2013 00:00,589616,2562,REVENUE,The Open University,
Peterborough,http://opendatacommunities.org/id/unitary-authority/peterborough,Peterborough City Council,Capital,Capital,Capital Pending Update to BS,06/11/2013 00:00,589675,3618.94,CAPITAL,Atkins Limited,
Peterborough,http://opendatacommunities.org/id/unitary-authority/peterborough,Peterborough City Council,Capital,Capital,Capital Pending Update to BS,06/11/2013 00:00,589676,2660.74,CAPITAL,Atkins Limited,
Peterborough,http://opendatacommunities.org/id/unitary-authority/peterborough,Peterborough City Council,Highways and Transport Services,"Transport planning, policy and strategy",Transport,06/11/2013 00:00,589678,1992.11,REVENUE,Atkins Limited,
Peterborough,http://opendatacommunities.org/id/unitary-authority/peterborough,Peterborough City Council,Children's & Education Services - Education,Other School -related Education Functions,Supplies and Services,06/11/2013 00:00,589697,1170,REVENUE,Cambridgeshire County Council,
Peterborough,http://opendatacommunities.org/id/unitary-authority/peterborough,Peterborough City Council,Children's & Education Services - Education,Other School -related Education Functions,Supplies and Services,06/11/2013 00:00,589700,4080,REVENUE,Cambridgeshire County Council,
Peterborough,http://opendatacommunities.org/id/unitary-authority/peterborough,Peterborough City Council,Children's & Education Services - Education,Secondary,Supplies and Services,06/11/2013 00:00,589756,12021.96,REVENUE,IIC by Education (P'boro) Ltd,
Peterborough,http://opendatacommunities.org/id/unitary-authority/peterborough,Peterborough City Council,Children's & Education Services - Education,Secondary,Supplies and Services,06/11/2013 00:00,589774,37527.6,REVENUE,IIC by Education (P'boro) Ltd,
Peterborough,http://opendatacommunities.org/id/unitary-authority/peterborough,Peterborough City Council,Cultural and Related Services,Recreation & Sport,Supplies and Services,06/11/2013 00:00,589833,720,REVENUE,RMIS Ltd,
Peterborough,http://opendatacommunities.org/id/unitary-authority/peterborough,Peterborough City Council,Children's & Education Services - Children's Social Care,Children's Services - Commissioning and Social Work,Employees,06/11/2013 00:00,589949,1620.6,REVENUE,Capita Resourcing Ltd,
Peterborough,http://opendatacommunities.org/id/unitary-authority/peterborough,Peterborough City Council,Children's & Education Services - Children's Social Care,Other Children's & Families Services,Supplies and Services,06/11/2013 00:00,589970,5217.6,REVENUE,The Big Word Interpreting Services Ltd,
Peterborough,http://opendatacommunities.org/id/unitary-authority/peterborough,Peterborough City Council,Highways and Transport Services,Traffic management & Road Safety,Supplies and Services,06/11/2013 00:00,590015,31048,REVENUE,Cambridgeshire County Council,
Peterborough,http://opendatacommunities.org/id/unitary-authority/peterborough,Peterborough City Council,Children's & Education Services - Education,Secondary,Employees,06/11/2013 00:00,590028,935.94,REVENUE,IIC by Education (P'boro) Ltd,
Peterborough,http://opendatacommunities.org/id/unitary-authority/peterborough,Peterborough City Council,Children's & Education Services - Children's Social Care,Children Looked After,Supplies and Services,06/11/2013 00:00,590042,593.63,REVENUE,Excell Network Solutions Ltd,
Peterborough,http://opendatacommunities.org/id/unitary-authority/peterborough,Peterborough City Council,Children's & Education Services - Children's Social Care,Other Children's & Families Services,Supplies and Services,06/11/2013 00:00,590055,720,REVENUE,"Bennett, Mr Jonathan",
Peterborough,http://opendatacommunities.org/id/unitary-authority/peterborough,Peterborough City Council,Children's & Education Services - Children's Social Care,Children Looked After,Premises,06/11/2013 00:00,590114,936,REVENUE,Hereward Stationers & Printers Ltd,
Peterborough,http://opendatacommunities.org/id/unitary-authority/peterborough,Peterborough City Council,Cultural and Related Services,Recreation & Sport,Premises,06/11/2013 00:00,590146,853.44,REVENUE,Hodgson Community Association,
Peterborough,http://opendatacommunities.org/id/unitary-authority/peterborough,Peterborough City Council,Planning Services,Development Control,Supplies and Services,06/11/2013 00:00,590147,567.64,REVENUE,Johnston Press Midlands Division,
Peterborough,http://opendatacommunities.org/id/unitary-authority/peterborough,Peterborough City Council,Children's & Education Services - Children's Social Care,Family Support Services,Supplies and Services,06/11/2013 00:00,590589,1440,REVENUE,Caterfix Ltd,
Peterborough,http://opendatacommunities.org/id/unitary-authority/peterborough,Peterborough City Council,Support Services,Support Services,Supplies and Services,06/11/2013 00:00,590650,6132,REVENUE,Liberty Services Ltd,
Peterborough,http://opendatacommunities.org/id/unitary-authority/peterborough,Peterborough City Council,Adult Social Care,Older People,Supplies and Services,06/11/2013 00:00,590835,1068.48,REVENUE,BUPA Care  Homes,
Peterborough,http://opendatacommunities.org/id/unitary-authority/peterborough,Peterborough City Council,Adult Social Care,Adult Mental Health,Supplies and Services,06/11/2013 00:00,590837,42750,REVENUE,The Richmond Fellowship,
Peterborough,http://opendatacommunities.org/id/unitary-authority/peterborough,Peterborough City Council,Children's & Education Services - Children's Social Care,Children Looked After,Employees,06/11/2013 00:00,591023,2194.8,REVENUE,Textbook Teachers,
Peterborough,http://opendatacommunities.org/id/unitary-authority/peterborough,Peterborough City Council,Adult Social Care,Older People,Supplies and Services,06/11/2013 00:00,591029,560,REVENUE,Italian Community Association,
Peterborough,http://opendatacommunities.org/id/unitary-authority/peterborough,Peterborough City Council,Children's & Education Services - Children's Social Care,Children Looked After,Employees,06/11/2013 00:00,591100,737.1,REVENUE,Randstad Care Ltd,
Peterborough,http://opendatacommunities.org/id/unitary-authority/peterborough,Peterborough City Council,Children's & Education Services - Children's Social Care,Children Looked After,Employees,06/11/2013 00:00,591101,994.44,REVENUE,Randstad Care Ltd,
Peterborough,http://opendatacommunities.org/id/unitary-authority/peterborough,Peterborough City Council,Children's & Education Services - Children's Social Care,Other Children's & Families Services,Employees,06/11/2013 00:00,591102,1510.66,REVENUE,Randstad Care Ltd,
Peterborough,http://opendatacommunities.org/id/unitary-authority/peterborough,Peterborough City Council,Children's & Education Services - Children's Social Care,More than one Service Division,Employees,06/11/2013 00:00,591104,1464,REVENUE,Randstad Care Ltd,
Peterborough,http://opendatacommunities.org/id/unitary-authority/peterborough,Peterborough City Council,Children's & Education Services - Children's Social Care,Other Children's & Families Services,Employees,06/11/2013 00:00,591105,1684.08,REVENUE,Randstad Care Ltd,
Peterborough,http://opendatacommunities.org/id/unitary-authority/peterborough,Peterborough City Council,Children's & Education Services - Children's Social Care,Other Children's & Families Services,Supplies and Services,06/11/2013 00:00,591147,2456,REVENUE,R S P LTD,
Peterborough,http://opendatacommunities.org/id/unitary-authority/peterborough,Peterborough City Council,Children's & Education Services - Children's Social Care,Other Children's & Families Services,Employees,06/11/2013 00:00,591317,918,REVENUE,Sanctuary Personnel Ltd,
Peterborough,http://opendatacommunities.org/id/unitary-authority/peterborough,Peterborough City Council,Children's & Education Services - Children's Social Care,Other Children's & Families Services,Employees,06/11/2013 00:00,591325,1768.92,REVENUE,Sanctuary Personnel Ltd,
Peterborough,http://opendatacommunities.org/id/unitary-authority/peterborough,Peterborough City Council,Children's & Education Services - Children's Social Care,Children's Services - Commissioning and Social Work,Employees,06/11/2013 00:00,591328,1575,REVENUE,Sanctuary Personnel Ltd,
Peterborough,http://opendatacommunities.org/id/unitary-authority/peterborough,Peterborough City Council,Children's & Education Services - Children's Social Care,Children's Services - Commissioning and Social Work,Employees,06/11/2013 00:00,591330,1575,REVENUE,Sanctuary Personnel Ltd,
Peterborough,http://opendatacommunities.org/id/unitary-authority/peterborough,Peterborough City Council,Adult Social Care,Older People,Supplies and Services,06/11/2013 00:00,591335,1536,REVENUE,Thera East Anglia,
Peterborough,http://opendatacommunities.org/id/unitary-authority/peterborough,Peterborough City Council,Adult Social Care,Older People,Supplies and Services,06/11/2013 00:00,591336,1536,REVENUE,Thera East Anglia,
Peterborough,http://opendatacommunities.org/id/unitary-authority/peterborough,Peterborough City Council,Cultural and Related Services,Recreation & Sport,Supplies and Services,06/11/2013 00:00,591339,698.4,REVENUE,Chroma Sport & Leisure,
Peterborough,http://opendatacommunities.org/id/unitary-authority/peterborough,Peterborough City Council,Adult Social Care,Adult Learning Disabilities,Supplies and Services,06/11/2013 00:00,591340,516.42,REVENUE,Voyage,
Peterborough,http://opendatacommunities.org/id/unitary-authority/peterborough,Peterborough City Council,Highways and Transport Services,Public Transport,Supplies and Services,06/11/2013 00:00,591636,8430.07,REVENUE,Stagecoach in Peterborough,
Peterborough,http://opendatacommunities.org/id/unitary-authority/peterborough,Peterborough City Council,Adult Social Care,Adult Learning Disabilities,Supplies and Services,06/11/2013 00:00,591655,7014.28,REVENUE,T L CARE UK LTD,
Peterborough,http://opendatacommunities.org/id/unitary-authority/peterborough,Peterborough City Council,Adult Social Care,Adult Learning Disabilities,Supplies and Services,06/11/2013 00:00,591657,1657.6,REVENUE,T L CARE UK LTD,
Peterborough,http://opendatacommunities.org/id/unitary-authority/peterborough,Peterborough City Council,Adult Social Care,Adult Learning Disabilities,Supplies and Services,06/11/2013 00:00,591659,4257.4,REVENUE,T L CARE UK LTD,
Peterborough,http://opendatacommunities.org/id/unitary-authority/peterborough,Peterborough City Council,Adult Social Care,Adult Learning Disabilities,Supplies and Services,06/11/2013 00:00,591661,2667.24,REVENUE,T L CARE UK LTD,
Peterborough,http://opendatacommunities.org/id/unitary-authority/peterborough,Peterborough City Council,Adult Social Care,Older People,Supplies and Services,06/11/2013 00:00,591666,2946.36,REVENUE,LEONARD CHESHIRE DISABILITY,
Peterborough,http://opendatacommunities.org/id/unitary-authority/peterborough,Peterborough City Council,Adult Social Care,Adult Learning Disabilities,Supplies and Services,06/11/2013 00:00,591675,2655,REVENUE,Thera East Anglia,
Peterborough,http://opendatacommunities.org/id/unitary-authority/peterborough,Peterborough City Council,Adult Social Care,Adult Learning Disabilities,Supplies and Services,06/11/2013 00:00,591677,2802.5,REVENUE,Thera East Anglia,
Peterborough,http://opendatacommunities.org/id/unitary-authority/peterborough,Peterborough City Council,Adult Social Care,Adult Learning Disabilities,Supplies and Services,06/11/2013 00:00,591687,4280.2,REVENUE,LEONARD CHESHIRE DISABILITY,
Peterborough,http://opendatacommunities.org/id/unitary-authority/peterborough,Peterborough City Council,Children's & Education Services - Education,Primary,Supplies and Services,06/11/2013 00:00,591689,3000,REVENUE,Edge Hill University,
Peterborough,http://opendatacommunities.org/id/unitary-authority/peterborough,Peterborough City Council,Adult Social Care,Older People,Supplies and Services,06/11/2013 00:00,591690,3402.88,REVENUE,LEONARD CHESHIRE DISABILITY,
Peterborough,http://opendatacommunities.org/id/unitary-authority/peterborough,Peterborough City Council,Children's & Education Services - Children's Social Care,Children Looked After,Supplies and Services - Transfer Payments,06/11/2013 00:00,591691,6952.85,REVENUE,Family Options,
Peterborough,http://opendatacommunities.org/id/unitary-authority/peterborough,Peterborough City Council,Adult Social Care,Older People,Supplies and Services,06/11/2013 00:00,591692,947.76,REVENUE,Tunstall Hall,
Peterborough,http://opendatacommunities.org/id/unitary-authority/peterborough,Peterborough City Council,Adult Social Care,Adult Learning Disabilities,Supplies and Services,06/11/2013 00:00,591699,2132.8,REVENUE,LINK HOUSE,
Peterborough,http://opendatacommunities.org/id/unitary-authority/peterborough,Peterborough City Council,Children's & Education Services - Education,Family Support Services,Supplies and Services,06/11/2013 00:00,591735,2592,REVENUE,Kingsgate Trading Ltd,
Peterborough,http://opendatacommunities.org/id/unitary-authority/peterborough,Peterborough City Council,Support Services,Support Services,Employees,06/11/2013 00:00,591741,4020,REVENUE,Learning Pool Limited,
Peterborough,http://opendatacommunities.org/id/unitary-authority/peterborough,Peterborough City Council,Children's & Education Services - Education,Secondary,Employees,06/11/2013 00:00,591744,874.8,REVENUE,Hays Specialist Recruitment Ltd,
Peterborough,http://opendatacommunities.org/id/unitary-authority/peterborough,Peterborough City Council,Adult Social Care,Older People,Supplies and Services,06/11/2013 00:00,591767,1593.35,REVENUE,Housing 21,
Peterborough,http://opendatacommunities.org/id/unitary-authority/peterborough,Peterborough City Council,Adult Social Care,Older People,Supplies and Services,06/11/2013 00:00,591781,828.16,REVENUE,Housing 21,
Peterborough,http://opendatacommunities.org/id/unitary-authority/peterborough,Peterborough City Council,Adult Social Care,Older People,Supplies and Services,06/11/2013 00:00,591789,975.56,REVENUE,Housing 21,
Peterborough,http://opendatacommunities.org/id/unitary-authority/peterborough,Peterborough City Council,Adult Social Care,Older People,Supplies and Services,06/11/2013 00:00,591793,554.6,REVENUE,Housing 21,
Peterborough,http://opendatacommunities.org/id/unitary-authority/peterborough,Peterborough City Council,Adult Social Care,Older People,Supplies and Services,06/11/2013 00:00,591797,1655.39,REVENUE,Housing 21,
Peterborough,http://opendatacommunities.org/id/unitary-authority/peterborough,Peterborough City Council,Adult Social Care,Older People,Supplies and Services,06/11/2013 00:00,591827,701.21,REVENUE,Housing 21,
Peterborough,http://opendatacommunities.org/id/unitary-authority/peterborough,Peterborough City Council,Adult Social Care,Older People,Supplies and Services,06/11/2013 00:00,591830,836.47,REVENUE,Housing 21,
Peterborough,http://opendatacommunities.org/id/unitary-authority/peterborough,Peterborough City Council,Adult Social Care,Older People,Supplies and Services,06/11/2013 00:00,591841,1643.26,REVENUE,Housing 21,
Peterborough,http://opendatacommunities.org/id/unitary-authority/peterborough,Peterborough City Council,Children's & Education Services - Children's Social Care,Children Looked After,Supplies and Services,06/11/2013 00:00,591842,3594,REVENUE,Catch22 Charity Ltd,
Peterborough,http://opendatacommunities.org/id/unitary-authority/peterborough,Peterborough City Council,Adult Social Care,Older People,Supplies and Services,06/11/2013 00:00,591847,823.65,REVENUE,Housing 21,
Peterborough,http://opendatacommunities.org/id/unitary-authority/peterborough,Peterborough City Council,Adult Social Care,Adult Mental Health,Supplies and Services,06/11/2013 00:00,591852,714.69,REVENUE,Housing 21,
Peterborough,http://opendatacommunities.org/id/unitary-authority/peterborough,Peterborough City Council,Adult Social Care,Older People,Supplies and Services,06/11/2013 00:00,591862,754.54,REVENUE,Housing 21,
Peterborough,http://opendatacommunities.org/id/unitary-authority/peterborough,Peterborough City Council,Adult Social Care,Older People,Supplies and Services,06/11/2013 00:00,591868,7373.24,REVENUE,Housing 21,
Peterborough,http://opendatacommunities.org/id/unitary-authority/peterborough,Peterborough City Council,Adult Social Care,Older People,Supplies and Services,06/11/2013 00:00,591871,559.24,REVENUE,Housing 21,
Peterborough,http://opendatacommunities.org/id/unitary-authority/peterborough,Peterborough City Council,Adult Social Care,Adult Learning Disabilities,Employees,06/11/2013 00:00,591887,753.76,REVENUE,Reed Specialist Recruitment,
Peterborough,http://opendatacommunities.org/id/unitary-authority/peterborough,Peterborough City Council,Adult Social Care,Support Services & Management Costs,Employees,06/11/2013 00:00,591888,540.19,REVENUE,Reed Specialist Recruitment,
Peterborough,http://opendatacommunities.org/id/unitary-authority/peterborough,Peterborough City Council,Adult Social Care,Support Services & Management Costs,Employees,06/11/2013 00:00,592380,708.76,REVENUE,Reed Specialist Recruitment,
Peterborough,http://opendatacommunities.org/id/unitary-authority/peterborough,Peterborough City Council,Adult Social Care,Older People,Supplies and Services,06/11/2013 00:00,592396,746.02,REVENUE,Housing 21,
Peterborough,http://opendatacommunities.org/id/unitary-authority/peterborough,Peterborough City Council,Adult Social Care,Older People,Supplies and Services,06/11/2013 00:00,592400,658.4,REVENUE,Housing 21,
Peterborough,http://opendatacommunities.org/id/unitary-authority/peterborough,Peterborough City Council,Adult Social Care,Older People,Supplies and Services,06/11/2013 00:00,592401,821.32,REVENUE,Housing 21,
Peterborough,http://opendatacommunities.org/id/unitary-authority/peterborough,Peterborough City Council,Housing Services,Private Sector Housing Renewal,Supplies and Services,06/11/2013 00:00,592444,1241,REVENUE,Fletton Electrics Ltd,
Peterborough,http://opendatacommunities.org/id/unitary-authority/peterborough,Peterborough City Council,Adult Social Care,Adult Learning Disabilities,Supplies and Services,06/11/2013 00:00,592500,2409.4,REVENUE,Linkage Community Trust Limited,
Peterborough,http://opendatacommunities.org/id/unitary-authority/peterborough,Peterborough City Council,Highways and Transport Services,Public Transport,Supplies and Services,06/11/2013 00:00,592682,25358.04,REVENUE,Stagecoach in Peterborough,
Peterborough,http://opendatacommunities.org/id/unitary-authority/peterborough,Peterborough City Council,Highways and Transport Services,Public Transport,Supplies and Services,06/11/2013 00:00,592686,18636,REVENUE,Stagecoach in Peterborough,
Peterborough,http://opendatacommunities.org/id/unitary-authority/peterborough,Peterborough City Council,Highways and Transport Services,Public Transport,Supplies and Services,06/11/2013 00:00,592688,171372.15,REVENUE,Stagecoach in Peterborough,
Peterborough,http://opendatacommunities.org/id/unitary-authority/peterborough,Peterborough City Council,Support Services,Support Services,Employees,06/11/2013 00:00,592694,1522.8,REVENUE,Sellick Partnership Group Limited,
Peterborough,http://opendatacommunities.org/id/unitary-authority/peterborough,Peterborough City Council,Children's & Education Services - Education,Secondary,Transport,06/11/2013 00:00,592706,1300,REVENUE,Stagecoach in Peterborough,
Peterborough,http://opendatacommunities.org/id/unitary-authority/peterborough,Peterborough City Council,Environmental and Regulatory Services,"Cemetery, Crematorium & Mortuary Services",Supplies and Services,06/11/2013 00:00,592879,708.01,REVENUE,Danwood Group Limited,
Peterborough,http://opendatacommunities.org/id/unitary-authority/peterborough,Peterborough City Council,Children's & Education Services - Children's Social Care,Children Looked After,Supplies and Services - Transfer Payments,06/11/2013 00:00,592932,12400,REVENUE,Advanced Childcare,
Peterborough,http://opendatacommunities.org/id/unitary-authority/peterborough,Peterborough City Council,Drainage and Flood Levies,Precepts & Levies,Premises,06/11/2013 00:00,592984,75233,REVENUE,Welland & Deepings Internal Drainage Board,
Peterborough,http://opendatacommunities.org/id/unitary-authority/peterborough,Peterborough City Council,Adult Social Care,Older People,Supplies and Services,06/11/2013 00:00,593232,1779.96,REVENUE,FIELD HOUSE (EYE) LTD,
Peterborough,http://opendatacommunities.org/id/unitary-authority/peterborough,Peterborough City Council,Adult Social Care,Older People,Supplies and Services,06/11/2013 00:00,593234,1394.68,REVENUE,FIELD HOUSE (EYE) LTD,
Peterborough,http://opendatacommunities.org/id/unitary-authority/peterborough,Peterborough City Council,Adult Social Care,Older People,Supplies and Services,06/11/2013 00:00,593236,536.8,REVENUE,FIELD HOUSE (EYE) LTD,
Peterborough,http://opendatacommunities.org/id/unitary-authority/peterborough,Peterborough City Council,Adult Social Care,Older People,Supplies and Services,06/11/2013 00:00,593238,1182.32,REVENUE,FIELD HOUSE (EYE) LTD,
Peterborough,http://opendatacommunities.org/id/unitary-authority/peterborough,Peterborough City Council,Adult Social Care,Older People,Supplies and Services,06/11/2013 00:00,593299,1293.96,REVENUE,FIELD HOUSE (EYE) LTD,
Peterborough,http://opendatacommunities.org/id/unitary-authority/peterborough,Peterborough City Council,Adult Social Care,Older People,Supplies and Services,06/11/2013 00:00,593301,1111.52,REVENUE,FIELD HOUSE (EYE) LTD,
Peterborough,http://opendatacommunities.org/id/unitary-authority/peterborough,Peterborough City Council,Adult Social Care,Older People,Supplies and Services,06/11/2013 00:00,593303,1317.96,REVENUE,FIELD HOUSE (EYE) LTD,
Peterborough,http://opendatacommunities.org/id/unitary-authority/peterborough,Peterborough City Council,Adult Social Care,Older People,Supplies and Services,06/11/2013 00:00,593305,1321.96,REVENUE,FIELD HOUSE (EYE) LTD,
Peterborough,http://opendatacommunities.org/id/unitary-authority/peterborough,Peterborough City Council,Adult Social Care,Older People,Supplies and Services,06/11/2013 00:00,593308,883.96,REVENUE,FIELD HOUSE (EYE) LTD,
Peterborough,http://opendatacommunities.org/id/unitary-authority/peterborough,Peterborough City Council,Adult Social Care,Older People,Supplies and Services,06/11/2013 00:00,593311,1193.52,REVENUE,FIELD HOUSE (EYE) LTD,
Peterborough,http://opendatacommunities.org/id/unitary-authority/peterborough,Peterborough City Council,Adult Social Care,Adult Physical Disability & Sensory Impairment,Supplies and Services,06/11/2013 00:00,593348,741.23,REVENUE,Action on Hearing Loss,
Peterborough,http://opendatacommunities.org/id/unitary-authority/peterborough,Peterborough City Council,Adult Social Care,Adult Physical Disability & Sensory Impairment,Supplies and Services,06/11/2013 00:00,593349,510.67,REVENUE,Action on Hearing Loss,
Peterborough,http://opendatacommunities.org/id/unitary-authority/peterborough,Peterborough City Council,Environmental and Regulatory Services,Regulatory services,Supplies and Services,06/11/2013 00:00,593360,500,REVENUE,Farm Animal Rescue Sanctuary,
Peterborough,http://opendatacommunities.org/id/unitary-authority/peterborough,Peterborough City Council,Adult Social Care,Adult Learning Disabilities,Employees,06/11/2013 00:00,593379,1634.4,REVENUE,Caritas Recruitment,
Peterborough,http://opendatacommunities.org/id/unitary-authority/peterborough,Peterborough City Council,Adult Social Care,Adult Learning Disabilities,Employees,06/11/2013 00:00,593381,1575,REVENUE,Caritas Recruitment,
Peterborough,http://opendatacommunities.org/id/unitary-authority/peterborough,Peterborough City Council,Adult Social Care,Adult Learning Disabilities,Employees,06/11/2013 00:00,593382,2625,REVENUE,Caritas Recruitment,
Peterborough,http://opendatacommunities.org/id/unitary-authority/peterborough,Peterborough City Council,Children's & Education Services - Education,Early Years,Supplies and Services,06/11/2013 00:00,593576,1799.89,REVENUE,The Learning Tree Kindergarten,
Peterborough,http://opendatacommunities.org/id/unitary-authority/peterborough,Peterborough City Council,Adult Social Care,More than one Service Division,Employees,06/11/2013 00:00,593649,573.46,REVENUE,Randstad Care Ltd,
Peterborough,http://opendatacommunities.org/id/unitary-authority/peterborough,Peterborough City Council,Adult Social Care,More than one Service Division,Employees,06/11/2013 00:00,593651,584.48,REVENUE,Randstad Care Ltd,
Peterborough,http://opendatacommunities.org/id/unitary-authority/peterborough,Peterborough City Council,Deficit/(Surplus) on Trading Undertakings,Trading Account Surpluses & Deficits,Supplies and Services,06/11/2013 00:00,593718,643.83,REVENUE,Safetykleen UK Ltd,
Peterborough,http://opendatacommunities.org/id/unitary-authority/peterborough,Peterborough City Council,Children's & Education Services - Children's Social Care,Children's Services - Commissioning and Social Work,Supplies and Services - Transfer Payments,06/11/2013 00:00,593722,1279.2,REVENUE,Transition Care Peterborough Ltd,
Peterborough,http://opendatacommunities.org/id/unitary-authority/peterborough,Peterborough City Council,Adult Social Care,Adult Learning Disabilities,Employees,06/11/2013 00:00,593733,1554,REVENUE,Caritas Recruitment,
Peterborough,http://opendatacommunities.org/id/unitary-authority/peterborough,Peterborough City Council,Adult Social Care,Adult Learning Disabilities,Employees,06/11/2013 00:00,593751,518.4,REVENUE,City Resource Ltd,
Peterborough,http://opendatacommunities.org/id/unitary-authority/peterborough,Peterborough City Council,Children's & Education Services - Children's Social Care,Children's Services - Commissioning and Social Work,Employees,06/11/2013 00:00,593756,1620.6,REVENUE,Capita Resourcing Ltd,
Peterborough,http://opendatacommunities.org/id/unitary-authority/peterborough,Peterborough City Council,Children's & Education Services - Children's Social Care,Other Children's & Families Services,Supplies and Services,06/11/2013 00:00,593757,540,REVENUE,Christopher Barnes,
Peterborough,http://opendatacommunities.org/id/unitary-authority/peterborough,Peterborough City Council,Adult Social Care,Adult Learning Disabilities,Supplies and Services,06/11/2013 00:00,593759,566,REVENUE,Goldhay Arts,
Peterborough,http://opendatacommunities.org/id/unitary-authority/peterborough,Peterborough City Council,Children's & Education Services - Children's Social Care,Other Children's & Families Services,Supplies and Services,06/11/2013 00:00,593760,720,REVENUE,"Braithwaite, Mr Garfield",
Peterborough,http://opendatacommunities.org/id/unitary-authority/peterborough,Peterborough City Council,More than one Service Area Category,More than one Service Division,Supplies and Services,06/11/2013 00:00,593765,2571.88,REVENUE,TNT Post London Ltd,
Peterborough,http://opendatacommunities.org/id/unitary-authority/peterborough,Peterborough City Council,Adult Social Care,Adult Learning Disabilities,Supplies and Services,06/11/2013 00:00,593772,678,REVENUE,Goldhay Arts,
Peterborough,http://opendatacommunities.org/id/unitary-authority/peterborough,Peterborough City Council,Adult Social Care,Adult Learning Disabilities,Supplies and Services,06/11/2013 00:00,593783,566,REVENUE,Goldhay Arts,
Peterborough,http://opendatacommunities.org/id/unitary-authority/peterborough,Peterborough City Council,Adult Social Care,Adult Learning Disabilities,Supplies and Services,06/11/2013 00:00,593784,566,REVENUE,Goldhay Arts,
Peterborough,http://opendatacommunities.org/id/unitary-authority/peterborough,Peterborough City Council,Adult Social Care,Adult Learning Disabilities,Supplies and Services,06/11/2013 00:00,593787,666,REVENUE,Goldhay Arts,
Peterborough,http://opendatacommunities.org/id/unitary-authority/peterborough,Peterborough City Council,More than one Service Area Category,More than one Service Division,Balance Sheet,06/11/2013 00:00,593798,570.54,Balance Sheet,Redacted Personal Data,
Peterborough,http://opendatacommunities.org/id/unitary-authority/peterborough,Peterborough City Council,Children's & Education Services - Children's Social Care,Children Looked After,Supplies and Services - Transfer Payments,06/11/2013 00:00,593976,3150,REVENUE,National Fostering Agency,
Peterborough,http://opendatacommunities.org/id/unitary-authority/peterborough,Peterborough City Council,Children's & Education Services - Children's Social Care,Children Looked After,Supplies and Services - Transfer Payments,06/11/2013 00:00,593979,3087,REVENUE,National Fostering Agency,
Peterborough,http://opendatacommunities.org/id/unitary-authority/peterborough,Peterborough City Council,Capital,Capital,Capital Pending Update to BS,06/11/2013 00:00,593980,1011121.98,CAPITAL,Carillion Building,
Peterborough,http://opendatacommunities.org/id/unitary-authority/peterborough,Peterborough City Council,Children's & Education Services - Children's Social Care,Children Looked After,Supplies and Services - Transfer Payments,06/11/2013 00:00,593984,3342.9,REVENUE,National Fostering Agency,
Peterborough,http://opendatacommunities.org/id/unitary-authority/peterborough,Peterborough City Council,Children's & Education Services - Education,Secondary,Supplies and Services,06/11/2013 00:00,594069,-3228,REVENUE,IIC by Education (P'boro) Ltd,
Peterborough,http://opendatacommunities.org/id/unitary-authority/peterborough,Peterborough City Council,Children's & Education Services - Children's Social Care,Children Looked After,Supplies and Services - Transfer Payments,06/11/2013 00:00,594073,515,REVENUE,Transition Care Peterborough Ltd,
Peterborough,http://opendatacommunities.org/id/unitary-authority/peterborough,Peterborough City Council,Adult Social Care,Older People,More than one Expenses Type,06/11/2013 00:00,594274,1791.48,REVENUE,Redacted Personal Data,
Peterborough,http://opendatacommunities.org/id/unitary-authority/peterborough,Peterborough City Council,Adult Social Care,Adult Learning Disabilities,Supplies and Services,06/11/2013 00:00,594622,10133.25,REVENUE,Peterborough Home Care (CAREWATCH)  (F.P.S.),
Peterborough,http://opendatacommunities.org/id/unitary-authority/peterborough,Peterborough City Council,Support Services,Support Services,Supplies and Services,06/11/2013 00:00,594642,878900.41,REVENUE,Serco Ltd,
Peterborough,http://opendatacommunities.org/id/unitary-authority/peterborough,Peterborough City Council,More than one Service Area Category,More than one Service Division,Transport,06/11/2013 00:00,594714,1099.2,REVENUE,A2B Euro Cars,
Peterborough,http://opendatacommunities.org/id/unitary-authority/peterborough,Peterborough City Council,Environmental and Regulatory Services,Community Safety (CCTV),Employees,06/11/2013 00:00,594815,594,REVENUE,The Synergy Group,
Peterborough,http://opendatacommunities.org/id/unitary-authority/peterborough,Peterborough City Council,Children's & Education Services - Children's Social Care,Children Looked After,Supplies and Services - Transfer Payments,06/11/2013 00:00,594925,-11071.34,REVENUE,Advanced Childcare,
Peterborough,http://opendatacommunities.org/id/unitary-authority/peterborough,Peterborough City Council,More than one Service Area Category,More than one Service Division,Balance Sheet,06/11/2013 00:00,595025,5000,Balance Sheet,Redacted Personal Data,
Peterborough,http://opendatacommunities.org/id/unitary-authority/peterborough,Peterborough City Council,Interest and Investment Income,Interest & Investment Income,Capital Financing Costs,06/11/2013 00:00,595074,12106.85,REVENUE,Tullett Prebon Plc,
Peterborough,http://opendatacommunities.org/id/unitary-authority/peterborough,Peterborough City Council,More than one Service Area Category,More than one Service Division,Employees,06/11/2013 00:00,595335,638.74,REVENUE,Kenzi Holistic Therapies,
Peterborough,http://opendatacommunities.org/id/unitary-authority/peterborough,Peterborough City Council,Highways and Transport Services,Street Lighting,Supplies and Services,06/11/2013 00:00,595409,650.4,REVENUE,UK Power Networks (operations) Ltd,
Peterborough,http://opendatacommunities.org/id/unitary-authority/peterborough,Peterborough City Council,Children's & Education Services - Education,Early Years,Supplies and Services,06/11/2013 00:00,595452,2520,REVENUE,Little Stars Day Nursery,
Peterborough,http://opendatacommunities.org/id/unitary-authority/peterborough,Peterborough City Council,Children's & Education Services - Education,Other School -related Education Functions,Transport,06/11/2013 00:00,595474,1080,REVENUE,Goldstar Cabs Ltd,
Peterborough,http://opendatacommunities.org/id/unitary-authority/peterborough,Peterborough City Council,Children's & Education Services - Education,Other School -related Education Functions,Transport,06/11/2013 00:00,595475,2282.28,REVENUE,Goldstar Cabs Ltd,
Peterborough,http://opendatacommunities.org/id/unitary-authority/peterborough,Peterborough City Council,Children's & Education Services - Education,Other School -related Education Functions,Transport,06/11/2013 00:00,595476,1140,REVENUE,Goldstar Cabs Ltd,
Peterborough,http://opendatacommunities.org/id/unitary-authority/peterborough,Peterborough City Council,Children's & Education Services - Education,Other School -related Education Functions,Transport,06/11/2013 00:00,595477,1869.6,REVENUE,Goldstar Cabs Ltd,
Peterborough,http://opendatacommunities.org/id/unitary-authority/peterborough,Peterborough City Council,Children's & Education Services - Education,Other School -related Education Functions,Transport,06/11/2013 00:00,595478,1062.48,REVENUE,Goldstar Cabs Ltd,
Peterborough,http://opendatacommunities.org/id/unitary-authority/peterborough,Peterborough City Council,Children's & Education Services - Education,Other School -related Education Functions,Transport,06/11/2013 00:00,595480,1122,REVENUE,Goldstar Cabs Ltd,
Peterborough,http://opendatacommunities.org/id/unitary-authority/peterborough,Peterborough City Council,Children's & Education Services - Education,Other School -related Education Functions,Transport,06/11/2013 00:00,595481,1584.6,REVENUE,Goldstar Cabs Ltd,
Peterborough,http://opendatacommunities.org/id/unitary-authority/peterborough,Peterborough City Council,Children's & Education Services - Education,Other School -related Education Functions,Transport,06/11/2013 00:00,595482,1620,REVENUE,Goldstar Cabs Ltd,
Peterborough,http://opendatacommunities.org/id/unitary-authority/peterborough,Peterborough City Council,Children's & Education Services - Education,Other School -related Education Functions,Transport,06/11/2013 00:00,595483,638.4,REVENUE,Goldstar Cabs Ltd,
Peterborough,http://opendatacommunities.org/id/unitary-authority/peterborough,Peterborough City Council,Children's & Education Services - Children's Social Care,Children Looked After,Supplies and Services - Transfer Payments,06/11/2013 00:00,595504,-10714.2,REVENUE,Advanced Childcare,
Peterborough,http://opendatacommunities.org/id/unitary-authority/peterborough,Peterborough City Council,Children's & Education Services - Children's Social Care,Children Looked After,Supplies and Services - Transfer Payments,06/11/2013 00:00,595534,3620.8,REVENUE,Archway Care Ltd,
Peterborough,http://opendatacommunities.org/id/unitary-authority/peterborough,Peterborough City Council,Children's & Education Services - Children's Social Care,Children Looked After,Supplies and Services - Transfer Payments,06/11/2013 00:00,595557,3620.8,REVENUE,Archway Care Ltd,
Peterborough,http://opendatacommunities.org/id/unitary-authority/peterborough,Peterborough City Council,Children's & Education Services - Children's Social Care,Children Looked After,Supplies and Services - Transfer Payments,06/11/2013 00:00,595558,3620.8,REVENUE,Archway Care Ltd,
Peterborough,http://opendatacommunities.org/id/unitary-authority/peterborough,Peterborough City Council,Children's & Education Services - Children's Social Care,Children Looked After,Supplies and Services - Transfer Payments,06/11/2013 00:00,595559,3620.8,REVENUE,Archway Care Ltd,
Peterborough,http://opendatacommunities.org/id/unitary-authority/peterborough,Peterborough City Council,Children's & Education Services - Children's Social Care,Children Looked After,Supplies and Services - Transfer Payments,06/11/2013 00:00,595574,16806.42,REVENUE,Care Focus Ltd,
Peterborough,http://opendatacommunities.org/id/unitary-authority/peterborough,Peterborough City Council,Children's & Education Services - Children's Social Care,Children Looked After,Supplies and Services - Transfer Payments,06/11/2013 00:00,595594,-10714.2,REVENUE,Advanced Childcare,
Peterborough,http://opendatacommunities.org/id/unitary-authority/peterborough,Peterborough City Council,Children's & Education Services - Children's Social Care,Children Looked After,Supplies and Services - Transfer Payments,06/11/2013 00:00,595597,-11071.34,REVENUE,Advanced Childcare,
Peterborough,http://opendatacommunities.org/id/unitary-authority/peterborough,Peterborough City Council,Children's & Education Services - Children's Social Care,More than one Service Division,More than one Expenses Type,06/11/2013 00:00,595600,1343.16,REVENUE,Children & Families Looked After Children,
Peterborough,http://opendatacommunities.org/id/unitary-authority/peterborough,Peterborough City Council,Children's & Education Services - Children's Social Care,Other Children's & Families Services,Supplies and Services - Transfer Payments,06/11/2013 00:00,595626,600,REVENUE,Redacted Personal Data,
Peterborough,http://opendatacommunities.org/id/unitary-authority/peterborough,Peterborough City Council,Children's & Education Services - Children's Social Care,Other Children's & Families Services,Supplies and Services - Transfer Payments,06/11/2013 00:00,595627,613.6,REVENUE,Redacted Personal Data,
Peterborough,http://opendatacommunities.org/id/unitary-authority/peterborough,Peterborough City Council,Children's & Education Services - Children's Social Care,Children Looked After,Supplies and Services - Transfer Payments,06/11/2013 00:00,595714,688.98,REVENUE,Redacted Personal Data,
Peterborough,http://opendatacommunities.org/id/unitary-authority/peterborough,Peterborough City Council,Children's & Education Services - Children's Social Care,Children Looked After,Supplies and Services - Transfer Payments,06/11/2013 00:00,595715,563.92,REVENUE,Redacted Personal Data,
Peterborough,http://opendatacommunities.org/id/unitary-authority/peterborough,Peterborough City Council,Children's & Education Services - Children's Social Care,Children Looked After,Supplies and Services - Transfer Payments,06/11/2013 00:00,595716,602.7,REVENUE,Redacted Personal Data,
Peterborough,http://opendatacommunities.org/id/unitary-authority/peterborough,Peterborough City Council,Children's & Education Services - Children's Social Care,Children Looked After,Supplies and Services - Transfer Payments,06/11/2013 00:00,595717,563.92,REVENUE,Redacted Personal Data,
Peterborough,http://opendatacommunities.org/id/unitary-authority/peterborough,Peterborough City Council,Children's & Education Services - Children's Social Care,Children Looked After,Supplies and Services - Transfer Payments,06/11/2013 00:00,595718,602.7,REVENUE,Redacted Personal Data,
Peterborough,http://opendatacommunities.org/id/unitary-authority/peterborough,Peterborough City Council,Children's & Education Services - Children's Social Care,Children Looked After,Supplies and Services - Transfer Payments,06/11/2013 00:00,595719,563.92,REVENUE,Redacted Personal Data,
Peterborough,http://opendatacommunities.org/id/unitary-authority/peterborough,Peterborough City Council,Children's & Education Services - Children's Social Care,Children Looked After,Supplies and Services - Transfer Payments,06/11/2013 00:00,595720,563.92,REVENUE,Redacted Personal Data,
Peterborough,http://opendatacommunities.org/id/unitary-authority/peterborough,Peterborough City Council,Children's & Education Services - Children's Social Care,Children Looked After,Supplies and Services - Transfer Payments,06/11/2013 00:00,595722,563.92,REVENUE,Redacted Personal Data,
Peterborough,http://opendatacommunities.org/id/unitary-authority/peterborough,Peterborough City Council,Children's & Education Services - Children's Social Care,Children Looked After,Supplies and Services - Transfer Payments,06/11/2013 00:00,595723,538.94,REVENUE,Redacted Personal Data,
Peterborough,http://opendatacommunities.org/id/unitary-authority/peterborough,Peterborough City Council,Children's & Education Services - Children's Social Care,Children Looked After,Supplies and Services - Transfer Payments,06/11/2013 00:00,595724,563.92,REVENUE,Redacted Personal Data,
Peterborough,http://opendatacommunities.org/id/unitary-authority/peterborough,Peterborough City Council,Children's & Education Services - Children's Social Care,Children Looked After,Supplies and Services - Transfer Payments,06/11/2013 00:00,595725,563.92,REVENUE,Redacted Personal Data,
Peterborough,http://opendatacommunities.org/id/unitary-authority/peterborough,Peterborough City Council,Children's & Education Services - Children's Social Care,Children Looked After,Supplies and Services - Transfer Payments,06/11/2013 00:00,595726,602.7,REVENUE,Redacted Personal Data,
Peterborough,http://opendatacommunities.org/id/unitary-authority/peterborough,Peterborough City Council,Children's & Education Services - Children's Social Care,Children Looked After,Supplies and Services - Transfer Payments,06/11/2013 00:00,595727,563.92,REVENUE,Redacted Personal Data,
Peterborough,http://opendatacommunities.org/id/unitary-authority/peterborough,Peterborough City Council,Children's & Education Services - Children's Social Care,Children Looked After,Supplies and Services - Transfer Payments,06/11/2013 00:00,595728,563.92,REVENUE,Redacted Personal Data,
Peterborough,http://opendatacommunities.org/id/unitary-authority/peterborough,Peterborough City Council,Children's & Education Services - Children's Social Care,Children Looked After,Supplies and Services - Transfer Payments,06/11/2013 00:00,595729,602.7,REVENUE,Redacted Personal Data,
Peterborough,http://opendatacommunities.org/id/unitary-authority/peterborough,Peterborough City Council,Children's & Education Services - Children's Social Care,Children Looked After,Supplies and Services - Transfer Payments,06/11/2013 00:00,595731,511.7,REVENUE,Redacted Personal Data,
Peterborough,http://opendatacommunities.org/id/unitary-authority/peterborough,Peterborough City Council,Children's & Education Services - Children's Social Care,Children Looked After,Supplies and Services - Transfer Payments,06/11/2013 00:00,595732,511.7,REVENUE,Redacted Personal Data,
Peterborough,http://opendatacommunities.org/id/unitary-authority/peterborough,Peterborough City Council,Children's & Education Services - Children's Social Care,Children Looked After,Supplies and Services - Transfer Payments,06/11/2013 00:00,595733,563.92,REVENUE,Redacted Personal Data,
Peterborough,http://opendatacommunities.org/id/unitary-authority/peterborough,Peterborough City Council,Children's & Education Services - Children's Social Care,Children Looked After,Supplies and Services - Transfer Payments,06/11/2013 00:00,595734,511.7,REVENUE,Redacted Personal Data,
Peterborough,http://opendatacommunities.org/id/unitary-authority/peterborough,Peterborough City Council,Children's & Education Services - Children's Social Care,Children Looked After,Supplies and Services - Transfer Payments,06/11/2013 00:00,595735,511.7,REVENUE,Redacted Personal Data,
Peterborough,http://opendatacommunities.org/id/unitary-authority/peterborough,Peterborough City Council,Children's & Education Services - Children's Social Care,Children Looked After,Supplies and Services - Transfer Payments,06/11/2013 00:00,595736,563.92,REVENUE,Redacted Personal Data,
Peterborough,http://opendatacommunities.org/id/unitary-authority/peterborough,Peterborough City Council,Children's & Education Services - Children's Social Care,Children Looked After,Supplies and Services - Transfer Payments,06/11/2013 00:00,595737,563.92,REVENUE,Redacted Personal Data,
Peterborough,http://opendatacommunities.org/id/unitary-authority/peterborough,Peterborough City Council,Children's & Education Services - Children's Social Care,Children Looked After,Supplies and Services - Transfer Payments,06/11/2013 00:00,595738,511.7,REVENUE,Redacted Personal Data,
Peterborough,http://opendatacommunities.org/id/unitary-authority/peterborough,Peterborough City Council,Children's & Education Services - Children's Social Care,Children Looked After,Supplies and Services - Transfer Payments,06/11/2013 00:00,595739,885.08,REVENUE,Redacted Personal Data,
Peterborough,http://opendatacommunities.org/id/unitary-authority/peterborough,Peterborough City Council,Children's & Education Services - Children's Social Care,Children Looked After,Supplies and Services - Transfer Payments,06/11/2013 00:00,595741,602.7,REVENUE,Redacted Personal Data,
Peterborough,http://opendatacommunities.org/id/unitary-authority/peterborough,Peterborough City Council,Children's & Education Services - Children's Social Care,Children Looked After,Supplies and Services - Transfer Payments,06/11/2013 00:00,595743,563.92,REVENUE,Redacted Personal Data,
Peterborough,http://opendatacommunities.org/id/unitary-authority/peterborough,Peterborough City Council,Children's & Education Services - Children's Social Care,Children Looked After,Supplies and Services - Transfer Payments,06/11/2013 00:00,595748,511.7,REVENUE,Redacted Personal Data,
Peterborough,http://opendatacommunities.org/id/unitary-authority/peterborough,Peterborough City Council,Children's & Education Services - Children's Social Care,Children Looked After,Supplies and Services - Transfer Payments,06/11/2013 00:00,595749,563.92,REVENUE,Redacted Personal Data,
Peterborough,http://opendatacommunities.org/id/unitary-authority/peterborough,Peterborough City Council,Children's & Education Services - Children's Social Care,Children Looked After,Supplies and Services - Transfer Payments,06/11/2013 00:00,595750,515.43,REVENUE,Redacted Personal Data,
Peterborough,http://opendatacommunities.org/id/unitary-authority/peterborough,Peterborough City Council,Children's & Education Services - Children's Social Care,Children Looked After,Supplies and Services - Transfer Payments,06/11/2013 00:00,595763,885.08,REVENUE,Redacted Personal Data,
Peterborough,http://opendatacommunities.org/id/unitary-authority/peterborough,Peterborough City Council,Children's & Education Services - Children's Social Care,Children Looked After,Supplies and Services - Transfer Payments,06/11/2013 00:00,595775,602.7,REVENUE,Redacted Personal Data,
Peterborough,http://opendatacommunities.org/id/unitary-authority/peterborough,Peterborough City Council,Children's & Education Services - Children's Social Care,Children Looked After,Supplies and Services - Transfer Payments,06/11/2013 00:00,595776,563.92,REVENUE,Redacted Personal Data,
Peterborough,http://opendatacommunities.org/id/unitary-authority/peterborough,Peterborough City Council,Children's & Education Services - Children's Social Care,Children Looked After,Supplies and Services - Transfer Payments,06/11/2013 00:00,595788,885.08,REVENUE,Redacted Personal Data,
Peterborough,http://opendatacommunities.org/id/unitary-authority/peterborough,Peterborough City Council,Children's & Education Services - Children's Social Care,Children Looked After,Supplies and Services - Transfer Payments,06/11/2013 00:00,595793,563.92,REVENUE,Redacted Personal Data,
Peterborough,http://opendatacommunities.org/id/unitary-authority/peterborough,Peterborough City Council,Children's & Education Services - Children's Social Care,Children Looked After,Supplies and Services - Transfer Payments,06/11/2013 00:00,595796,563.92,REVENUE,Redacted Personal Data,
Peterborough,http://opendatacommunities.org/id/unitary-authority/peterborough,Peterborough City Council,Children's & Education Services - Children's Social Care,Children Looked After,Supplies and Services - Transfer Payments,06/11/2013 00:00,595801,511.7,REVENUE,Redacted Personal Data,
Peterborough,http://opendatacommunities.org/id/unitary-authority/peterborough,Peterborough City Council,Children's & Education Services - Children's Social Care,Children Looked After,Supplies and Services - Transfer Payments,06/11/2013 00:00,595803,602.7,REVENUE,Redacted Personal Data,
Peterborough,http://opendatacommunities.org/id/unitary-authority/peterborough,Peterborough City Council,Children's & Education Services - Children's Social Care,Children Looked After,Supplies and Services - Transfer Payments,06/11/2013 00:00,595811,563.92,REVENUE,Redacted Personal Data,
Peterborough,http://opendatacommunities.org/id/unitary-authority/peterborough,Peterborough City Council,Children's & Education Services - Children's Social Care,Children Looked After,Supplies and Services - Transfer Payments,06/11/2013 00:00,595821,511.7,REVENUE,Redacted Personal Data,
Peterborough,http://opendatacommunities.org/id/unitary-authority/peterborough,Peterborough City Council,Children's & Education Services - Children's Social Care,Children Looked After,Supplies and Services - Transfer Payments,06/11/2013 00:00,595822,511.7,REVENUE,Redacted Personal Data,
Peterborough,http://opendatacommunities.org/id/unitary-authority/peterborough,Peterborough City Council,Children's & Education Services - Children's Social Care,Children Looked After,Supplies and Services - Transfer Payments,06/11/2013 00:00,595823,511.7,REVENUE,Redacted Personal Data,
Peterborough,http://opendatacommunities.org/id/unitary-authority/peterborough,Peterborough City Council,Children's & Education Services - Children's Social Care,Children Looked After,Supplies and Services - Transfer Payments,06/11/2013 00:00,595833,602.7,REVENUE,Redacted Personal Data,
Peterborough,http://opendatacommunities.org/id/unitary-authority/peterborough,Peterborough City Council,Children's & Education Services - Children's Social Care,Children Looked After,Supplies and Services - Transfer Payments,06/11/2013 00:00,595834,511.7,REVENUE,Redacted Personal Data,
Peterborough,http://opendatacommunities.org/id/unitary-authority/peterborough,Peterborough City Council,Children's & Education Services - Children's Social Care,Children Looked After,Supplies and Services - Transfer Payments,06/11/2013 00:00,595836,602.7,REVENUE,Redacted Personal Data,
Peterborough,http://opendatacommunities.org/id/unitary-authority/peterborough,Peterborough City Council,Children's & Education Services - Children's Social Care,Children Looked After,Supplies and Services - Transfer Payments,06/11/2013 00:00,595837,602.7,REVENUE,Redacted Personal Data,
Peterborough,http://opendatacommunities.org/id/unitary-authority/peterborough,Peterborough City Council,Children's & Education Services - Children's Social Care,Children Looked After,Supplies and Services - Transfer Payments,06/11/2013 00:00,595840,563.92,REVENUE,Redacted Personal Data,
Peterborough,http://opendatacommunities.org/id/unitary-authority/peterborough,Peterborough City Council,Children's & Education Services - Children's Social Care,Children Looked After,Supplies and Services - Transfer Payments,06/11/2013 00:00,595853,563.92,REVENUE,Redacted Personal Data,
Peterborough,http://opendatacommunities.org/id/unitary-authority/peterborough,Peterborough City Council,Children's & Education Services - Children's Social Care,Children Looked After,Supplies and Services - Transfer Payments,06/11/2013 00:00,595854,563.92,REVENUE,Redacted Personal Data,
Peterborough,http://opendatacommunities.org/id/unitary-authority/peterborough,Peterborough City Council,Children's & Education Services - Children's Social Care,Children Looked After,Supplies and Services - Transfer Payments,06/11/2013 00:00,595855,1022.21,REVENUE,Redacted Personal Data,
Peterborough,http://opendatacommunities.org/id/unitary-authority/peterborough,Peterborough City Council,Children's & Education Services - Children's Social Care,Children Looked After,Supplies and Services - Transfer Payments,06/11/2013 00:00,595856,563.92,REVENUE,Redacted Personal Data,
Peterborough,http://opendatacommunities.org/id/unitary-authority/peterborough,Peterborough City Council,Children's & Education Services - Children's Social Care,Children Looked After,Supplies and Services - Transfer Payments,06/11/2013 00:00,595857,583.59,REVENUE,Redacted Personal Data,
Peterborough,http://opendatacommunities.org/id/unitary-authority/peterborough,Peterborough City Council,Children's & Education Services - Children's Social Care,Children Looked After,Supplies and Services - Transfer Payments,06/11/2013 00:00,595858,602.7,REVENUE,Redacted Personal Data,
Peterborough,http://opendatacommunities.org/id/unitary-authority/peterborough,Peterborough City Council,Children's & Education Services - Children's Social Care,Children Looked After,Supplies and Services - Transfer Payments,06/11/2013 00:00,595867,602.7,REVENUE,Redacted Personal Data,
Peterborough,http://opendatacommunities.org/id/unitary-authority/peterborough,Peterborough City Council,Children's & Education Services - Children's Social Care,Children Looked After,Supplies and Services - Transfer Payments,06/11/2013 00:00,595873,563.92,REVENUE,Redacted Personal Data,
Peterborough,http://opendatacommunities.org/id/unitary-authority/peterborough,Peterborough City Council,Children's & Education Services - Children's Social Care,Children Looked After,Supplies and Services - Transfer Payments,06/11/2013 00:00,595879,511.7,REVENUE,Redacted Personal Data,
Peterborough,http://opendatacommunities.org/id/unitary-authority/peterborough,Peterborough City Council,Children's & Education Services - Children's Social Care,Children Looked After,Supplies and Services - Transfer Payments,06/11/2013 00:00,595885,563.92,REVENUE,Redacted Personal Data,
Peterborough,http://opendatacommunities.org/id/unitary-authority/peterborough,Peterborough City Council,Children's & Education Services - Children's Social Care,Other Children's & Families Services,Supplies and Services - Transfer Payments,06/11/2013 00:00,595891,567,REVENUE,Redacted Personal Data,
Peterborough,http://opendatacommunities.org/id/unitary-authority/peterborough,Peterborough City Council,Children's & Education Services - Children's Social Care,Other Children's & Families Services,Supplies and Services - Transfer Payments,06/11/2013 00:00,595892,567,REVENUE,Redacted Personal Data,
Peterborough,http://opendatacommunities.org/id/unitary-authority/peterborough,Peterborough City Council,Children's & Education Services - Children's Social Care,Children Looked After,Supplies and Services - Transfer Payments,06/11/2013 00:00,595912,885.08,REVENUE,Redacted Personal Data,
Peterborough,http://opendatacommunities.org/id/unitary-authority/peterborough,Peterborough City Council,Children's & Education Services - Children's Social Care,Children Looked After,Supplies and Services - Transfer Payments,06/11/2013 00:00,595914,563.92,REVENUE,Redacted Personal Data,
Peterborough,http://opendatacommunities.org/id/unitary-authority/peterborough,Peterborough City Council,Children's & Education Services - Children's Social Care,Other Children's & Families Services,Supplies and Services - Transfer Payments,06/11/2013 00:00,595932,1754.11,REVENUE,Redacted Personal Data,
Peterborough,http://opendatacommunities.org/id/unitary-authority/peterborough,Peterborough City Council,Children's & Education Services - Children's Social Care,Children Looked After,Supplies and Services - Transfer Payments,06/11/2013 00:00,595934,970.04,REVENUE,Redacted Personal Data,
Peterborough,http://opendatacommunities.org/id/unitary-authority/peterborough,Peterborough City Council,Children's & Education Services - Children's Social Care,Children Looked After,Supplies and Services - Transfer Payments,06/11/2013 00:00,595935,970.04,REVENUE,Redacted Personal Data,
Peterborough,http://opendatacommunities.org/id/unitary-authority/peterborough,Peterborough City Council,Children's & Education Services - Children's Social Care,Children's Services - Commissioning and Social Work,Supplies and Services,06/11/2013 00:00,595941,608.72,REVENUE,Redacted Personal Data,
Peterborough,http://opendatacommunities.org/id/unitary-authority/peterborough,Peterborough City Council,Children's & Education Services - Children's Social Care,Children Looked After,Supplies and Services - Transfer Payments,06/11/2013 00:00,595944,602.7,REVENUE,Redacted Personal Data,
Peterborough,http://opendatacommunities.org/id/unitary-authority/peterborough,Peterborough City Council,Children's & Education Services - Children's Social Care,Children Looked After,Supplies and Services - Transfer Payments,06/11/2013 00:00,595945,602.7,REVENUE,Redacted Personal Data,
Peterborough,http://opendatacommunities.org/id/unitary-authority/peterborough,Peterborough City Council,Children's & Education Services - Children's Social Care,Children Looked After,Supplies and Services - Transfer Payments,06/11/2013 00:00,595954,839.37,REVENUE,Redacted Personal Data,
Peterborough,http://opendatacommunities.org/id/unitary-authority/peterborough,Peterborough City Council,Children's & Education Services - Children's Social Care,Children Looked After,Supplies and Services - Transfer Payments,06/11/2013 00:00,595958,563.92,REVENUE,Redacted Personal Data,
Peterborough,http://opendatacommunities.org/id/unitary-authority/peterborough,Peterborough City Council,Children's & Education Services - Children's Social Care,Children Looked After,Supplies and Services - Transfer Payments,06/11/2013 00:00,595968,602.7,REVENUE,Redacted Personal Data,
Peterborough,http://opendatacommunities.org/id/unitary-authority/peterborough,Peterborough City Council,Children's & Education Services - Children's Social Care,Children Looked After,Supplies and Services - Transfer Payments,06/11/2013 00:00,595970,885.08,REVENUE,Redacted Personal Data,
Peterborough,http://opendatacommunities.org/id/unitary-authority/peterborough,Peterborough City Council,Children's & Education Services - Children's Social Care,Children Looked After,Supplies and Services - Transfer Payments,06/11/2013 00:00,595972,1449,REVENUE,Redacted Personal Data,
Peterborough,http://opendatacommunities.org/id/unitary-authority/peterborough,Peterborough City Council,Children's & Education Services - Children's Social Care,Children's Services - Commissioning and Social Work,Supplies and Services,06/11/2013 00:00,595976,1452.58,REVENUE,Redacted Personal Data,
Peterborough,http://opendatacommunities.org/id/unitary-authority/peterborough,Peterborough City Council,Children's & Education Services - Children's Social Care,Children's Services - Commissioning and Social Work,Supplies and Services,06/11/2013 00:00,595980,897.38,REVENUE,Redacted Personal Data,
Peterborough,http://opendatacommunities.org/id/unitary-authority/peterborough,Peterborough City Council,Children's & Education Services - Children's Social Care,Children Looked After,Supplies and Services - Transfer Payments,06/11/2013 00:00,595986,602.7,REVENUE,Redacted Personal Data,
Peterborough,http://opendatacommunities.org/id/unitary-authority/peterborough,Peterborough City Council,Children's & Education Services - Children's Social Care,Children Looked After,Supplies and Services - Transfer Payments,06/11/2013 00:00,595997,602.7,REVENUE,Redacted Personal Data,
Peterborough,http://opendatacommunities.org/id/unitary-authority/peterborough,Peterborough City Council,Children's & Education Services - Children's Social Care,Children's Services - Commissioning and Social Work,Supplies and Services,06/11/2013 00:00,595998,782.64,REVENUE,Redacted Personal Data,
Peterborough,http://opendatacommunities.org/id/unitary-authority/peterborough,Peterborough City Council,Children's & Education Services - Children's Social Care,Children Looked After,Supplies and Services - Transfer Payments,06/11/2013 00:00,596003,602.7,REVENUE,Redacted Personal Data,
Peterborough,http://opendatacommunities.org/id/unitary-authority/peterborough,Peterborough City Council,Children's & Education Services - Children's Social Care,Children Looked After,Supplies and Services - Transfer Payments,06/11/2013 00:00,596009,602.7,REVENUE,Redacted Personal Data,
Peterborough,http://opendatacommunities.org/id/unitary-authority/peterborough,Peterborough City Council,Children's & Education Services - Children's Social Care,Children Looked After,Supplies and Services - Transfer Payments,06/11/2013 00:00,596012,511.7,REVENUE,Redacted Personal Data,
Peterborough,http://opendatacommunities.org/id/unitary-authority/peterborough,Peterborough City Council,Children's & Education Services - Children's Social Care,Children Looked After,Supplies and Services - Transfer Payments,06/11/2013 00:00,596018,548.72,REVENUE,Redacted Personal Data,
Peterborough,http://opendatacommunities.org/id/unitary-authority/peterborough,Peterborough City Council,Children's & Education Services - Children's Social Care,Children Looked After,Supplies and Services - Transfer Payments,06/11/2013 00:00,596019,626.08,REVENUE,Redacted Personal Data,
Peterborough,http://opendatacommunities.org/id/unitary-authority/peterborough,Peterborough City Council,Children's & Education Services - Children's Social Care,Children Looked After,Supplies and Services - Transfer Payments,06/11/2013 00:00,596036,666.06,REVENUE,Redacted Personal Data,
Peterborough,http://opendatacommunities.org/id/unitary-authority/peterborough,Peterborough City Council,Children's & Education Services - Children's Social Care,Children Looked After,Supplies and Services - Transfer Payments,06/11/2013 00:00,596037,803.19,REVENUE,Redacted Personal Data,
Peterborough,http://opendatacommunities.org/id/unitary-authority/peterborough,Peterborough City Council,Children's & Education Services - Children's Social Care,Other Children's & Families Services,Supplies and Services - Transfer Payments,06/11/2013 00:00,596040,3099.2,REVENUE,Redacted Personal Data,
Peterborough,http://opendatacommunities.org/id/unitary-authority/peterborough,Peterborough City Council,Children's & Education Services - Children's Social Care,Children Looked After,Supplies and Services - Transfer Payments,06/11/2013 00:00,596052,790.79,REVENUE,Redacted Personal Data,
Peterborough,http://opendatacommunities.org/id/unitary-authority/peterborough,Peterborough City Council,Children's & Education Services - Children's Social Care,Children Looked After,Supplies and Services - Transfer Payments,06/11/2013 00:00,596057,511.7,REVENUE,Redacted Personal Data,
Peterborough,http://opendatacommunities.org/id/unitary-authority/peterborough,Peterborough City Council,Children's & Education Services - Children's Social Care,Children Looked After,Supplies and Services - Transfer Payments,06/11/2013 00:00,596059,688.8,REVENUE,Redacted Personal Data,
Peterborough,http://opendatacommunities.org/id/unitary-authority/peterborough,Peterborough City Council,Children's & Education Services - Children's Social Care,Children Looked After,Supplies and Services - Transfer Payments,06/11/2013 00:00,596063,509.75,REVENUE,Redacted Personal Data,
Peterborough,http://opendatacommunities.org/id/unitary-authority/peterborough,Peterborough City Council,Children's & Education Services - Children's Social Care,Children Looked After,Supplies and Services - Transfer Payments,06/11/2013 00:00,596064,3152.76,REVENUE,Redacted Personal Data,
Peterborough,http://opendatacommunities.org/id/unitary-authority/peterborough,Peterborough City Council,Children's & Education Services - Children's Social Care,Other Children's & Families Services,Supplies and Services - Transfer Payments,06/11/2013 00:00,596065,2043.3,REVENUE,Redacted Personal Data,
Peterborough,http://opendatacommunities.org/id/unitary-authority/peterborough,Peterborough City Council,Housing Services,Homelessness,Supplies and Services,06/11/2013 00:00,596077,1360,REVENUE,Belvoir Property Management,
Peterborough,http://opendatacommunities.org/id/unitary-authority/peterborough,Peterborough City Council,Capital,Capital,Capital Pending Update to BS,06/11/2013 00:00,596117,2886,CAPITAL,Vysionics ITS Limited,
Peterborough,http://opendatacommunities.org/id/unitary-authority/peterborough,Peterborough City Council,Housing Services,Homelessness,Supplies and Services,06/11/2013 00:00,596172,1350,REVENUE,Boutique Lettings,
Peterborough,http://opendatacommunities.org/id/unitary-authority/peterborough,Peterborough City Council,Children's & Education Services - Children's Social Care,Children Looked After,Supplies and Services - Transfer Payments,06/11/2013 00:00,596173,-11071.34,REVENUE,Advanced Childcare,
Peterborough,http://opendatacommunities.org/id/unitary-authority/peterborough,Peterborough City Council,Support Services,Support Services,Supplies and Services,06/11/2013 00:00,596216,600,REVENUE,Local Living Ltd,
Peterborough,http://opendatacommunities.org/id/unitary-authority/peterborough,Peterborough City Council,Support Services,Support Services,Supplies and Services,06/11/2013 00:00,596243,1638.84,REVENUE,Paton Brown Sales Promotions Ltd,
Peterborough,http://opendatacommunities.org/id/unitary-authority/peterborough,Peterborough City Council,Environmental and Regulatory Services,Community Safety (CCTV),Supplies and Services,06/11/2013 00:00,596253,2050.8,REVENUE,Quadrant Security Group Ltd,
Peterborough,http://opendatacommunities.org/id/unitary-authority/peterborough,Peterborough City Council,Housing Services,Private Sector Housing Renewal,Supplies and Services,06/11/2013 00:00,596255,958.8,REVENUE,Rawheat Heating & Plumbing Eng.,
Peterborough,http://opendatacommunities.org/id/unitary-authority/peterborough,Peterborough City Council,Children's & Education Services - Education,Other School -related Education Functions,Transport,06/11/2013 00:00,596276,1101.12,REVENUE,Goldstar Cabs Ltd,
Peterborough,http://opendatacommunities.org/id/unitary-authority/peterborough,Peterborough City Council,Children's & Education Services - Education,Other School -related Education Functions,Transport,06/11/2013 00:00,596285,998.4,REVENUE,Redacted Personal Data,
Peterborough,http://opendatacommunities.org/id/unitary-authority/peterborough,Peterborough City Council,Children's & Education Services - Education,Other School -related Education Functions,Transport,06/11/2013 00:00,596286,752.4,REVENUE,Betta Cars,
Peterborough,http://opendatacommunities.org/id/unitary-authority/peterborough,Peterborough City Council,Housing Services,Private Sector Housing Renewal,Supplies and Services,06/11/2013 00:00,596331,577.6,REVENUE,T G M Maintenance,
Peterborough,http://opendatacommunities.org/id/unitary-authority/peterborough,Peterborough City Council,Deficit/(Surplus) on Trading Undertakings,Trading Account Surpluses & Deficits,Supplies and Services,06/11/2013 00:00,596389,969.6,REVENUE,BSi Management Systems,
Peterborough,http://opendatacommunities.org/id/unitary-authority/peterborough,Peterborough City Council,Children's & Education Services - Education,Early Years,Supplies and Services,07/11/2013 00:00,586584,-4500,REVENUE,Eyrescroft Primary School,
Peterborough,http://opendatacommunities.org/id/unitary-authority/peterborough,Peterborough City Council,Adult Social Care,Adult Learning Disabilities,Employees,08/11/2013 00:00,584123,1836.12,REVENUE,Caritas Recruitment,
Peterborough,http://opendatacommunities.org/id/unitary-authority/peterborough,Peterborough City Council,Capital,Capital,Capital Pending Update to BS,08/11/2013 00:00,587668,900,CAPITAL,ASC (Surveys)Ltd,
Peterborough,http://opendatacommunities.org/id/unitary-authority/peterborough,Peterborough City Council,Adult Social Care,Older People,Supplies and Services,08/11/2013 00:00,587871,1271.45,REVENUE,Atlas Care Services Ltd,
Peterborough,http://opendatacommunities.org/id/unitary-authority/peterborough,Peterborough City Council,Adult Social Care,Adult Learning Disabilities,Supplies and Services,08/11/2013 00:00,589423,511,REVENUE,Next Steps Community Care Ltd,
Peterborough,http://opendatacommunities.org/id/unitary-authority/peterborough,Peterborough City Council,Adult Social Care,Adult Learning Disabilities,Employees,08/11/2013 00:00,589816,1575,REVENUE,Caritas Recruitment,
Peterborough,http://opendatacommunities.org/id/unitary-authority/peterborough,Peterborough City Council,Planning Services,Community Development,Supplies and Services,08/11/2013 00:00,593571,500,REVENUE,Orton Malborne Rangers,
Peterborough,http://opendatacommunities.org/id/unitary-authority/peterborough,Peterborough City Council,Adult Social Care,Adult Learning Disabilities,Employees,08/11/2013 00:00,593653,1239.84,REVENUE,Randstad Care Ltd,
Peterborough,http://opendatacommunities.org/id/unitary-authority/peterborough,Peterborough City Council,Adult Social Care,Adult Learning Disabilities,Employees,08/11/2013 00:00,593654,1839.1,REVENUE,Randstad Care Ltd,
Peterborough,http://opendatacommunities.org/id/unitary-authority/peterborough,Peterborough City Council,Adult Social Care,Adult Learning Disabilities,Employees,08/11/2013 00:00,593655,1446.48,REVENUE,Randstad Care Ltd,
Peterborough,http://opendatacommunities.org/id/unitary-authority/peterborough,Peterborough City Council,Children's & Education Services - Education,Secondary,Employees,08/11/2013 00:00,593940,840,REVENUE,Alternative Curriculum Education CIC,
Peterborough,http://opendatacommunities.org/id/unitary-authority/peterborough,Peterborough City Council,Environmental and Regulatory Services,"Cemetery, Crematorium & Mortuary Services",Premises,08/11/2013 00:00,593964,594,REVENUE,Zagota Creations Ltd,
Peterborough,http://opendatacommunities.org/id/unitary-authority/peterborough,Peterborough City Council,Cultural and Related Services,Culture & Heritage,Supplies and Services,08/11/2013 00:00,594206,3394.18,REVENUE,Danwood Group Limited,
Peterborough,http://opendatacommunities.org/id/unitary-authority/peterborough,Peterborough City Council,Support Services,Support Services,Supplies and Services,08/11/2013 00:00,594783,582,REVENUE,Fisherprint Ltd,
Peterborough,http://opendatacommunities.org/id/unitary-authority/peterborough,Peterborough City Council,Support Services,Support Services,Supplies and Services,08/11/2013 00:00,594786,777,REVENUE,Fisherprint Ltd,
Peterborough,http://opendatacommunities.org/id/unitary-authority/peterborough,Peterborough City Council,Adult Social Care,Older People,Supplies and Services,08/11/2013 00:00,594789,2070,REVENUE,Weightmans LLP,
Peterborough,http://opendatacommunities.org/id/unitary-authority/peterborough,Peterborough City Council,Adult Social Care,Older People,Supplies and Services,08/11/2013 00:00,594895,958.08,REVENUE,Better Healthcare Services,
Peterborough,http://opendatacommunities.org/id/unitary-authority/peterborough,Peterborough City Council,Adult Social Care,Older People,Supplies and Services,08/11/2013 00:00,594897,733.08,REVENUE,Better Healthcare Services,
Peterborough,http://opendatacommunities.org/id/unitary-authority/peterborough,Peterborough City Council,Adult Social Care,Older People,Supplies and Services,08/11/2013 00:00,594927,539.76,REVENUE,Housing 21,
Peterborough,http://opendatacommunities.org/id/unitary-authority/peterborough,Peterborough City Council,Adult Social Care,Older People,Supplies and Services,08/11/2013 00:00,594929,826.94,REVENUE,Housing 21,
Peterborough,http://opendatacommunities.org/id/unitary-authority/peterborough,Peterborough City Council,Adult Social Care,Older People,Supplies and Services,08/11/2013 00:00,594931,865,REVENUE,Housing 21,
Peterborough,http://opendatacommunities.org/id/unitary-authority/peterborough,Peterborough City Council,Children's & Education Services - Children's Social Care,Children Looked After,Employees,08/11/2013 00:00,594935,742.56,REVENUE,Blue Arrow Ltd,
Peterborough,http://opendatacommunities.org/id/unitary-authority/peterborough,Peterborough City Council,Adult Social Care,Older People,Supplies and Services,08/11/2013 00:00,594936,1214.74,REVENUE,Housing 21,
Peterborough,http://opendatacommunities.org/id/unitary-authority/peterborough,Peterborough City Council,Children's & Education Services - Children's Social Care,Children Looked After,Supplies and Services - Transfer Payments,08/11/2013 00:00,594937,16806.42,REVENUE,Care Focus Ltd,
Peterborough,http://opendatacommunities.org/id/unitary-authority/peterborough,Peterborough City Council,Adult Social Care,Older People,Supplies and Services,08/11/2013 00:00,594938,2035.04,REVENUE,Housing 21,
Peterborough,http://opendatacommunities.org/id/unitary-authority/peterborough,Peterborough City Council,Adult Social Care,Older People,Supplies and Services,08/11/2013 00:00,594940,623.91,REVENUE,Housing 21,
Peterborough,http://opendatacommunities.org/id/unitary-authority/peterborough,Peterborough City Council,Adult Social Care,Older People,Supplies and Services,08/11/2013 00:00,594946,2073.37,REVENUE,Housing 21,
Peterborough,http://opendatacommunities.org/id/unitary-authority/peterborough,Peterborough City Council,Adult Social Care,Older People,Supplies and Services,08/11/2013 00:00,594948,647.16,REVENUE,Housing 21,
Peterborough,http://opendatacommunities.org/id/unitary-authority/peterborough,Peterborough City Council,Adult Social Care,Older People,Supplies and Services,08/11/2013 00:00,594952,1235.36,REVENUE,Housing 21,
Peterborough,http://opendatacommunities.org/id/unitary-authority/peterborough,Peterborough City Council,Adult Social Care,Older People,Supplies and Services,08/11/2013 00:00,594957,1939.68,REVENUE,Housing 21,
Peterborough,http://opendatacommunities.org/id/unitary-authority/peterborough,Peterborough City Council,Adult Social Care,Older People,Supplies and Services,08/11/2013 00:00,594958,1838.5,REVENUE,Housing 21,
Peterborough,http://opendatacommunities.org/id/unitary-authority/peterborough,Peterborough City Council,Adult Social Care,Older People,Supplies and Services,08/11/2013 00:00,594960,2161.43,REVENUE,Hales Group Ltd,
Peterborough,http://opendatacommunities.org/id/unitary-authority/peterborough,Peterborough City Council,Adult Social Care,Older People,Supplies and Services,08/11/2013 00:00,594961,785.7,REVENUE,Housing 21,
Peterborough,http://opendatacommunities.org/id/unitary-authority/peterborough,Peterborough City Council,Adult Social Care,Older People,Supplies and Services,08/11/2013 00:00,594964,1216.82,REVENUE,Housing 21,
Peterborough,http://opendatacommunities.org/id/unitary-authority/peterborough,Peterborough City Council,Adult Social Care,Older People,Supplies and Services,08/11/2013 00:00,594965,570.48,REVENUE,Hales Group Ltd,
Peterborough,http://opendatacommunities.org/id/unitary-authority/peterborough,Peterborough City Council,Adult Social Care,Older People,Supplies and Services,08/11/2013 00:00,594966,1905.21,REVENUE,Housing 21,
Peterborough,http://opendatacommunities.org/id/unitary-authority/peterborough,Peterborough City Council,Adult Social Care,Older People,Supplies and Services,08/11/2013 00:00,594967,745.15,REVENUE,Housing 21,
Peterborough,http://opendatacommunities.org/id/unitary-authority/peterborough,Peterborough City Council,Adult Social Care,Older People,Supplies and Services,08/11/2013 00:00,594969,1489.05,REVENUE,Housing 21,
Peterborough,http://opendatacommunities.org/id/unitary-authority/peterborough,Peterborough City Council,Adult Social Care,Older People,Supplies and Services,08/11/2013 00:00,594970,845.68,REVENUE,Hales Group Ltd,
Peterborough,http://opendatacommunities.org/id/unitary-authority/peterborough,Peterborough City Council,Adult Social Care,Older People,Supplies and Services,08/11/2013 00:00,594973,650.46,REVENUE,Hales Group Ltd,
Peterborough,http://opendatacommunities.org/id/unitary-authority/peterborough,Peterborough City Council,Adult Social Care,Older People,Supplies and Services,08/11/2013 00:00,594974,1183.32,REVENUE,Housing 21,
Peterborough,http://opendatacommunities.org/id/unitary-authority/peterborough,Peterborough City Council,Adult Social Care,Older People,Supplies and Services,08/11/2013 00:00,594978,1936.49,REVENUE,Housing 21,
Peterborough,http://opendatacommunities.org/id/unitary-authority/peterborough,Peterborough City Council,Adult Social Care,Adult Mental Health,Supplies and Services,08/11/2013 00:00,594982,1343.45,REVENUE,Housing 21,
Peterborough,http://opendatacommunities.org/id/unitary-authority/peterborough,Peterborough City Council,Adult Social Care,Older People,Supplies and Services,08/11/2013 00:00,594985,2004.31,REVENUE,Housing 21,
Peterborough,http://opendatacommunities.org/id/unitary-authority/peterborough,Peterborough City Council,Adult Social Care,Older People,Supplies and Services,08/11/2013 00:00,594987,1422.2,REVENUE,Housing 21,
Peterborough,http://opendatacommunities.org/id/unitary-authority/peterborough,Peterborough City Council,Adult Social Care,Older People,Supplies and Services,08/11/2013 00:00,594989,757.74,REVENUE,Housing 21,
Peterborough,http://opendatacommunities.org/id/unitary-authority/peterborough,Peterborough City Council,Adult Social Care,Older People,Supplies and Services,08/11/2013 00:00,594993,688.82,REVENUE,Better Healthcare Services,
Peterborough,http://opendatacommunities.org/id/unitary-authority/peterborough,Peterborough City Council,Adult Social Care,Older People,Supplies and Services,08/11/2013 00:00,594997,926.62,REVENUE,Better Healthcare Services,
Peterborough,http://opendatacommunities.org/id/unitary-authority/peterborough,Peterborough City Council,Adult Social Care,Older People,Supplies and Services,08/11/2013 00:00,595000,901.41,REVENUE,Better Healthcare Services,
Peterborough,http://opendatacommunities.org/id/unitary-authority/peterborough,Peterborough City Council,Adult Social Care,Older People,Supplies and Services,08/11/2013 00:00,595006,1992.96,REVENUE,Housing 21,
Peterborough,http://opendatacommunities.org/id/unitary-authority/peterborough,Peterborough City Council,Adult Social Care,Older People,Supplies and Services,08/11/2013 00:00,595009,1968.88,REVENUE,Housing 21,
Peterborough,http://opendatacommunities.org/id/unitary-authority/peterborough,Peterborough City Council,Adult Social Care,Older People,Supplies and Services,08/11/2013 00:00,595012,845.34,REVENUE,Housing 21,
Peterborough,http://opendatacommunities.org/id/unitary-authority/peterborough,Peterborough City Council,Adult Social Care,Older People,Supplies and Services,08/11/2013 00:00,595014,2003.2,REVENUE,Housing 21,
Peterborough,http://opendatacommunities.org/id/unitary-authority/peterborough,Peterborough City Council,Adult Social Care,Older People,Supplies and Services,08/11/2013 00:00,595018,828.05,REVENUE,Housing 21,
Peterborough,http://opendatacommunities.org/id/unitary-authority/peterborough,Peterborough City Council,Adult Social Care,Older People,Supplies and Services,08/11/2013 00:00,595021,904.17,REVENUE,Housing 21,
Peterborough,http://opendatacommunities.org/id/unitary-authority/peterborough,Peterborough City Council,Adult Social Care,Older People,Supplies and Services,08/11/2013 00:00,595023,1824.8,REVENUE,Housing 21,
Peterborough,http://opendatacommunities.org/id/unitary-authority/peterborough,Peterborough City Council,Adult Social Care,Older People,Supplies and Services,08/11/2013 00:00,595026,1898.71,REVENUE,Housing 21,
Peterborough,http://opendatacommunities.org/id/unitary-authority/peterborough,Peterborough City Council,Adult Social Care,Older People,Supplies and Services,08/11/2013 00:00,595142,840.7,REVENUE,Sahara Community Care Services,
Peterborough,http://opendatacommunities.org/id/unitary-authority/peterborough,Peterborough City Council,Adult Social Care,Older People,Supplies and Services,08/11/2013 00:00,595146,1464.37,REVENUE,Sahara Community Care Services,
Peterborough,http://opendatacommunities.org/id/unitary-authority/peterborough,Peterborough City Council,Adult Social Care,Older People,Supplies and Services,08/11/2013 00:00,595148,3153.58,REVENUE,Sahara Community Care Services,
Peterborough,http://opendatacommunities.org/id/unitary-authority/peterborough,Peterborough City Council,Adult Social Care,Older People,Supplies and Services,08/11/2013 00:00,595149,830.8,REVENUE,Sahara Community Care Services,
Peterborough,http://opendatacommunities.org/id/unitary-authority/peterborough,Peterborough City Council,Adult Social Care,Older People,Supplies and Services,08/11/2013 00:00,595153,1015.55,REVENUE,Sahara Community Care Services,
Peterborough,http://opendatacommunities.org/id/unitary-authority/peterborough,Peterborough City Council,Adult Social Care,Older People,Supplies and Services,08/11/2013 00:00,595156,598.9,REVENUE,Sahara Community Care Services,
Peterborough,http://opendatacommunities.org/id/unitary-authority/peterborough,Peterborough City Council,Adult Social Care,Older People,Supplies and Services,08/11/2013 00:00,595157,501.6,REVENUE,Sahara Community Care Services,
Peterborough,http://opendatacommunities.org/id/unitary-authority/peterborough,Peterborough City Council,Adult Social Care,Adult Learning Disabilities,Supplies and Services,08/11/2013 00:00,595173,550.4,REVENUE,Sahara Community Care Services,
Peterborough,http://opendatacommunities.org/id/unitary-authority/peterborough,Peterborough City Council,Adult Social Care,Older People,Supplies and Services,08/11/2013 00:00,595178,1555.64,REVENUE,Sahara Community Care Services,
Peterborough,http://opendatacommunities.org/id/unitary-authority/peterborough,Peterborough City Council,Adult Social Care,Older People,Supplies and Services,08/11/2013 00:00,595181,954,REVENUE,Sahara Community Care Services,
Peterborough,http://opendatacommunities.org/id/unitary-authority/peterborough,Peterborough City Council,Adult Social Care,Older People,Supplies and Services,08/11/2013 00:00,595186,763.94,REVENUE,Sahara Community Care Services,
Peterborough,http://opendatacommunities.org/id/unitary-authority/peterborough,Peterborough City Council,Adult Social Care,Older People,Supplies and Services,08/11/2013 00:00,595196,1135.2,REVENUE,Sahara Community Care Services,
Peterborough,http://opendatacommunities.org/id/unitary-authority/peterborough,Peterborough City Council,Adult Social Care,Adult Mental Health,Supplies and Services,08/11/2013 00:00,595200,513.2,REVENUE,Sahara Community Care Services,
Peterborough,http://opendatacommunities.org/id/unitary-authority/peterborough,Peterborough City Council,Adult Social Care,Adult Mental Health,Supplies and Services,08/11/2013 00:00,595203,617.2,REVENUE,Sahara Community Care Services,
Peterborough,http://opendatacommunities.org/id/unitary-authority/peterborough,Peterborough City Council,Adult Social Care,Older People,Supplies and Services,08/11/2013 00:00,595213,1524,REVENUE,Sahara Community Care Services,
Peterborough,http://opendatacommunities.org/id/unitary-authority/peterborough,Peterborough City Council,Adult Social Care,Older People,Supplies and Services,08/11/2013 00:00,595221,2383.79,REVENUE,Sahara Community Care Services,
Peterborough,http://opendatacommunities.org/id/unitary-authority/peterborough,Peterborough City Council,Adult Social Care,Older People,Supplies and Services,08/11/2013 00:00,595223,1779.96,REVENUE,LAVENDER HOUSE RESIDENTIAL HOME,
Peterborough,http://opendatacommunities.org/id/unitary-authority/peterborough,Peterborough City Council,Adult Social Care,Older People,Supplies and Services,08/11/2013 00:00,595227,1129.6,REVENUE,LAVENDER HOUSE RESIDENTIAL HOME,
Peterborough,http://opendatacommunities.org/id/unitary-authority/peterborough,Peterborough City Council,Adult Social Care,Older People,Supplies and Services,08/11/2013 00:00,595229,762.84,REVENUE,LAVENDER HOUSE RESIDENTIAL HOME,
Peterborough,http://opendatacommunities.org/id/unitary-authority/peterborough,Peterborough City Council,Adult Social Care,Older People,Supplies and Services,08/11/2013 00:00,595240,528.74,REVENUE,Sahara Community Care Services,
Peterborough,http://opendatacommunities.org/id/unitary-authority/peterborough,Peterborough City Council,Adult Social Care,Older People,Supplies and Services,08/11/2013 00:00,595243,828.67,REVENUE,Sahara Community Care Services,
Peterborough,http://opendatacommunities.org/id/unitary-authority/peterborough,Peterborough City Council,Adult Social Care,Older People,Supplies and Services,08/11/2013 00:00,595246,3504.7,REVENUE,Sahara Community Care Services,
Peterborough,http://opendatacommunities.org/id/unitary-authority/peterborough,Peterborough City Council,Support Services,Support Services,Premises,08/11/2013 00:00,595269,5142,REVENUE,Serco Ltd,
Peterborough,http://opendatacommunities.org/id/unitary-authority/peterborough,Peterborough City Council,Support Services,Support Services,Supplies and Services,08/11/2013 00:00,595270,1379.45,REVENUE,Serco Ltd,
Peterborough,http://opendatacommunities.org/id/unitary-authority/peterborough,Peterborough City Council,More than one Service Area Category,More than one Service Division,Supplies and Services,08/11/2013 00:00,595271,15587.27,REVENUE,Serco Ltd,
Peterborough,http://opendatacommunities.org/id/unitary-authority/peterborough,Peterborough City Council,Adult Social Care,Older People,Supplies and Services,08/11/2013 00:00,595295,1623.07,REVENUE,Sahara Community Care Services,
Peterborough,http://opendatacommunities.org/id/unitary-authority/peterborough,Peterborough City Council,Adult Social Care,Older People,Supplies and Services,08/11/2013 00:00,595297,1186.92,REVENUE,Sahara Community Care Services,
Peterborough,http://opendatacommunities.org/id/unitary-authority/peterborough,Peterborough City Council,Adult Social Care,Older People,Supplies and Services,08/11/2013 00:00,595299,1441.41,REVENUE,Sahara Community Care Services,
Peterborough,http://opendatacommunities.org/id/unitary-authority/peterborough,Peterborough City Council,Adult Social Care,Older People,Supplies and Services,08/11/2013 00:00,595301,552.46,REVENUE,Sahara Community Care Services,
Peterborough,http://opendatacommunities.org/id/unitary-authority/peterborough,Peterborough City Council,Adult Social Care,Older People,Supplies and Services,08/11/2013 00:00,595304,2352.08,REVENUE,Sahara Community Care Services,
Peterborough,http://opendatacommunities.org/id/unitary-authority/peterborough,Peterborough City Council,Adult Social Care,Older People,Supplies and Services,08/11/2013 00:00,595305,557.22,REVENUE,Sahara Community Care Services,
Peterborough,http://opendatacommunities.org/id/unitary-authority/peterborough,Peterborough City Council,Adult Social Care,Older People,Supplies and Services,08/11/2013 00:00,595306,2534.7,REVENUE,Sahara Community Care Services,
Peterborough,http://opendatacommunities.org/id/unitary-authority/peterborough,Peterborough City Council,Adult Social Care,Older People,Supplies and Services,08/11/2013 00:00,595307,1278.66,REVENUE,Sahara Community Care Services,
Peterborough,http://opendatacommunities.org/id/unitary-authority/peterborough,Peterborough City Council,Adult Social Care,Older People,Supplies and Services,08/11/2013 00:00,595309,911,REVENUE,Sahara Community Care Services,
Peterborough,http://opendatacommunities.org/id/unitary-authority/peterborough,Peterborough City Council,Adult Social Care,Older People,Supplies and Services,08/11/2013 00:00,595310,1387.07,REVENUE,Sahara Community Care Services,
Peterborough,http://opendatacommunities.org/id/unitary-authority/peterborough,Peterborough City Council,Adult Social Care,Older People,Supplies and Services,08/11/2013 00:00,595311,578.92,REVENUE,Sahara Community Care Services,
Peterborough,http://opendatacommunities.org/id/unitary-authority/peterborough,Peterborough City Council,Adult Social Care,Adult Learning Disabilities,Supplies and Services,08/11/2013 00:00,595313,562.82,REVENUE,Sahara Community Care Services,
Peterborough,http://opendatacommunities.org/id/unitary-authority/peterborough,Peterborough City Council,Adult Social Care,Older People,Supplies and Services,08/11/2013 00:00,595314,519.88,REVENUE,Sahara Community Care Services,
